Workbook

Sheet Main
B10: 2021-04-05
B12: Sheet No. | C12: Template Name | D12: Summary
B13: 1 | C13: Future Intra | D13: For Intraday trading in F&O segment
B14: 2 | C14: Cash Intra | D14: For Intraday trading in cash market segment
B15: 3 | C15: Mid-cap Intra | D15: For Intraday trading in Mid-cap stocks
B16: 4 | C16: Bulk Deals | D16: Reveals Bulk Deals carried on NSE & BSE
B17: 5 | C17: Call Tracker
K27: `

Sheet Future Intra
M5: Back to Main Page
A6: FOR INTRA DAY TRADING | L6: =Main!B10 -> 2021-04-05
A9: Sr.no | B9: Sector | C9: Scrip | D9: Expiry Date | E9: CLOSE RATE | F9: Pivot Point | G9: Supports | J9: Resistances
B10: Sector | E10: Point | F10: Point | G10: S1 | H10: S2 | I10: S3 | J10: R1 | K10: R2 | L10: R3 | M10: HIGH | N10: LOW | O10: OI | P10: % Change in OI
A11: 1 | B11: Index | C11: BANKNIFTY | D11: 2021-04-29 | E11: 34155.20 | F11: 33931.75 | G11: 33613.50 | H11: 33071.80 | I11: 32753.55 | J11: 34473.45 | K11: 34791.70 | L11: 35333.40 | M11: 34250 | N11: 33390.05 | O11: 2396775 | P11: -26.72%
A12: 2 | B12: Index | C12: NIFTY | D12: 2021-04-29 | E12: 14953.35 | F12: 14896.15 | G12: 14817.30 | H12: 14681.25 | I12: 14602.40 | J12: 15032.20 | K12: 15111.05 | L12: 15247.10 | M12: 14975 | N12: 14760.1 | O12: 11801100 | P12: -6.62%
A13: 3 | B13: Index | C13: FINNIFTY | D13: 2021-04-29 | E13: 16053.45 | F13: 15988.92 | G13: 15788.83 | H13: 15524.22 | I13: 15324.13 | J13: 16253.53 | K13: 16453.62 | L13: 16718.23 | M13: 16189 | N13: 15724.3 | O13: 11800 | P13: -28.74%
A14: 4 | B14: Chemical | C14: AARTIIND | D14: 2021-04-29 | E14: 1374.20 | F14: 1364.87 | G14: 1331.88 | H14: 1289.57 | I14: 1256.58 | J14: 1407.18 | K14: 1440.17 | L14: 1482.48 | M14: 1397.85 | N14: 1322.55 | O14: 462825 | P14: 0.65%
A15: 5 | B15: Cement | C15: ACC | D15: 2021-04-29 | E15: 1926.30 | F15: 1919.15 | G15: 1908.30 | H15: 1890.30 | I15: 1879.45 | J15: 1937.15 | K15: 1948.00 | L15: 1966.00 | M15: 1930 | N15: 1901.15 | O15: 3319000 | P15: 2.49%
A16: 6 | B16: Others | C16: ADANIENT | D16: 2021-04-29 | E16: 1115.25 | F16: 1092.15 | G16: 1061.90 | H16: 1008.55 | I16: 978.30 | J16: 1145.50 | K16: 1175.75 | L16: 1229.10 | M16: 1122.4 | N16: 1038.8 | O16: 16836000 | P16: -3.17%
A17: 7 | B17: Others | C17: ADANIPORTS | D17: 2021-04-29 | E17: 740.10 | F17: 732.58 | G17: 717.17 | H17: 694.23 | I17: 678.82 | J17: 755.52 | K17: 770.93 | L17: 793.87 | M17: 748 | N17: 709.65 | O17: 59152500 | P17: -0.93%
A18: 8 | B18: Pharma | C18: ALKEM | D18: 2021-04-29 | E18: 2784.25 | F18: 2777.03 | G18: 2755.02 | H18: 2725.78 | I18: 2703.77 | J18: 2806.27 | K18: 2828.28 | L18: 2857.52 | M18: 2799.05 | N18: 2747.8 | O18: 201800 | P18: -10.63%
A19: 9 | B19: Automobile | C19: AMARAJABAT | D19: 2021-04-29 | E19: 867.70 | F19: 866.18 | G19: 860.52 | H19: 853.33 | I19: 847.67 | J19: 873.37 | K19: 879.03 | L19: 886.22 | M19: 871.85 | N19: 859 | O19: 2358000 | P19: 1.86%
A20: 10 | B20: Cement | C20: AMBUJACEM | D20: 2021-04-29 | E20: 312.40 | F20: 311.77 | G20: 309.13 | H20: 305.87 | I20: 303.23 | J20: 315.03 | K20: 317.67 | L20: 320.93 | M20: 314.4 | N20: 308.5 | O20: 16176000 | P20: 3.02%
A21: 11 | B21: Pharma | C21: APLLTD | D21: 2021-04-29 | E21: 989.80 | F21: 982.65 | G21: 971.00 | H21: 952.20 | I21: 940.55 | J21: 1001.45 | K21: 1013.10 | L21: 1031.90 | M21: 994.3 | N21: 963.85 | O21: 755700 | P21: -0.29%
A22: 12 | B22: Others | C22: APOLLOHOSP | D22: 2021-04-29 | E22: 2917.45 | F22: 2901.87 | G22: 2878.73 | H22: 2840.02 | I22: 2816.88 | J22: 2940.58 | K22: 2963.72 | L22: 3002.43 | M22: 2925 | N22: 2863.15 | O22: 1938500 | P22: 4.67%
A23: 13 | B23: Automobile | C23: APOLLOTYRE | D23: 2021-04-29 | E23: 237.80 | F23: 233.93 | G23: 229.27 | H23: 220.73 | I23: 216.07 | J23: 242.47 | K23: 247.13 | L23: 255.67 | M23: 238.6 | N23: 225.4 | O23: 9945000 | P23: 5.63%
A24: 14 | B24: Automobile | C24: ASHOKLEY | D24: 2021-04-29 | E24: 118.85 | F24: 117.47 | G24: 115.63 | H24: 112.42 | I24: 110.58 | J24: 120.68 | K24: 122.52 | L24: 125.73 | M24: 119.3 | N24: 114.25 | O24: 43569000 | P24: -0.08%
A25: 15 | B25: FMCG | C25: ASIANPAINT | D25: 2021-04-29 | E25: 2563.65 | F25: 2562.25 | G25: 2546.50 | H25: 2529.35 | I25: 2513.60 | J25: 2579.40 | K25: 2595.15 | L25: 2612.30 | M25: 2578 | N25: 2545.1 | O25: 5757900 | P25: -1.45%
A26: 16 | B26: Banking | C26: AUBANK | D26: 2021-04-29 | E26: 1272.30 | F26: 1256.25 | G26: 1232.40 | H26: 1192.50 | I26: 1168.65 | J26: 1296.15 | K26: 1320.00 | L26: 1359.90 | M26: 1280.1 | N26: 1216.35 | O26: 2374500 | P26: 3.44%
A27: 17 | B27: Pharma | C27: AUROPHARMA | D27: 2021-04-29 | E27: 888.20 | F27: 884.37 | G27: 875.38 | H27: 862.57 | I27: 853.58 | J27: 897.18 | K27: 906.17 | L27: 918.98 | M27: 893.35 | N27: 871.55 | O27: 8654100 | P27: 0.51%
A28: 18 | B28: Banking | C28: AXISBANK | D28: 2021-04-29 | E28: 718.70 | F28: 713.78 | G28: 704.82 | H28: 690.93 | I28: 681.97 | J28: 727.67 | K28: 736.63 | L28: 750.52 | M28: 722.75 | N28: 699.9 | O28: 42451200 | P28: 0.14%
A29: 19 | B29: Automobile | C29: BAJAJ-AUTO | D29: 2021-04-29 | E29: 3758.65 | F29: 3748.32 | G29: 3710.73 | H29: 3662.82 | I29: 3625.23 | J29: 3796.23 | K29: 3833.82 | L29: 3881.73 | M29: 3785.9 | N29: 3700.4 | O29: 2093500 | P29: -7.34%
A30: 20 | B30: Finance | C30: BAJAJFINSV | D30: 2021-04-29 | E30: 9859.30 | F30: 9813.27 | G30: 9742.53 | H30: 9625.77 | I30: 9555.03 | J30: 9930.03 | K30: 10000.77 | L30: 10117.53 | M30: 9884 | N30: 9696.5 | O30: 600250 | P30: -0.58%
A31: 21 | B31: Finance | C31: BAJFINANCE | D31: 2021-04-29 | E31: 5310.20 | F31: 5275.58 | G31: 5231.42 | H31: 5152.63 | I31: 5108.47 | J31: 5354.37 | K31: 5398.53 | L31: 5477.32 | M31: 5319.75 | N31: 5196.8 | O31: 3597750 | P31: -4.25%
A32: 22 | B32: Automobile | C32: BALKRISIND | D32: 2021-04-29 | E32: 1690.10 | F32: 1690.37 | G32: 1662.23 | H32: 1634.37 | I32: 1606.23 | J32: 1718.23 | K32: 1746.37 | L32: 1774.23 | M32: 1718.5 | N32: 1662.5 | O32: 1695200 | P32: -4.72%
A33: 23 | B33: Banking | C33: BANDHANBNK | D33: 2021-04-29 | E33: 353.90 | F33: 350.90 | G33: 344.00 | H33: 334.10 | I33: 327.20 | J33: 360.80 | K33: 367.70 | L33: 377.60 | M33: 357.8 | N33: 341 | O33: 16273800 | P33: -3.53%
A34: 24 | B34: Banking | C34: BANKBARODA | D34: 2021-04-29 | E34: 76.25 | F34: 75.58 | G34: 74.47 | H34: 72.68 | I34: 71.57 | J34: 77.37 | K34: 78.48 | L34: 80.27 | M34: 76.7 | N34: 73.8 | O34: 125236800 | P34: 0.56%
A35: 25 | B35: FMCG | C35: BATAINDIA | D35: 2021-04-29 | E35: 1435.65 | F35: 1432.50 | G35: 1420.20 | H35: 1404.75 | I35: 1392.45 | J35: 1447.95 | K35: 1460.25 | L35: 1475.70 | M35: 1444.8 | N35: 1417.05 | O35: 1478950 | P35: 1.32%
A36: 26 | B36: Capital_Goods | C36: BEL | D36: 2021-04-29 | E36: 127.10 | F36: 126.63 | G36: 125.47 | H36: 123.83 | I36: 122.67 | J36: 128.27 | K36: 129.43 | L36: 131.07 | M36: 127.8 | N36: 125 | O36: 42347200 | P36: 1.07%
A37: 27 | B37: FMCG | C37: BERGEPAINT | D37: 2021-04-29 | E37: 769.30 | F37: 770.72 | G37: 765.58 | H37: 761.87 | I37: 756.73 | J37: 774.43 | K37: 779.57 | L37: 783.28 | M37: 775.85 | N37: 767 | O37: 3150400 | P37: 0.63%
A38: 28 | B38: Automobile | C38: BHARATFORG | D38: 2021-04-29 | E38: 617.80 | F38: 612.62 | G38: 604.53 | H38: 591.27 | I38: 583.18 | J38: 625.88 | K38: 633.97 | L38: 647.23 | M38: 620.7 | N38: 599.35 | O38: 5275500 | P38: -1.29%
A39: 29 | B39: Telecom | C39: BHARTIARTL | D39: 2021-04-29 | E39: 524.90 | F39: 523.47 | G39: 518.93 | H39: 512.97 | I39: 508.43 | J39: 529.43 | K39: 533.97 | L39: 539.93 | M39: 528 | N39: 517.5 | O39: 99452379 | P39: -0.05%
A40: 30 | B40: Capital_Goods | C40: BHEL | D40: 2021-04-29 | E40: 51.40 | F40: 50.67 | G40: 49.73 | H40: 48.07 | I40: 47.13 | J40: 52.33 | K40: 53.27 | L40: 54.93 | M40: 51.6 | N40: 49 | O40: 100569000 | P40: 6.35%
A41: 31 | B41: Pharma | C41: BIOCON | D41: 2021-04-29 | E41: 413.75 | F41: 412.85 | G41: 410.90 | H41: 408.05 | I41: 406.10 | J41: 415.70 | K41: 417.65 | L41: 420.50 | M41: 414.8 | N41: 410 | O41: 14432500 | P41: -2.85%
A42: 32 | B42: Automobile | C42: BOSCHLTD | D42: 2021-04-29 | E42: 14290.70 | F42: 14273.40 | G42: 14099.80 | H42: 13908.90 | I42: 13735.30 | J42: 14464.30 | K42: 14637.90 | L42: 14828.80 | M42: 14447 | N42: 14082.5 | O42: 104250 | P42: 1.86%
A43: 33 | B43: Oil_Gas | C43: BPCL | D43: 2021-04-29 | E43: 440.30 | F43: 437.83 | G43: 432.97 | H43: 425.63 | I43: 420.77 | J43: 445.17 | K43: 450.03 | L43: 457.37 | M43: 442.7 | N43: 430.5 | O43: 47242800 | P43: 0.46%
A44: 34 | B44: FMCG | C44: BRITANNIA | D44: 2021-04-29 | E44: 3610.30 | F44: 3614.22 | G44: 3584.38 | H44: 3558.47 | I44: 3528.63 | J44: 3640.13 | K44: 3669.97 | L44: 3695.88 | M44: 3644.05 | N44: 3588.3 | O44: 1862000 | P44: 0.78%
A45: 35 | B45: Pharma | C45: CADILAHC | D45: 2021-04-29 | E45: 445.35 | F45: 445.20 | G45: 442.20 | H45: 439.05 | I45: 436.05 | J45: 448.35 | K45: 451.35 | L45: 454.50 | M45: 448.2 | N45: 442.05 | O45: 10155200 | P45: 0.04%
A46: 36 | B46: Banking | C46: CANBK | D46: 2021-04-29 | E46: 157.55 | F46: 155.70 | G46: 153.20 | H46: 148.85 | I46: 146.35 | J46: 160.05 | K46: 162.55 | L46: 166.90 | M46: 158.2 | N46: 151.35 | O46: 58741200 | P46: 2.87%
A47: 37 | B47: Finance | C47: CHOLAFIN | D47: 2021-04-29 | E47: 566.65 | F47: 563.55 | G47: 555.10 | H47: 543.55 | I47: 535.10 | J47: 575.10 | K47: 583.55 | L47: 595.10 | M47: 572 | N47: 552 | O47: 5137500 | P47: 0.64%
A48: 38 | B48: Pharma | C48: CIPLA | D48: 2021-04-29 | E48: 824.70 | F48: 823.90 | G48: 817.55 | H48: 810.40 | I48: 804.05 | J48: 831.05 | K48: 837.40 | L48: 844.55 | M48: 830.25 | N48: 816.75 | O48: 10754900 | P48: -2.22%
A49: 39 | B49: Others | C49: COALINDIA | D49: 2021-04-29 | E49: 133.10 | F49: 132.55 | G49: 131.70 | H49: 130.30 | I49: 129.45 | J49: 133.95 | K49: 134.80 | L49: 136.20 | M49: 133.4 | N49: 131.15 | O49: 46229400 | P49: -2.53%
A50: 40 | B50: Technology | C50: COFORGE | D50: 2021-04-29 | E50: 2960.10 | F50: 2984.50 | G50: 2876.60 | H50: 2793.10 | I50: 2685.20 | J50: 3068.00 | K50: 3175.90 | L50: 3259.40 | M50: 3092.4 | N50: 2901 | O50: 615000 | P50: 7.54%
A51: 41 | B51: FMCG | C51: COLPAL | D51: 2021-04-29 | E51: 1572.75 | F51: 1576.78 | G51: 1564.57 | H51: 1556.38 | I51: 1544.17 | J51: 1584.97 | K51: 1597.18 | L51: 1605.37 | M51: 1589 | N51: 1568.6 | O51: 3633700 | P51: -0.46%
A52: 42 | B52: Others | C52: CONCOR | D52: 2021-04-29 | E52: 603.65 | F52: 603.33 | G52: 596.67 | H52: 589.68 | I52: 583.02 | J52: 610.32 | K52: 616.98 | L52: 623.97 | M52: 610 | N52: 596.35 | O52: 6339528 | P52: -1.86%
A53: 43 | B53: Banking | C53: CUB | D53: 2021-04-29 | E53: 162.15 | F53: 160.68 | G53: 158.67 | H53: 155.18 | I53: 153.17 | J53: 164.17 | K53: 166.18 | L53: 169.67 | M53: 162.7 | N53: 157.2 | O53: 8521900 | P53: -0.25%
A54: 44 | B54: Capital_Goods | C54: CUMMINSIND | D54: 2021-04-29 | E54: 893.50 | F54: 896.60 | G54: 874.30 | H54: 855.10 | I54: 832.80 | J54: 915.80 | K54: 938.10 | L54: 957.30 | M54: 918.9 | N54: 877.4 | O54: 2143200 | P54: 10.18%
A55: 45 | B55: FMCG | C55: DABUR | D55: 2021-04-29 | E55: 542.45 | F55: 543.65 | G55: 539.70 | H55: 536.95 | I55: 533.00 | J55: 546.40 | K55: 550.35 | L55: 553.10 | M55: 547.6 | N55: 540.9 | O55: 8618750 | P55: -1.26%
A56: 46 | B56: Chemical | C56: DEEPAKNTR | D56: 2021-04-29 | E56: 1659.90 | F56: 1669.95 | G56: 1640.00 | H56: 1620.10 | I56: 1590.15 | J56: 1689.85 | K56: 1719.80 | L56: 1739.70 | M56: 1699.9 | N56: 1650.05 | O56: 916500 | P56: 6.32%
A57: 47 | B57: Pharma | C57: DIVISLAB | D57: 2021-04-29 | E57: 3638.95 | F57: 3640.63 | G57: 3615.57 | H57: 3592.18 | I57: 3567.12 | J57: 3664.02 | K57: 3689.08 | L57: 3712.47 | M57: 3665.7 | N57: 3617.25 | O57: 2531600 | P57: -1.09%
A58: 48 | B58: Realty | C58: DLF | D58: 2021-04-29 | E58: 293.65 | F58: 291.32 | G58: 287.18 | H58: 280.72 | I58: 276.58 | J58: 297.78 | K58: 301.92 | L58: 308.38 | M58: 295.45 | N58: 284.85 | O58: 27310800 | P58: 5.95%
A59: 49 | B59: Pharma | C59: DRREDDY | D59: 2021-04-29 | E59: 4608.95 | F59: 4593.57 | G59: 4562.13 | H59: 4515.32 | I59: 4483.88 | J59: 4640.38 | K59: 4671.82 | L59: 4718.63 | M59: 4625 | N59: 4546.75 | O59: 3295500 | P59: -1.52%
A60: 50 | B60: Automobile | C60: EICHERMOT | D60: 2021-04-29 | E60: 2648.00 | F60: 2639.05 | G60: 2613.95 | H60: 2579.90 | I60: 2554.80 | J60: 2673.10 | K60: 2698.20 | L60: 2732.25 | M60: 2664.15 | N60: 2605 | O60: 2475550 | P60: 1.68%
A61: 51 | B61: Automobile | C61: ESCORTS | D61: 2021-04-29 | E61: 1283.40 | F61: 1290.28 | G61: 1261.27 | H61: 1239.13 | I61: 1210.12 | J61: 1312.42 | K61: 1341.43 | L61: 1363.57 | M61: 1319.3 | N61: 1268.15 | O61: 2186800 | P61: 14.55%
A62: 52 | B62: Automobile | C62: EXIDEIND | D62: 2021-04-29 | E62: 187.35 | F62: 186.72 | G62: 185.63 | H62: 183.92 | I62: 182.83 | J62: 188.43 | K62: 189.52 | L62: 191.23 | M62: 187.8 | N62: 185 | O62: 13658400 | P62: 1.28%
A63: 53 | B63: Banking | C63: FEDERALBNK | D63: 2021-04-29 | E63: 79.45 | F63: 78.65 | G63: 77.50 | H63: 75.55 | I63: 74.40 | J63: 80.60 | K63: 81.75 | L63: 83.70 | M63: 79.8 | N63: 76.7 | O63: 72490000 | P63: 1.74%
A64: 54 | B64: Oil_Gas | C64: GAIL | D64: 2021-04-29 | E64: 140.90 | F64: 139.50 | G64: 137.40 | H64: 133.90 | I64: 131.80 | J64: 143.00 | K64: 145.10 | L64: 148.60 | M64: 141.6 | N64: 136 | O64: 48415700 | P64: -1.95%
A65: 55 | B65: Pharma | C65: GLENMARK | D65: 2021-04-29 | E65: 486.65 | F65: 481.52 | G65: 471.13 | H65: 455.62 | I65: 445.23 | J65: 497.03 | K65: 507.42 | L65: 522.93 | M65: 491.9 | N65: 466 | O65: 6207700 | P65: 6.49%
A66: 56 | B66: Infrastructure | C66: GMRINFRA | D66: 2021-04-29 | E66: 25.20 | F66: 24.90 | G66: 24.55 | H66: 23.90 | I66: 23.55 | J66: 25.55 | K66: 25.90 | L66: 26.55 | M66: 25.25 | N66: 24.25 | O66: 158917500 | P66: 1.73%
A67: 57 | B67: FMCG | C67: GODREJCP | D67: 2021-04-29 | E67: 729.45 | F67: 731.42 | G67: 725.08 | H67: 720.72 | I67: 714.38 | J67: 735.78 | K67: 742.12 | L67: 746.48 | M67: 737.75 | N67: 727.05 | O67: 5360000 | P67: -3.60%
A68: 58 | B68: Realty | C68: GODREJPROP | D68: 2021-04-29 | E68: 1398.40 | F68: 1391.08 | G68: 1370.32 | H68: 1342.23 | I68: 1321.47 | J68: 1419.17 | K68: 1439.93 | L68: 1468.02 | M68: 1411.85 | N68: 1363 | O68: 1732250 | P68: 0.79%
A69: 59 | B69: Pharma | C69: GRANULES | D69: 2021-04-29 | E69: 314.00 | F69: 311.40 | G69: 308.15 | H69: 302.30 | I69: 299.05 | J69: 317.25 | K69: 320.50 | L69: 326.35 | M69: 314.65 | N69: 305.55 | O69: 6091500 | P69: -2.92%
A70: 60 | B70: Cement | C70: GRASIM | D70: 2021-04-29 | E70: 1460.65 | F70: 1458.25 | G70: 1445.50 | H70: 1430.35 | I70: 1417.60 | J70: 1473.40 | K70: 1486.15 | L70: 1501.30 | M70: 1471 | N70: 1443.1 | O70: 16142400 | P70: -0.33%
A71: 61 | B71: Oil_Gas | C71: GUJGASLTD | D71: 2021-04-29 | E71: 552.40 | F71: 556.20 | G71: 543.20 | H71: 534.00 | I71: 521.00 | J71: 565.40 | K71: 578.40 | L71: 587.60 | M71: 569.2 | N71: 547 | O71: 1153750 | P71: 5.37%
A72: 62 | B72: Capital_Goods | C72: HAVELLS | D72: 2021-04-29 | E72: 1067.15 | F72: 1065.90 | G72: 1054.25 | H72: 1041.35 | I72: 1029.70 | J72: 1078.80 | K72: 1090.45 | L72: 1103.35 | M72: 1077.55 | N72: 1053 | O72: 4947000 | P72: 1.14%
A73: 63 | B73: Technology | C73: HCLTECH | D73: 2021-04-29 | E73: 1006.25 | F73: 1008.13 | G73: 996.57 | H73: 986.88 | I73: 975.32 | J73: 1017.82 | K73: 1029.38 | L73: 1039.07 | M73: 1019.7 | N73: 998.45 | O73: 17485300 | P73: -0.89%
A74: 64 | B74: Finance | C74: HDFC | D74: 2021-04-29 | E74: 2547.55 | F74: 2531.65 | G74: 2510.90 | H74: 2474.25 | I74: 2453.50 | J74: 2568.30 | K74: 2589.05 | L74: 2625.70 | M74: 2552.4 | N74: 2495 | O74: 15518100 | P74: -1.02%
A75: 65 | B75: Finance | C75: HDFCAMC | D75: 2021-04-29 | E75: 2977.45 | F75: 2955.92 | G75: 2927.88 | H75: 2878.32 | I75: 2850.28 | J75: 3005.48 | K75: 3033.52 | L75: 3083.08 | M75: 2983.95 | N75: 2906.35 | O75: 521200 | P75: 2.64%
A76: 66 | B76: Banking | C76: HDFCBANK | D76: 2021-04-29 | E76: 1499.55 | F76: 1495.70 | G76: 1484.45 | H76: 1469.35 | I76: 1458.10 | J76: 1510.80 | K76: 1522.05 | L76: 1537.15 | M76: 1506.95 | N76: 1480.6 | O76: 30571200 | P76: 4.65%
A77: 67 | B77: Finance | C77: HDFCLIFE | D77: 2021-04-29 | E77: 695.55 | F77: 695.85 | G77: 686.30 | H77: 677.05 | I77: 667.50 | J77: 705.10 | K77: 714.65 | L77: 723.90 | M77: 705.4 | N77: 686.6 | O77: 8382000 | P77: 0.78%
A78: 68 | B78: Automobile | C78: HEROMOTOCO | D78: 2021-04-29 | E78: 2968.85 | F78: 2971.90 | G78: 2937.90 | H78: 2906.95 | I78: 2872.95 | J78: 3002.85 | K78: 3036.85 | L78: 3067.80 | M78: 3005.9 | N78: 2940.95 | O78: 4449900 | P78: 0.05%
A79: 69 | B79: Metals | C79: HINDALCO | D79: 2021-04-29 | E79: 352.30 | F79: 345.23 | G79: 336.57 | H79: 320.83 | I79: 312.17 | J79: 360.97 | K79: 369.63 | L79: 385.37 | M79: 353.9 | N79: 329.5 | O79: 34064600 | P79: 12.77%
A80: 70 | B80: Oil_Gas | C80: HINDPETRO | D80: 2021-04-29 | E80: 238.80 | F80: 237.15 | G80: 235.00 | H80: 231.20 | I80: 229.05 | J80: 240.95 | K80: 243.10 | L80: 246.90 | M80: 239.3 | N80: 233.35 | O80: 25917300 | P80: 0.47%
A81: 71 | B81: FMCG | C81: HINDUNILVR | D81: 2021-04-29 | E81: 2416.75 | F81: 2425.63 | G81: 2400.22 | H81: 2383.68 | I81: 2358.27 | J81: 2442.17 | K81: 2467.58 | L81: 2484.12 | M81: 2451.05 | N81: 2409.1 | O81: 6319200 | P81: -0.34%
A82: 72 | B82: Finance | C82: IBULHSGFIN | D82: 2021-04-29 | E82: 206.25 | F82: 203.53 | G82: 200.07 | H82: 193.88 | I82: 190.42 | J82: 209.72 | K82: 213.18 | L82: 219.37 | M82: 207 | N82: 197.35 | O82: 32100500 | P82: 2.97%
A83: 73 | B83: Banking | C83: ICICIBANK | D83: 2021-04-29 | E83: 599.20 | F83: 594.67 | G83: 588.43 | H83: 577.67 | I83: 571.43 | J83: 605.43 | K83: 611.67 | L83: 622.43 | M83: 600.9 | N83: 583.9 | O83: 96643250 | P83: 1.69%
A84: 74 | B84: Finance | C84: ICICIGI | D84: 2021-04-29 | E84: 1443.60 | F84: 1438.73 | G84: 1422.47 | H84: 1401.33 | I84: 1385.07 | J84: 1459.87 | K84: 1476.13 | L84: 1497.27 | M84: 1455 | N84: 1417.6 | O84: 977075 | P84: -2.67%
A85: 75 | B85: Finance | C85: ICICIPRULI | D85: 2021-04-29 | E85: 447.60 | F85: 444.88 | G85: 440.72 | H85: 433.83 | I85: 429.67 | J85: 451.77 | K85: 455.93 | L85: 462.82 | M85: 449.05 | N85: 438 | O85: 7857000 | P85: 2.61%
A86: 76 | B86: Telecom | C86: IDEA | D86: 2021-04-29 | E86: 10.15 | F86: 9.90 | G86: 9.55 | H86: 8.95 | I86: 8.60 | J86: 10.50 | K86: 10.85 | L86: 11.45 | M86: 10.25 | N86: 9.3 | O86: 664090000 | P86: 12.11%
A87: 77 | B87: Banking | C87: IDFCFIRSTB | D87: 2021-04-29 | E87: 56.90 | F87: 56.60 | G87: 55.70 | H87: 54.50 | I87: 53.60 | J87: 57.80 | K87: 58.70 | L87: 59.90 | M87: 57.5 | N87: 55.4 | O87: 203604000 | P87: 3.12%
A88: 78 | B88: Oil_Gas | C88: IGL | D88: 2021-04-29 | E88: 530.55 | F88: 527.13 | G88: 522.42 | H88: 514.28 | I88: 509.57 | J88: 535.27 | K88: 539.98 | L88: 548.12 | M88: 531.85 | N88: 519 | O88: 5863000 | P88: 2.21%
A89: 79 | B89: Others | C89: INDIGO | D89: 2021-04-29 | E89: 1623.60 | F89: 1621.38 | G89: 1605.22 | H89: 1586.83 | I89: 1570.67 | J89: 1639.77 | K89: 1655.93 | L89: 1674.32 | M89: 1637.55 | N89: 1603 | O89: 3554500 | P89: 0.92%
A90: 80 | B90: Banking | C90: INDUSINDBK | D90: 2021-04-29 | E90: 1000.90 | F90: 990.50 | G90: 976.00 | H90: 951.10 | I90: 936.60 | J90: 1015.40 | K90: 1029.90 | L90: 1054.80 | M90: 1005 | N90: 965.6 | O90: 23461200 | P90: 2.84%
A91: 81 | B91: Telecom | C91: INDUSTOWER | D91: 2021-04-29 | E91: 257.20 | F91: 254.73 | G91: 250.97 | H91: 244.73 | I91: 240.97 | J91: 260.97 | K91: 264.73 | L91: 270.97 | M91: 258.5 | N91: 248.5 | O91: 11737600 | P91: 0.53%
A92: 82 | B92: Technology | C92: INFY | D92: 2021-04-29 | E92: 1392.10 | F92: 1390.72 | G92: 1381.93 | H92: 1371.77 | I92: 1362.98 | J92: 1400.88 | K92: 1409.67 | L92: 1419.83 | M92: 1399.5 | N92: 1380.55 | O92: 31208400 | P92: 0.49%
A93: 83 | B93: Oil_Gas | C93: IOC | D93: 2021-04-29 | E93: 93.60 | F93: 92.95 | G93: 92.15 | H93: 90.70 | I93: 89.90 | J93: 94.40 | K93: 95.20 | L93: 96.65 | M93: 93.75 | N93: 91.5 | O93: 67691000 | P93: -1.60%
A94: 84 | B94: Others | C94: IRCTC | D94: 2021-04-29 | E94: 1764.80 | F94: 1769.03 | G94: 1748.77 | H94: 1732.73 | I94: 1712.47 | J94: 1785.07 | K94: 1805.33 | L94: 1821.37 | M94: 1789.3 | N94: 1753 | O94: 1872650 | P94: 0.12%
A95: 85 | B95: FMCG | C95: ITC | D95: 2021-04-29 | E95: 221.15 | F95: 220.47 | G95: 219.13 | H95: 217.12 | I95: 215.78 | J95: 222.48 | K95: 223.82 | L95: 225.83 | M95: 221.8 | N95: 218.45 | O95: 111072000 | P95: 0.53%
A96: 86 | B96: Metals | C96: JINDALSTEL | D96: 2021-04-29 | E96: 372.30 | F96: 365.38 | G96: 354.92 | H96: 337.53 | I96: 327.07 | J96: 382.77 | K96: 393.23 | L96: 410.62 | M96: 375.85 | N96: 348 | O96: 29845000 | P96: 1.15%
A97: 87 | B97: Metals | C97: JSWSTEEL | D97: 2021-04-29 | E97: 510.60 | F97: 499.38 | G97: 483.67 | H97: 456.73 | I97: 441.02 | J97: 526.32 | K97: 542.03 | L97: 568.97 | M97: 515.1 | N97: 472.45 | O97: 34362900 | P97: -2.05%
A98: 88 | B98: Others | C98: JUBLFOOD | D98: 2021-04-29 | E98: 2969.30 | F98: 2954.35 | G98: 2929.15 | H98: 2889.00 | I98: 2863.80 | J98: 2994.50 | K98: 3019.70 | L98: 3059.85 | M98: 2979.55 | N98: 2914.2 | O98: 1305250 | P98: -1.95%
A99: 89 | B99: Banking | C99: KOTAKBANK | D99: 2021-04-29 | E99: 1817.00 | F99: 1799.60 | G99: 1776.80 | H99: 1736.60 | I99: 1713.80 | J99: 1839.80 | K99: 1862.60 | L99: 1902.80 | M99: 1822.4 | N99: 1759.4 | O99: 13060400 | P99: 0.71%
A100: 90 | B100: Finance | C100: L&TFH | D100: 2021-04-29 | E100: 100.05 | F100: 98.95 | G100: 97.50 | H100: 94.95 | I100: 93.50 | J100: 101.50 | K100: 102.95 | L100: 105.50 | M100: 100.4 | N100: 96.4 | O100: 29145784 | P100: 2.77%
A101: 91 | B101: Others | C101: LALPATHLAB | D101: 2021-04-29 | E101: 2722.90 | F101: 2705.12 | G101: 2677.23 | H101: 2631.57 | I101: 2603.68 | J101: 2750.78 | K101: 2778.67 | L101: 2824.33 | M101: 2733 | N101: 2659.45 | O101: 193000 | P101: -1.15%
A102: 92 | B102: Finance | C102: LICHSGFIN | D102: 2021-04-29 | E102: 436.10 | F102: 432.85 | G102: 428.45 | H102: 420.80 | I102: 416.40 | J102: 440.50 | K102: 444.90 | L102: 452.55 | M102: 437.25 | N102: 425.2 | O102: 6860000 | P102: -1.15%
A103: 93 | B103: Capital_Goods | C103: LT | D103: 2021-04-29 | E103: 1453.15 | F103: 1445.73 | G103: 1433.97 | H103: 1414.78 | I103: 1403.02 | J103: 1464.92 | K103: 1476.68 | L103: 1495.87 | M103: 1457.5 | N103: 1426.55 | O103: 13459025 | P103: -1.66%
A104: 94 | B104: Technology | C104: LTI | D104: 2021-04-29 | E104: 4146.80 | F104: 4156.13 | G104: 4094.67 | H104: 4042.53 | I104: 3981.07 | J104: 4208.27 | K104: 4269.73 | L104: 4321.87 | M104: 4217.6 | N104: 4104 | O104: 294300 | P104: 4.58%
A105: 95 | B105: Technology | C105: LTTS | D105: 2021-04-29 | E105: 2740.60 | F105: 2738.70 | G105: 2702.45 | H105: 2664.30 | I105: 2628.05 | J105: 2776.85 | K105: 2813.10 | L105: 2851.25 | M105: 2774.95 | N105: 2700.55 | O105: 445200 | P105: 3.39%
A106: 96 | B106: Pharma | C106: LUPIN | D106: 2021-04-29 | E106: 1031.85 | F106: 1031.53 | G106: 1023.57 | H106: 1015.28 | I106: 1007.32 | J106: 1039.82 | K106: 1047.78 | L106: 1056.07 | M106: 1039.5 | N106: 1023.25 | O106: 6470200 | P106: 1.81%
A107: 97 | B107: Automobile | C107: M&M | D107: 2021-04-29 | E107: 813.50 | F107: 804.87 | G107: 793.73 | H107: 773.97 | I107: 762.83 | J107: 824.63 | K107: 835.77 | L107: 855.53 | M107: 816 | N107: 785.1 | O107: 9793000 | P107: 1.89%
A108: 98 | B108: Finance | C108: M&MFIN | D108: 2021-04-29 | E108: 204.05 | F108: 202.03 | G108: 199.07 | H108: 194.08 | I108: 191.12 | J108: 207.02 | K108: 209.98 | L108: 214.97 | M108: 205 | N108: 197.05 | O108: 16584000 | P108: -0.60%
A109: 99 | B109: Finance | C109: MANAPPURAM | D109: 2021-04-29 | E109: 158.20 | F109: 155.82 | G109: 152.48 | H109: 146.77 | I109: 143.43 | J109: 161.53 | K109: 164.87 | L109: 170.58 | M109: 159.15 | N109: 150.1 | O109: 23454000 | P109: 9.53%
A110: 100 | B110: FMCG | C110: MARICO | D110: 2021-04-29 | E110: 409.80 | F110: 410.80 | G110: 407.85 | H110: 405.90 | I110: 402.95 | J110: 412.75 | K110: 415.70 | L110: 417.65 | M110: 413.75 | N110: 408.85 | O110: 7646000 | P110: 4.71%
A111: 101 | B111: Automobile | C111: MARUTI | D111: 2021-04-29 | E111: 6963.45 | F111: 6953.32 | G111: 6881.68 | H111: 6799.92 | I111: 6728.28 | J111: 7035.08 | K111: 7106.72 | L111: 7188.48 | M111: 7024.95 | N111: 6871.55 | O111: 2512200 | P111: -0.87%
A112: 102 | B112: FMCG | C112: MCDOWELL-N | D112: 2021-04-29 | E112: 562.80 | F112: 561.27 | G112: 557.83 | H112: 552.87 | I112: 549.43 | J112: 566.23 | K112: 569.67 | L112: 574.63 | M112: 564.7 | N112: 556.3 | O112: 13488750 | P112: 0.94%
A113: 103 | B113: Finance | C113: MFSL | D113: 2021-04-29 | E113: 884.50 | F113: 880.13 | G113: 871.37 | H113: 858.23 | I113: 849.47 | J113: 893.27 | K113: 902.03 | L113: 915.17 | M113: 888.9 | N113: 867 | O113: 2402400 | P113: -0.16%
A114: 104 | B114: Oil_Gas | C114: MGL | D114: 2021-04-29 | E114: 1191.15 | F114: 1186.22 | G114: 1170.43 | H114: 1149.72 | I114: 1133.93 | J114: 1206.93 | K114: 1222.72 | L114: 1243.43 | M114: 1202 | N114: 1165.5 | O114: 1207200 | P114: 7.19%
A115: 105 | B115: Technology | C115: MINDTREE | D115: 2021-04-29 | E115: 2092.60 | F115: 2093.53 | G115: 2065.07 | H115: 2037.53 | I115: 2009.07 | J115: 2121.07 | K115: 2149.53 | L115: 2177.07 | M115: 2122 | N115: 2066 | O115: 1865600 | P115: 6.00%
A116: 106 | B116: Automobile | C116: MOTHERSUMI | D116: 2021-04-29 | E116: 211.55 | F116: 209.65 | G116: 205.75 | H116: 199.95 | I116: 196.05 | J116: 215.45 | K116: 219.35 | L116: 225.15 | M116: 213.55 | N116: 203.85 | O116: 29834000 | P116: -0.23%
A117: 107 | B117: Technology | C117: MPHASIS | D117: 2021-04-29 | E117: 1762.95 | F117: 1777.63 | G117: 1735.47 | H117: 1707.98 | I117: 1665.82 | J117: 1805.12 | K117: 1847.28 | L117: 1874.77 | M117: 1819.8 | N117: 1750.15 | O117: 476775 | P117: 6.15%
A118: 108 | B118: Automobile | C118: MRF | D118: 2021-04-29 | E118: 83800.90 | F118: 83507.33 | G118: 82833.62 | H118: 81866.33 | I118: 81192.62 | J118: 84474.62 | K118: 85148.33 | L118: 86115.62 | M118: 84181.05 | N118: 82540.05 | O118: 43900 | P118: 1.71%
A119: 109 | B119: Finance | C119: MUTHOOTFIN | D119: 2021-04-29 | E119: 1221.30 | F119: 1216.50 | G119: 1209.05 | H119: 1196.80 | I119: 1189.35 | J119: 1228.75 | K119: 1236.20 | L119: 1248.45 | M119: 1223.95 | N119: 1204.25 | O119: 2769000 | P119: -0.83%
A120: 110 | B120: Others | C120: NAM-INDIA | D120: 2021-04-29 | E120: 347.05 | F120: 344.82 | G120: 340.23 | H120: 333.42 | I120: 328.83 | J120: 351.63 | K120: 356.22 | L120: 363.03 | M120: 349.4 | N120: 338 | O120: 924800 | P120: 18.44%
A121: 111 | B121: Metals | C121: NATIONALUM | D121: 2021-04-29 | E121: 59.30 | F121: 57.93 | G121: 56.22 | H121: 53.13 | I121: 51.42 | J121: 61.02 | K121: 62.73 | L121: 65.82 | M121: 59.65 | N121: 54.85 | O121: 74358000 | P121: 11.87%
A122: 112 | B122: Others | C122: NAUKRI | D122: 2021-04-29 | E122: 4292.75 | F122: 4280.67 | G122: 4206.23 | H122: 4119.72 | I122: 4045.28 | J122: 4367.18 | K122: 4441.62 | L122: 4528.13 | M122: 4355.1 | N122: 4194.15 | O122: 1442750 | P122: 3.46%
A123: 113 | B123: Chemical | C123: NAVINFLUOR | D123: 2021-04-29 | E123: 2797.90 | F123: 2798.22 | G123: 2767.68 | H123: 2737.47 | I123: 2706.93 | J123: 2828.43 | K123: 2858.97 | L123: 2889.18 | M123: 2828.75 | N123: 2768 | O123: 209025 | P123: 8.28%
A124: 114 | B124: FMCG | C124: NESTLEIND | D124: 2021-04-29 | E124: 17108.65 | F124: 17106.18 | G124: 17027.47 | H124: 16946.28 | I124: 16867.57 | J124: 17187.37 | K124: 17266.08 | L124: 17347.27 | M124: 17184.9 | N124: 17025 | O124: 304350 | P124: 3.94%
A125: 115 | B125: Metals | C125: NMDC | D125: 2021-04-29 | E125: 139.65 | F125: 138.80 | G125: 137.40 | H125: 135.15 | I125: 133.75 | J125: 141.05 | K125: 142.45 | L125: 144.70 | M125: 140.2 | N125: 136.55 | O125: 45077600 | P125: 5.95%
A126: 116 | B126: Power | C126: NTPC | D126: 2021-04-29 | E126: 108.75 | F126: 108.45 | G126: 107.75 | H126: 106.75 | I126: 106.05 | J126: 109.45 | K126: 110.15 | L126: 111.15 | M126: 109.15 | N126: 107.45 | O126: 82313700 | P126: 2.15%
A127: 117 | B127: Oil_Gas | C127: ONGC | D127: 2021-04-29 | E127: 105.00 | F127: 103.15 | G127: 100.90 | H127: 96.80 | I127: 94.55 | J127: 107.25 | K127: 109.50 | L127: 113.60 | M127: 105.4 | N127: 99.05 | O127: 45499300 | P127: 0.17%
A128: 118 | B128: Textile | C128: PAGEIND | D128: 2021-04-29 | E128: 30441.50 | F128: 30473.17 | G128: 30104.33 | H128: 29767.17 | I128: 29398.33 | J128: 30810.33 | K128: 31179.17 | L128: 31516.33 | M128: 30842 | N128: 30136 | O128: 57240 | P128: 0.32%
A129: 119 | B129: Pharma | C129: PEL | D129: 2021-04-29 | E129: 1795.30 | F129: 1801.83 | G129: 1769.47 | H129: 1743.63 | I129: 1711.27 | J129: 1827.67 | K129: 1860.03 | L129: 1885.87 | M129: 1834.2 | N129: 1776 | O129: 4022700 | P129: 9.18%
A130: 120 | B130: Oil_Gas | C130: PETRONET | D130: 2021-04-29 | E130: 229.00 | F130: 228.25 | G130: 227.05 | H130: 225.10 | I130: 223.90 | J130: 230.20 | K130: 231.40 | L130: 233.35 | M130: 229.45 | N130: 226.3 | O130: 18831000 | P130: -1.13%
A131: 121 | B131: Finance | C131: PFC | D131: 2021-04-29 | E131: 115.25 | F131: 114.90 | G131: 114.35 | H131: 113.45 | I131: 112.90 | J131: 115.80 | K131: 116.35 | L131: 117.25 | M131: 115.45 | N131: 114 | O131: 37522400 | P131: -0.38%
A132: 122 | B132: Pharma | C132: PFIZER | D132: 2021-04-29 | E132: 4585.00 | F132: 4581.33 | G132: 4541.17 | H132: 4497.33 | I132: 4457.17 | J132: 4625.17 | K132: 4665.33 | L132: 4709.17 | M132: 4621.5 | N132: 4537.5 | O132: 70750 | P132: 15.27%
A133: 123 | B133: FMCG | C133: PIDILITIND | D133: 2021-04-29 | E133: 1838.10 | F133: 1835.13 | G133: 1824.17 | H133: 1810.23 | I133: 1799.27 | J133: 1849.07 | K133: 1860.03 | L133: 1873.97 | M133: 1846.1 | N133: 1821.2 | O133: 1984000 | P133: 2.24%
A134: 124 | B134: Chemical | C134: PIIND | D134: 2021-04-29 | E134: 2264.85 | F134: 2277.28 | G134: 2234.57 | H134: 2204.28 | I134: 2161.57 | J134: 2307.57 | K134: 2350.28 | L134: 2380.57 | M134: 2320 | N134: 2247 | O134: 324000 | P134: 3.76%
A135: 125 | B135: Banking | C135: PNB | D135: 2021-04-29 | E135: 38.35 | F135: 37.92 | G135: 37.28 | H135: 36.22 | I135: 35.58 | J135: 38.98 | K135: 39.62 | L135: 40.68 | M135: 38.55 | N135: 36.85 | O135: 214464000 | P135: -0.07%
A136: 126 | B136: Power | C136: POWERGRID | D136: 2021-04-29 | E136: 220.10 | F136: 219.05 | G136: 217.25 | H136: 214.40 | I136: 212.60 | J136: 221.90 | K136: 223.70 | L136: 226.55 | M136: 220.85 | N136: 216.2 | O136: 18332000 | P136: -4.26%
A137: 127 | B137: Media | C137: PVR | D137: 2021-04-29 | E137: 1243.55 | F137: 1236.27 | G137: 1224.58 | H137: 1205.62 | I137: 1193.93 | J137: 1255.23 | K137: 1266.92 | L137: 1285.88 | M137: 1247.95 | N137: 1217.3 | O137: 1589742 | P137: 0.33%
A138: 128 | B138: Cement | C138: RAMCOCEM | D138: 2021-04-29 | E138: 1032.35 | F138: 1024.68 | G138: 1014.57 | H138: 996.78 | I138: 986.67 | J138: 1042.47 | K138: 1052.58 | L138: 1070.37 | M138: 1034.8 | N138: 1006.9 | O138: 1752700 | P138: 0.44%
A139: 129 | B139: Banking | C139: RBLBANK | D139: 2021-04-29 | E139: 217.85 | F139: 215.38 | G139: 211.92 | H139: 205.98 | I139: 202.52 | J139: 221.32 | K139: 224.78 | L139: 230.72 | M139: 218.85 | N139: 209.45 | O139: 21712300 | P139: -1.72%
A140: 130 | B140: Power | C140: RECLTD | D140: 2021-04-29 | E140: 133.55 | F140: 132.93 | G140: 132.07 | H140: 130.58 | I140: 129.72 | J140: 134.42 | K140: 135.28 | L140: 136.77 | M140: 133.8 | N140: 131.45 | O140: 18390000 | P140: -1.13%
A141: 131 | B141: Oil_Gas | C141: RELIANCE | D141: 2021-04-29 | E141: 2037.20 | F141: 2032.82 | G141: 2021.63 | H141: 2006.07 | I141: 1994.88 | J141: 2048.38 | K141: 2059.57 | L141: 2075.13 | M141: 2044 | N141: 2017.25 | O141: 28362000 | P141: 0.40%
A142: 132 | B142: Metals | C142: SAIL | D142: 2021-04-29 | E142: 84.40 | F142: 83.23 | G142: 81.77 | H142: 79.13 | I142: 77.67 | J142: 85.87 | K142: 87.33 | L142: 89.97 | M142: 84.7 | N142: 80.6 | O142: 144723000 | P142: -6.06%
A143: 133 | B143: Finance | C143: SBILIFE | D143: 2021-04-29 | E143: 888.30 | F143: 886.03 | G143: 880.27 | H143: 872.23 | I143: 866.47 | J143: 894.07 | K143: 899.83 | L143: 907.87 | M143: 891.8 | N143: 878 | O143: 5289000 | P143: -0.61%
A144: 134 | B144: Banking | C144: SBIN | D144: 2021-04-29 | E144: 373.45 | F144: 370.82 | G144: 367.48 | H144: 361.52 | I144: 358.18 | J144: 376.78 | K144: 380.12 | L144: 386.08 | M144: 374.15 | N144: 364.85 | O144: 95559000 | P144: 2.38%
A145: 135 | B145: Cement | C145: SHREECEM | D145: 2021-04-29 | E145: 30076.60 | F145: 30005.95 | G145: 29565.65 | H145: 29054.70 | I145: 28614.40 | J145: 30516.90 | K145: 30957.20 | L145: 31468.15 | M145: 30446.25 | N145: 29495 | O145: 135050 | P145: 2.08%
A146: 136 | B146: Capital_Goods | C146: SIEMENS | D146: 2021-04-29 | E146: 1874.15 | F146: 1866.43 | G146: 1853.02 | H146: 1831.88 | I146: 1818.47 | J146: 1887.57 | K146: 1900.98 | L146: 1922.12 | M146: 1879.85 | N146: 1845.3 | O146: 684750 | P146: 3.75%
A147: 137 | B147: Textile | C147: SRF | D147: 2021-04-29 | E147: 5787.95 | F147: 5691.20 | G147: 5561.40 | H147: 5334.85 | I147: 5205.05 | J147: 5917.75 | K147: 6047.55 | L147: 6274.10 | M147: 5821 | N147: 5464.65 | O147: 387500 | P147: 15.50%
A148: 138 | B148: Finance | C148: SRTRANSFIN | D148: 2021-04-29 | E148: 1477.60 | F148: 1462.37 | G148: 1441.78 | H148: 1405.97 | I148: 1385.38 | J148: 1498.18 | K148: 1518.77 | L148: 1554.58 | M148: 1482.95 | N148: 1426.55 | O148: 3810400 | P148: 5.89%
A149: 139 | B149: Pharma | C149: SUNPHARMA | D149: 2021-04-29 | E149: 615.20 | F149: 611.08 | G149: 605.22 | H149: 595.23 | I149: 589.37 | J149: 621.07 | K149: 626.93 | L149: 636.92 | M149: 616.95 | N149: 601.1 | O149: 41613600 | P149: -0.85%
A150: 140 | B150: Media | C150: SUNTV | D150: 2021-04-29 | E150: 482.00 | F150: 478.83 | G150: 473.67 | H150: 465.33 | I150: 460.17 | J150: 487.17 | K150: 492.33 | L150: 500.67 | M150: 484 | N150: 470.5 | O150: 12348000 | P150: 0.82%
A151: 141 | B151: Chemical | C151: TATACHEM | D151: 2021-04-29 | E151: 785.50 | F151: 781.28 | G151: 765.12 | H151: 744.73 | I151: 728.57 | J151: 801.67 | K151: 817.83 | L151: 838.22 | M151: 797.45 | N151: 760.9 | O151: 10140000 | P151: 9.55%
A152: 142 | B152: FMCG | C152: TATACONSUM | D152: 2021-04-29 | E152: 654.30 | F152: 651.58 | G152: 645.62 | H152: 636.93 | I152: 630.97 | J152: 660.27 | K152: 666.23 | L152: 674.92 | M152: 657.55 | N152: 642.9 | O152: 15711300 | P152: 0.34%
A153: 143 | B153: Automobile | C153: TATAMOTORS | D153: 2021-04-29 | E153: 309.95 | F153: 308.92 | G153: 305.53 | H153: 301.12 | I153: 297.73 | J153: 313.33 | K153: 316.72 | L153: 321.13 | M153: 312.3 | N153: 304.5 | O153: 93337500 | P153: -0.25%
A154: 144 | B154: Power | C154: TATAPOWER | D154: 2021-04-29 | E154: 105.95 | F154: 105.42 | G154: 104.48 | H154: 103.02 | I154: 102.08 | J154: 106.88 | K154: 107.82 | L154: 109.28 | M154: 106.35 | N154: 103.95 | O154: 130113000 | P154: -0.22%
A155: 145 | B155: Metals | C155: TATASTEEL | D155: 2021-04-29 | E155: 866.05 | F155: 853.62 | G155: 834.68 | H155: 803.32 | I155: 784.38 | J155: 884.98 | K155: 903.92 | L155: 935.28 | M155: 872.55 | N155: 822.25 | O155: 46063200 | P155: 1.36%
A156: 146 | B156: Technology | C156: TCS | D156: 2021-04-29 | E156: 3190.15 | F156: 3194.93 | G156: 3153.32 | H156: 3116.48 | I156: 3074.87 | J156: 3231.77 | K156: 3273.38 | L156: 3310.22 | M156: 3236.55 | N156: 3158.1 | O156: 9038100 | P156: 12.11%
A157: 147 | B157: Technology | C157: TECHM | D157: 2021-04-29 | E157: 1000.15 | F157: 1002.25 | G157: 990.50 | H157: 980.85 | I157: 969.10 | J157: 1011.90 | K157: 1023.65 | L157: 1033.30 | M157: 1014 | N157: 992.6 | O157: 12867600 | P157: 2.40%
A158: 148 | B158: FMCG | C158: TITAN | D158: 2021-04-29 | E158: 1570.10 | F158: 1577.33 | G158: 1552.77 | H158: 1535.43 | I158: 1510.87 | J158: 1594.67 | K158: 1619.23 | L158: 1636.57 | M158: 1601.9 | N158: 1560 | O158: 6323250 | P158: 0.37%
A159: 149 | B159: Pharma | C159: TORNTPHARM | D159: 2021-04-29 | E159: 2568.55 | F159: 2561.88 | G159: 2548.77 | H159: 2528.98 | I159: 2515.87 | J159: 2581.67 | K159: 2594.78 | L159: 2614.57 | M159: 2575 | N159: 2542.1 | O159: 901250 | P159: -0.22%
A160: 150 | B160: Power | C160: TORNTPOWER | D160: 2021-04-29 | E160: 430.15 | F160: 428.97 | G160: 426.58 | H160: 423.02 | I160: 420.63 | J160: 432.53 | K160: 434.92 | L160: 438.48 | M160: 431.35 | N160: 425.4 | O160: 2664000 | P160: 0.23%
A161: 151 | B161: Others | C161: TRENT | D161: 2021-04-29 | E161: 757.20 | F161: 754.50 | G161: 746.00 | H161: 734.80 | I161: 726.30 | J161: 765.70 | K161: 774.20 | L161: 785.40 | M161: 763 | N161: 743.3 | O161: 1015000 | P161: 8.02%
A162: 152 | B162: Automobile | C162: TVSMOTOR | D162: 2021-04-29 | E162: 591.45 | F162: 588.38 | G162: 584.27 | H162: 577.08 | I162: 572.97 | J162: 595.57 | K162: 599.68 | L162: 606.87 | M162: 592.5 | N162: 581.2 | O162: 3837400 | P162: 2.01%
A163: 153 | B163: FMCG | C163: UBL | D163: 2021-04-29 | E163: 1250.85 | F163: 1247.93 | G163: 1240.32 | H163: 1229.78 | I163: 1222.17 | J163: 1258.47 | K163: 1266.08 | L163: 1276.62 | M163: 1255.55 | N163: 1237.4 | O163: 1057000 | P163: 1.07%
A164: 154 | B164: Cement | C164: ULTRACEMCO | D164: 2021-04-29 | E164: 6945.80 | F164: 6902.82 | G164: 6819.33 | H164: 6692.87 | I164: 6609.38 | J164: 7029.28 | K164: 7112.77 | L164: 7239.23 | M164: 6986.3 | N164: 6776.35 | O164: 1703800 | P164: -0.46%
A165: 155 | B165: Chemical | C165: UPL | D165: 2021-04-29 | E165: 657.65 | F165: 652.70 | G165: 644.40 | H165: 631.15 | I165: 622.85 | J165: 665.95 | K165: 674.25 | L165: 687.50 | M165: 661 | N165: 639.45 | O165: 20368400 | P165: 0.38%
A166: 156 | B166: Metals | C166: VEDL | D166: 2021-04-29 | E166: 231.70 | F166: 231.17 | G166: 229.48 | H166: 227.27 | I166: 225.58 | J166: 233.38 | K166: 235.07 | L166: 237.28 | M166: 232.85 | N166: 228.95 | O166: 64976000 | P166: -6.32%
A167: 157 | B167: Capital_Goods | C167: VOLTAS | D167: 2021-04-29 | E167: 1013.90 | F167: 1014.28 | G167: 1006.62 | H167: 999.33 | I167: 991.67 | J167: 1021.57 | K167: 1029.23 | L167: 1036.52 | M167: 1021.95 | N167: 1007 | O167: 3540000 | P167: -0.11%
A168: 158 | B168: Technology | C168: WIPRO | D168: 2021-04-29 | E168: 419.55 | F168: 420.60 | G168: 415.95 | H168: 412.35 | I168: 407.70 | J168: 424.20 | K168: 428.85 | L168: 432.45 | M168: 425.25 | N168: 417 | O168: 35254400 | P168: 1.96%
A169: 159 | B169: Media | C169: ZEEL | D169: 2021-04-29 | E169: 210.80 | F169: 208.90 | G169: 205.30 | H169: 199.80 | I169: 196.20 | J169: 214.40 | K169: 218.00 | L169: 223.50 | M169: 212.5 | N169: 203.4 | O169: 50664000 | P169: 3.95%
A175: Pivot Point: This is trigger point for intra day buy/sell based on the price range of the previous day
A176: As per the tool,the trader should take BUY position just above Pivot and keep the stop loss of pivot point and the first target would be Resistance 1(R1)
A177: If R1 is crossed then R2 becomes the next target with stop loss of at R1
A178: Similarly if price goes below pivot point then the trader should sell and keep a stop loss of pivot point and the first target would be S1
A179: If S1 is crossed then S2 becomes the next target with stop loss of at S1
A181: Disclaimer:
A182: This document has been prepared by the Retail Research Desk of Asit C Mehta
A183: Investment Intermediates Ltd. and is meant for use of the recipient only
A184: and is not for circulation. This document is not to be reported or
A185: copied or made available to others. It should not be considered to be
A186: taken as an offer to sell or a solicitation to buy any security. The
A187: information contained herein is from sources believed reliable. We do
A188: not represent that it is accurate or complete and it should not be
A189: relied upon as such. We may from time to time have positions in and buy
A190: and sell securities referred to herein

Sheet Cash Intra
M5: Back to Main Page
A6: FOR INTRA DAY TRADING | K6: =Main!B10 -> 2021-04-05
A8: Sr.no | B8: Scrip | C8: CLOSE RATE | D8: Pivot Point | E8: Supports | H8: Resistances
C9: Point | E9: S1 | F9: S2 | G9: S3 | H9: R1 | I9: R2 | J9: R3 | K9: HIGH | L9: LOW | M9: Total Trade Quanity in Lakhs
A10: 1 | B10: Nifty 50 | C10: 14867.35 | D10: 14814.33 | E10: 14745.47 | F10: 14623.58 | G10: 14554.72 | H10: 14936.22 | I10: 15005.08 | J10: 15126.97 | K10: 14883.2 | L10: 14692.45
A11: 2 | B11: Nifty Bank | C11: 33858 | D11: 33671.97 | E11: 33394.78 | F11: 32931.57 | G11: 32654.38 | H11: 34135.18 | I11: 34412.37 | J11: 34875.58 | K11: 33949.15 | L11: 33208.75
A12: 3 | B12: Nifty CPSE | C12: 1800.55 | D12: 1793.90 | E12: 1783.35 | F12: 1766.15 | G12: 1755.60 | H12: 1811.10 | I12: 1821.65 | J12: 1838.85 | K12: 1804.45 | L12: 1776.7
A13: 4 | B13: Nifty Infra | C13: 4149.25 | D13: 4132.87 | E13: 4109.78 | F13: 4070.32 | G13: 4047.23 | H13: 4172.33 | I13: 4195.42 | J13: 4234.88 | K13: 4155.95 | L13: 4093.4
A14: 5 | B14: Nifty IT | C14: 25980.4 | D14: 26041.62 | E14: 25794.13 | F14: 25607.87 | G14: 25360.38 | H14: 26227.88 | I14: 26475.37 | J14: 26661.63 | K14: 26289.1 | L14: 25855.35
A15: 6 | B15: Nifty PSE | C15: 3158.4 | D15: 3144.05 | E15: 3124.25 | F15: 3090.10 | G15: 3070.30 | H15: 3178.20 | I15: 3198.00 | J15: 3232.15 | K15: 3163.85 | L15: 3109.9
A16: 7 | B16: Nifty Midcap 50 | C16: 6917.35 | D16: 6879.00 | E16: 6827.75 | F16: 6738.15 | G16: 6686.90 | H16: 6968.60 | I16: 7019.85 | J16: 7109.45 | K16: 6930.25 | L16: 6789.4
A17: 8 | B17: ACC | C17: 1913.35 | D17: 1906.77 | E17: 1893.53 | F17: 1873.72 | G17: 1860.48 | H17: 1926.58 | I17: 1939.82 | J17: 1959.63 | K17: 1920 | L17: 1886.95 | M17: 7.65296
A18: 9 | B18: AUBANK | C18: 1267.9 | D18: 1253.63 | E18: 1229.27 | F18: 1190.63 | G18: 1166.27 | H18: 1292.27 | I18: 1316.63 | J18: 1355.27 | K18: 1278 | L18: 1215 | M18: 10.87053
A19: 10 | B19: AARTIIND | C19: 1363.8 | D19: 1356.27 | E19: 1322.53 | F19: 1281.27 | G19: 1247.53 | H19: 1397.53 | I19: 1431.27 | J19: 1472.53 | K19: 1390 | L19: 1315 | M19: 6.13919
A20: 11 | B20: ABBOTINDIA | C20: 14980.05 | D20: 15013.70 | E20: 14867.35 | F20: 14754.65 | G20: 14608.30 | H20: 15126.40 | I20: 15272.75 | J20: 15385.45 | K20: 15160.05 | L20: 14901 | M20: 0.21203
A21: 12 | B21: ADANIENT | C21: 1107.2 | D21: 1086.08 | E21: 1056.12 | F21: 1005.03 | G21: 975.07 | H21: 1137.17 | I21: 1167.13 | J21: 1218.22 | K21: 1116.05 | L21: 1035 | M21: 127.13083
A22: 13 | B22: ADANIGREEN | C22: 1160.05 | D22: 1141.67 | E22: 1123.28 | F22: 1086.52 | G22: 1068.13 | H22: 1178.43 | I22: 1196.82 | J22: 1233.58 | K22: 1160.05 | L22: 1104.9 | M22: 5.23216
A23: 14 | B23: ADANIPORTS | C23: 736.25 | D23: 727.75 | E23: 713.50 | F23: 690.75 | G23: 676.50 | H23: 750.50 | I23: 764.75 | J23: 787.50 | K23: 742 | L23: 705 | M23: 150.17049
A24: 15 | B24: ATGL | C24: 1060.65 | D24: 1037.65 | E24: 987.50 | F24: 914.35 | G24: 864.20 | H24: 1110.80 | I24: 1160.95 | J24: 1234.10 | K24: 1087.8 | L24: 964.5 | M24: 35.77352
A25: 16 | B25: ADANITRANS | C25: 999.2 | D25: 971.82 | E25: 944.43 | F25: 889.67 | G25: 862.28 | H25: 1026.58 | I25: 1053.97 | J25: 1108.73 | K25: 999.2 | L25: 917.05 | M25: 22.13099
A26: 17 | B26: ABCAPITAL | C26: 121.55 | D26: 121.53 | E26: 120.07 | F26: 118.58 | G26: 117.12 | H26: 123.02 | I26: 124.48 | J26: 125.97 | K26: 123 | L26: 120.05 | M26: 24.29443
A27: 18 | B27: ABFRL | C27: 198.95 | D27: 201.17 | E27: 195.33 | F27: 191.72 | G27: 185.88 | H27: 204.78 | I27: 210.62 | J27: 214.23 | K27: 207 | L27: 197.55 | M27: 24.52891
A28: 19 | B28: AJANTPHARM | C28: 1748.45 | D28: 1760.57 | E28: 1712.88 | F28: 1677.32 | G28: 1629.63 | H28: 1796.13 | I28: 1843.82 | J28: 1879.38 | K28: 1808.25 | L28: 1725 | M28: 2.1801
A29: 20 | B29: APLLTD | C29: 987.15 | D29: 979.07 | E29: 968.13 | F29: 949.12 | G29: 938.18 | H29: 998.08 | I29: 1009.02 | J29: 1028.03 | K29: 990 | L29: 960.05 | M29: 3.97081
A30: 21 | B30: ALKEM | C30: 2775.45 | D30: 2768.23 | E30: 2742.47 | F30: 2709.48 | G30: 2683.72 | H30: 2801.22 | I30: 2826.98 | J30: 2859.97 | K30: 2794 | L30: 2735.25 | M30: 0.79864
A31: 22 | B31: AMARAJABAT | C31: 860.5 | D31: 860.52 | E31: 855.08 | F31: 849.67 | G31: 844.23 | H31: 865.93 | I31: 871.37 | J31: 876.78 | K31: 865.95 | L31: 855.1 | M31: 4.00848
A32: 23 | B32: AMBUJACEM | C32: 311 | D32: 310.57 | E32: 307.68 | F32: 304.37 | G32: 301.48 | H32: 313.88 | I32: 316.77 | J32: 320.08 | K32: 313.45 | L32: 307.25 | M32: 46.89185
A33: 24 | B33: APOLLOHOSP | C33: 2894.05 | D33: 2883.80 | E33: 2853.65 | F33: 2813.25 | G33: 2783.10 | H33: 2924.20 | I33: 2954.35 | J33: 2994.75 | K33: 2913.95 | L33: 2843.4 | M33: 8.42489
A34: 25 | B34: APOLLOTYRE | C34: 236.05 | D34: 232.33 | E34: 227.77 | F34: 219.48 | G34: 214.92 | H34: 240.62 | I34: 245.18 | J34: 253.47 | K34: 236.9 | L34: 224.05 | M34: 60.79701
A35: 26 | B35: ASHOKLEY | C35: 118.15 | D35: 116.80 | E35: 114.85 | F35: 111.55 | G35: 109.60 | H35: 120.10 | I35: 122.05 | J35: 125.35 | K35: 118.75 | L35: 113.5 | M35: 219.38734
A36: 27 | B36: ASIANPAINT | C36: 2551.75 | D36: 2549.43 | E36: 2534.32 | F36: 2516.88 | G36: 2501.77 | H36: 2566.87 | I36: 2581.98 | J36: 2599.42 | K36: 2564.55 | L36: 2532 | M36: 12.19588
A37: 28 | B37: AUROPHARMA | C37: 881.3 | D37: 878.20 | E37: 869.45 | F37: 857.60 | G37: 848.85 | H37: 890.05 | I37: 898.80 | J37: 910.65 | K37: 886.95 | L37: 866.35 | M37: 14.40078
A38: 29 | B38: DMART | C38: 2912.7 | D38: 2897.73 | E38: 2870.47 | F38: 2828.23 | G38: 2800.97 | H38: 2939.97 | I38: 2967.23 | J38: 3009.47 | K38: 2925 | L38: 2855.5 | M38: 4.16624
A39: 30 | B39: AXISBANK | C39: 713 | D39: 708.52 | E39: 700.03 | F39: 687.07 | G39: 678.58 | H39: 721.48 | I39: 729.97 | J39: 742.93 | K39: 717 | L39: 695.55 | M39: 130.90326
A40: 31 | B40: BAJAJ-AUTO | C40: 3743.05 | D40: 3732.52 | E40: 3700.73 | F40: 3658.42 | G40: 3626.63 | H40: 3774.83 | I40: 3806.62 | J40: 3848.93 | K40: 3764.3 | L40: 3690.2 | M40: 8.61229
A41: 32 | B41: BAJFINANCE | C41: 5272.15 | D41: 5240.87 | E41: 5193.23 | F41: 5114.32 | G41: 5066.68 | H41: 5319.78 | I41: 5367.42 | J41: 5446.33 | K41: 5288.5 | L41: 5161.95 | M41: 21.48234
A42: 33 | B42: BAJAJFINSV | C42: 9789.5 | D42: 9761.00 | E42: 9696.00 | F42: 9602.50 | G42: 9537.50 | H42: 9854.50 | I42: 9919.50 | J42: 10013.00 | K42: 9826 | L42: 9667.5 | M42: 3.10065
A43: 34 | B43: BAJAJHLDNG | C43: 3338.7 | D43: 3332.02 | E43: 3284.03 | F43: 3229.37 | G43: 3181.38 | H43: 3386.68 | I43: 3434.67 | J43: 3489.33 | K43: 3380 | L43: 3277.35 | M43: 0.2452
A44: 35 | B44: BALKRISIND | C44: 1681.8 | D44: 1681.82 | E44: 1655.43 | F44: 1629.07 | G44: 1602.68 | H44: 1708.18 | I44: 1734.57 | J44: 1760.93 | K44: 1708.2 | L44: 1655.45 | M44: 3.93382
A45: 36 | B45: BANDHANBNK | C45: 350.9 | D45: 348.28 | E45: 341.62 | F45: 332.33 | G45: 325.67 | H45: 357.57 | I45: 364.23 | J45: 373.52 | K45: 354.95 | L45: 339 | M45: 50.01602
A46: 37 | B46: BANKBARODA | C46: 75.6 | D46: 75.03 | E46: 74.07 | F46: 72.53 | G46: 71.57 | H46: 76.57 | I46: 77.53 | J46: 79.07 | K46: 76 | L46: 73.5 | M46: 385.40206
A47: 38 | B47: BANKINDIA | C47: 69.9 | D47: 70.37 | E47: 68.43 | F47: 66.97 | G47: 65.03 | H47: 71.83 | I47: 73.77 | J47: 75.23 | K47: 72.3 | L47: 68.9 | M47: 105.93022
A48: 39 | B48: BATAINDIA | C48: 1425.05 | D48: 1424.45 | E48: 1411.15 | F48: 1397.25 | G48: 1383.95 | H48: 1438.35 | I48: 1451.65 | J48: 1465.55 | K48: 1437.75 | L48: 1410.55 | M48: 5.73721
A49: 40 | B49: BERGEPAINT | C49: 764.35 | D49: 765.12 | E49: 760.23 | F49: 756.12 | G49: 751.23 | H49: 769.23 | I49: 774.12 | J49: 778.23 | K49: 770 | L49: 761 | M49: 7.20353
A50: 41 | B50: BEL | C50: 126.1 | D50: 125.80 | E50: 124.60 | F50: 123.10 | G50: 121.90 | H50: 127.30 | I50: 128.50 | J50: 130.00 | K50: 127 | L50: 124.3 | M50: 100.06344
A51: 42 | B51: BHARATFORG | C51: 613.35 | D51: 608.53 | E51: 601.07 | F51: 588.78 | G51: 581.32 | H51: 620.82 | I51: 628.28 | J51: 640.57 | K51: 616 | L51: 596.25 | M51: 13.38081
A52: 43 | B52: BHEL | C52: 50.95 | D52: 50.37 | E52: 49.53 | F52: 48.12 | G52: 47.28 | H52: 51.78 | I52: 52.62 | J52: 54.03 | K52: 51.2 | L52: 48.95 | M52: 529.6511
A53: 44 | B53: BPCL | C53: 437.4 | D53: 435.13 | E53: 430.32 | F53: 423.23 | G53: 418.42 | H53: 442.22 | I53: 447.03 | J53: 454.12 | K53: 439.95 | L53: 428.05 | M53: 45.78197
A54: 45 | B54: BHARTIARTL | C54: 520.8 | D54: 519.75 | E54: 515.60 | F54: 510.40 | G54: 506.25 | H54: 524.95 | I54: 529.10 | J54: 534.30 | K54: 523.9 | L54: 514.55 | M54: 69.80458
A55: 46 | B55: BIOCON | C55: 410.55 | D55: 410.85 | E55: 408.50 | F55: 406.45 | G55: 404.10 | H55: 412.90 | I55: 415.25 | J55: 417.30 | K55: 413.2 | L55: 408.8 | M55: 18.60699
A56: 47 | B56: BBTC | C56: 1145.45 | D56: 1136.68 | E56: 1124.97 | F56: 1104.48 | G56: 1092.77 | H56: 1157.17 | I56: 1168.88 | J56: 1189.37 | K56: 1148.4 | L56: 1116.2 | M56: 0.39852
A57: 48 | B57: BOSCHLTD | C57: 14178.9 | D57: 14205.67 | E57: 14006.38 | F57: 13833.87 | G57: 13634.58 | H57: 14378.18 | I57: 14577.47 | J57: 14749.98 | K57: 14404.95 | L57: 14033.15 | M57: 0.56398
A58: 49 | B58: BRITANNIA | C58: 3618.5 | D58: 3632.92 | E58: 3595.83 | F58: 3573.17 | G58: 3536.08 | H58: 3655.58 | I58: 3692.67 | J58: 3715.33 | K58: 3670 | L58: 3610.25 | M58: 4.60658
A59: 50 | B59: CESC | C59: 605.55 | D59: 603.52 | E59: 597.03 | F59: 588.52 | G59: 582.03 | H59: 612.03 | I59: 618.52 | J59: 627.03 | K59: 610 | L59: 595 | M59: 1.4971
A60: 51 | B60: CADILAHC | C60: 441.8 | D60: 443.13 | E60: 439.12 | F60: 436.43 | G60: 432.42 | H60: 445.82 | I60: 449.83 | J60: 452.52 | K60: 447.15 | L60: 440.45 | M60: 12.69615
A61: 52 | B61: CANBK | C61: 156.35 | D61: 154.78 | E61: 152.17 | F61: 147.98 | G61: 145.37 | H61: 158.97 | I61: 161.58 | J61: 165.77 | K61: 157.4 | L61: 150.6 | M61: 186.68358
A62: 53 | B62: CASTROLIND | C62: 124.8 | D62: 125.07 | E62: 123.73 | F62: 122.67 | G62: 121.33 | H62: 126.13 | I62: 127.47 | J62: 128.53 | K62: 126.4 | L62: 124 | M62: 8.89567
A63: 54 | B63: CHOLAFIN | C63: 562.5 | D63: 560.33 | E63: 551.77 | F63: 541.03 | G63: 532.47 | H63: 571.07 | I63: 579.63 | J63: 590.37 | K63: 568.9 | L63: 549.6 | M63: 44.61159
A64: 55 | B64: CIPLA | C64: 818.3 | D64: 817.97 | E64: 811.93 | F64: 805.57 | G64: 799.53 | H64: 824.33 | I64: 830.37 | J64: 836.73 | K64: 824 | L64: 811.6 | M64: 19.10949
A65: 56 | B65: CUB | C65: 161.1 | D65: 159.83 | E65: 157.72 | F65: 154.33 | G65: 152.22 | H65: 163.22 | I65: 165.33 | J65: 168.72 | K65: 161.95 | L65: 156.45 | M65: 15.02566
A66: 57 | B66: COALINDIA | C66: 132.15 | D66: 131.72 | E66: 131.03 | F66: 129.92 | G66: 129.23 | H66: 132.83 | I66: 133.52 | J66: 134.63 | K66: 132.4 | L66: 130.6 | M66: 62.26087
A67: 58 | B67: COFORGE | C67: 2933.45 | D67: 2964.13 | E67: 2857.47 | F67: 2781.48 | G67: 2674.82 | H67: 3040.12 | I67: 3146.78 | J67: 3222.77 | K67: 3070.8 | L67: 2888.15 | M67: 8.32101
A68: 59 | B68: COLPAL | C68: 1562.95 | D68: 1565.43 | E68: 1552.87 | F68: 1542.78 | G68: 1530.22 | H68: 1575.52 | I68: 1588.08 | J68: 1598.17 | K68: 1578 | L68: 1555.35 | M68: 2.2843
A69: 60 | B69: CONCOR | C69: 598.6 | D69: 599.32 | E69: 592.63 | F69: 586.67 | G69: 579.98 | H69: 605.28 | I69: 611.97 | J69: 617.93 | K69: 606 | L69: 593.35 | M69: 23.50611
A70: 61 | B70: COROMANDEL | C70: 748.9 | D70: 756.68 | E70: 738.47 | F70: 728.03 | G70: 709.82 | H70: 767.12 | I70: 785.33 | J70: 795.77 | K70: 774.9 | L70: 746.25 | M70: 6.00863
A71: 62 | B71: CROMPTON | C71: 393.25 | D71: 391.90 | E71: 384.80 | F71: 376.35 | G71: 369.25 | H71: 400.35 | I71: 407.45 | J71: 415.90 | K71: 399 | L71: 383.45 | M71: 13.17098
A72: 63 | B72: CUMMINSIND | C72: 895.35 | D72: 905.93 | E72: 877.62 | F72: 859.88 | G72: 831.57 | H72: 923.67 | I72: 951.98 | J72: 969.72 | K72: 934.25 | L72: 888.2 | M72: 15.46599
A73: 64 | B73: DLF | C73: 291.8 | D73: 289.63 | E73: 285.67 | F73: 279.53 | G73: 275.57 | H73: 295.77 | I73: 299.73 | J73: 305.87 | K73: 293.6 | L73: 283.5 | M73: 73.7209
A74: 65 | B74: DABUR | C74: 538.65 | D74: 539.80 | E74: 535.65 | F74: 532.65 | G74: 528.50 | H74: 542.80 | I74: 546.95 | J74: 549.95 | K74: 543.95 | L74: 536.8 | M74: 8.23482
A75: 66 | B75: DALBHARAT | C75: 1560.35 | D75: 1570.08 | E75: 1540.27 | F75: 1520.18 | G75: 1490.37 | H75: 1590.17 | I75: 1619.98 | J75: 1640.07 | K75: 1599.9 | L75: 1550 | M75: 1.92213
A76: 67 | B76: DHANI | C76: 172.35 | D76: 170.78 | E76: 156.67 | F76: 140.98 | G76: 126.87 | H76: 186.47 | I76: 200.58 | J76: 216.27 | K76: 184.9 | L76: 155.1 | M76: 108.7252
A77: 68 | B77: DIVISLAB | C77: 3616.1 | D77: 3619.37 | E77: 3599.73 | F77: 3583.37 | G77: 3563.73 | H77: 3635.73 | I77: 3655.37 | J77: 3671.73 | K77: 3639 | L77: 3603 | M77: 2.47
A78: 69 | B78: LALPATHLAB | C78: 2730.6 | D78: 2715.52 | E78: 2681.03 | F78: 2631.47 | G78: 2596.98 | H78: 2765.08 | I78: 2799.57 | J78: 2849.13 | K78: 2750 | L78: 2665.95 | M78: 2.89605
A79: 70 | B79: DRREDDY | C79: 4587.65 | D79: 4568.22 | E79: 4541.48 | F79: 4495.32 | G79: 4468.58 | H79: 4614.38 | I79: 4641.12 | J79: 4687.28 | K79: 4594.95 | L79: 4522.05 | M79: 6.4764
A80: 71 | B80: EDELWEISS | C80: 66.45 | D80: 65.33 | E80: 64.22 | F80: 61.98 | G80: 60.87 | H80: 67.57 | I80: 68.68 | J80: 70.92 | K80: 66.45 | L80: 63.1 | M80: 40.24006
A81: 72 | B81: EICHERMOT | C81: 2631.15 | D81: 2623.00 | E81: 2597.00 | F81: 2562.85 | G81: 2536.85 | H81: 2657.15 | I81: 2683.15 | J81: 2717.30 | K81: 2649 | L81: 2588.85 | M81: 7.44423
A82: 73 | B82: EMAMILTD | C82: 488.05 | D82: 487.43 | E82: 481.07 | F82: 474.08 | G82: 467.72 | H82: 494.42 | I82: 500.78 | J82: 507.77 | K82: 493.8 | L82: 480.45 | M82: 8.28339
A83: 74 | B83: ENDURANCE | C83: 1440.75 | D83: 1443.72 | E83: 1422.33 | F83: 1403.92 | G83: 1382.53 | H83: 1462.13 | I83: 1483.52 | J83: 1501.93 | K83: 1465.1 | L83: 1425.3 | M83: 0.68246
A84: 75 | B84: ESCORTS | C84: 1274.05 | D84: 1284.75 | E84: 1252.60 | F84: 1231.15 | G84: 1199.00 | H84: 1306.20 | I84: 1338.35 | J84: 1359.80 | K84: 1316.9 | L84: 1263.3 | M84: 15.97734
A85: 76 | B85: EXIDEIND | C85: 185.8 | D85: 185.40 | E85: 184.50 | F85: 183.20 | G85: 182.30 | H85: 186.70 | I85: 187.60 | J85: 188.90 | K85: 186.3 | L85: 184.1 | M85: 20.10308
A86: 77 | B86: FEDERALBNK | C86: 78.85 | D86: 78.22 | E86: 76.93 | F86: 75.02 | G86: 73.73 | H86: 80.13 | I86: 81.42 | J86: 83.33 | K86: 79.5 | L86: 76.3 | M86: 179.48568
A87: 78 | B87: FORTIS | C87: 202.25 | D87: 201.40 | E87: 199.00 | F87: 195.75 | G87: 193.35 | H87: 204.65 | I87: 207.05 | J87: 210.30 | K87: 203.8 | L87: 198.15 | M87: 16.50936
A88: 79 | B88: FRETAIL | C88: 44.75 | D88: 43.35 | E88: 41.95 | F88: 39.15 | G88: 37.75 | H88: 46.15 | I88: 47.55 | J88: 50.35 | K88: 44.75 | L88: 40.55 | M88: 44.58582
A89: 80 | B89: GAIL | C89: 140.15 | D89: 138.77 | E89: 136.58 | F89: 133.02 | G89: 130.83 | H89: 142.33 | I89: 144.52 | J89: 148.08 | K89: 140.95 | L89: 135.2 | M89: 188.28032
A90: 81 | B90: GMRINFRA | C90: 25 | D90: 24.75 | E90: 24.35 | F90: 23.70 | G90: 23.30 | H90: 25.40 | I90: 25.80 | J90: 26.45 | K90: 25.15 | L90: 24.1 | M90: 192.23855
A91: 82 | B91: GICRE | C91: 208.2 | D91: 205.07 | E91: 199.13 | F91: 190.07 | G91: 184.13 | H91: 214.13 | I91: 220.07 | J91: 229.13 | K91: 211 | L91: 196 | M91: 25.21612
A92: 83 | B92: GLENMARK | C92: 483.25 | D92: 477.87 | E92: 467.73 | F92: 452.22 | G92: 442.08 | H92: 493.38 | I92: 503.52 | J92: 519.03 | K92: 488 | L92: 462.35 | M92: 21.83036
A93: 84 | B93: GODREJAGRO | C93: 518 | D93: 521.05 | E93: 509.75 | F93: 501.50 | G93: 490.20 | H93: 529.30 | I93: 540.60 | J93: 548.85 | K93: 532.35 | L93: 512.8 | M93: 1.30637
A94: 85 | B94: GODREJCP | C94: 726.3 | D94: 728.63 | E94: 721.37 | F94: 716.43 | G94: 709.17 | H94: 733.57 | I94: 740.83 | J94: 745.77 | K94: 735.9 | L94: 723.7 | M94: 6.81593
A95: 86 | B95: GODREJIND | C95: 539.5 | D95: 540.40 | E95: 532.50 | F95: 525.50 | G95: 517.60 | H95: 547.40 | I95: 555.30 | J95: 562.30 | K95: 548.3 | L95: 533.4 | M95: 1.93533
A96: 87 | B96: GODREJPROP | C96: 1391.35 | D96: 1386.35 | E96: 1366.30 | F96: 1341.25 | G96: 1321.20 | H96: 1411.40 | I96: 1431.45 | J96: 1456.50 | K96: 1406.4 | L96: 1361.3 | M96: 10.24026
A97: 88 | B97: GRASIM | C97: 1454.5 | D97: 1452.82 | E97: 1438.63 | F97: 1422.77 | G97: 1408.58 | H97: 1468.68 | I97: 1482.87 | J97: 1498.73 | K97: 1467 | L97: 1436.95 | M97: 12.70201
A98: 89 | B98: GUJGASLTD | C98: 547.8 | D98: 551.93 | E98: 537.87 | F98: 527.93 | G98: 513.87 | H98: 561.87 | I98: 575.93 | J98: 585.87 | K98: 566 | L98: 542 | M98: 16.6537
A99: 90 | B99: GSPL | C99: 276.3 | D99: 276.68 | E99: 272.97 | F99: 269.63 | G99: 265.92 | H99: 280.02 | I99: 283.73 | J99: 287.07 | K99: 280.4 | L99: 273.35 | M99: 9.64293
A100: 91 | B100: HCLTECH | C100: 1002.6 | D100: 1002.23 | E100: 990.97 | F100: 979.33 | G100: 968.07 | H100: 1013.87 | I100: 1025.13 | J100: 1036.77 | K100: 1013.5 | L100: 990.6 | M100: 52.69079
A101: 92 | B101: HDFCAMC | C101: 2963.35 | D101: 2943.17 | E101: 2911.33 | F101: 2859.32 | G101: 2827.48 | H101: 2995.18 | I101: 3027.02 | J101: 3079.03 | K101: 2975 | L101: 2891.15 | M101: 1.21493
A102: 93 | B102: HDFCBANK | C102: 1486.75 | D102: 1483.72 | E102: 1468.03 | F102: 1449.32 | G102: 1433.63 | H102: 1502.43 | I102: 1518.12 | J102: 1536.83 | K102: 1499.4 | L102: 1465 | M102: 178.81881
A103: 94 | B103: HDFCLIFE | C103: 691 | D103: 692.55 | E103: 680.75 | F103: 670.50 | G103: 658.70 | H103: 702.80 | I103: 714.60 | J103: 724.85 | K103: 704.35 | L103: 682.3 | M103: 34.43437
A104: 95 | B104: HAVELLS | C104: 1058.45 | D104: 1058.87 | E104: 1045.73 | F104: 1033.02 | G104: 1019.88 | H104: 1071.58 | I104: 1084.72 | J104: 1097.43 | K104: 1072 | L104: 1046.15 | M104: 10.32919
A105: 96 | B105: HEROMOTOCO | C105: 2956.1 | D105: 2964.68 | E105: 2924.42 | F105: 2892.73 | G105: 2852.47 | H105: 2996.37 | I105: 3036.63 | J105: 3068.32 | K105: 3004.95 | L105: 2933 | M105: 10.67722
A106: 97 | B106: HINDALCO | C106: 350.25 | D106: 343.57 | E106: 335.13 | F106: 320.02 | G106: 311.58 | H106: 358.68 | I106: 367.12 | J106: 382.23 | K106: 352 | L106: 328.45 | M106: 256.31843
A107: 98 | B107: HINDPETRO | C107: 237.6 | D107: 236.25 | E107: 233.85 | F107: 230.10 | G107: 227.70 | H107: 240.00 | I107: 242.40 | J107: 246.15 | K107: 238.65 | L107: 232.5 | M107: 36.20285
A108: 99 | B108: HINDUNILVR | C108: 2399.1 | D108: 2412.65 | E108: 2378.50 | F108: 2357.90 | G108: 2323.75 | H108: 2433.25 | I108: 2467.40 | J108: 2488.00 | K108: 2446.8 | L108: 2392.05 | M108: 15.32653
A109: 100 | B109: HINDZINC | C109: 280.25 | D109: 279.17 | E109: 275.33 | F109: 270.42 | G109: 266.58 | H109: 284.08 | I109: 287.92 | J109: 292.83 | K109: 283 | L109: 274.25 | M109: 14.64491
A110: 101 | B110: HUDCO | C110: 45.1 | D110: 45.02 | E110: 44.13 | F110: 43.17 | G110: 42.28 | H110: 45.98 | I110: 46.87 | J110: 47.83 | K110: 45.9 | L110: 44.05 | M110: 44.28835
A111: 102 | B111: HDFC | C111: 2531.45 | D111: 2516.13 | E111: 2495.32 | F111: 2459.18 | G111: 2438.37 | H111: 2552.27 | I111: 2573.08 | J111: 2609.22 | K111: 2536.95 | L111: 2480 | M111: 26.21437
A112: 103 | B112: ICICIBANK | C112: 594.4 | D112: 590.23 | E112: 584.37 | F112: 574.33 | G112: 568.47 | H112: 600.27 | I112: 606.13 | J112: 616.17 | K112: 596.1 | L112: 580.2 | M112: 156.3194
A113: 104 | B113: ICICIGI | C113: 1437.6 | D113: 1431.85 | E113: 1416.75 | F113: 1395.90 | G113: 1380.80 | H113: 1452.70 | I113: 1467.80 | J113: 1488.65 | K113: 1446.95 | L113: 1411 | M113: 4.10607
A114: 105 | B114: ICICIPRULI | C114: 444.35 | D114: 443.63 | E114: 438.22 | F114: 432.08 | G114: 426.67 | H114: 449.77 | I114: 455.18 | J114: 461.32 | K114: 449.05 | L114: 437.5 | M114: 15.20418
A115: 106 | B115: ISEC | C115: 394.6 | D115: 392.23 | E115: 386.97 | F115: 379.33 | G115: 374.07 | H115: 399.87 | I115: 405.13 | J115: 412.77 | K115: 397.5 | L115: 384.6 | M115: 6.13986
A116: 107 | B116: IDFCFIRSTB | C116: 57.05 | D116: 57.02 | E116: 56.18 | F116: 55.32 | G116: 54.48 | H116: 57.88 | I116: 58.72 | J116: 59.58 | K116: 57.85 | L116: 56.15 | M116: 499.70187
A117: 108 | B117: ITC | C117: 220.05 | D117: 219.32 | E117: 218.03 | F117: 216.02 | G117: 214.73 | H117: 221.33 | I117: 222.62 | J117: 224.63 | K117: 220.6 | L117: 217.3 | M117: 290.62762
A118: 109 | B118: IBULHSGFIN | C118: 204.65 | D118: 202.15 | E118: 198.80 | F118: 192.95 | G118: 189.60 | H118: 208.00 | I118: 211.35 | J118: 217.20 | K118: 205.5 | L118: 196.3 | M118: 142.56246
A119: 110 | B119: INDHOTEL | C119: 112.3 | D119: 111.67 | E119: 109.88 | F119: 107.47 | G119: 105.68 | H119: 114.08 | I119: 115.87 | J119: 118.28 | K119: 113.45 | L119: 109.25 | M119: 21.94893
A120: 111 | B120: IOC | C120: 93.15 | D120: 92.57 | E120: 91.78 | F120: 90.42 | G120: 89.63 | H120: 93.93 | I120: 94.72 | J120: 96.08 | K120: 93.35 | L120: 91.2 | M120: 148.43941
A121: 112 | B121: IRCTC | C121: 1751.75 | D121: 1760.40 | E121: 1741.35 | F121: 1730.95 | G121: 1711.90 | H121: 1770.80 | I121: 1789.85 | J121: 1800.25 | K121: 1779.45 | L121: 1750 | M121: 9.44947
A122: 113 | B122: IGL | C122: 526.45 | D122: 523.30 | E122: 518.80 | F122: 511.15 | G122: 506.65 | H122: 530.95 | I122: 535.45 | J122: 543.10 | K122: 527.8 | L122: 515.65 | M122: 24.7939
A123: 114 | B123: INDUSTOWER | C123: 255.45 | D123: 253.05 | E123: 249.20 | F123: 242.95 | G123: 239.10 | H123: 259.30 | I123: 263.15 | J123: 269.40 | K123: 256.9 | L123: 246.8 | M123: 39.07171
A124: 115 | B124: INDUSINDBK | C124: 993.3 | D124: 983.13 | E124: 969.27 | F124: 945.23 | G124: 931.37 | H124: 1007.17 | I124: 1021.03 | J124: 1045.07 | K124: 997 | L124: 959.1 | M124: 79.32671
A125: 116 | B125: NAUKRI | C125: 4263.05 | D125: 4252.42 | E125: 4180.63 | F125: 4098.22 | G125: 4026.43 | H125: 4334.83 | I125: 4406.62 | J125: 4489.03 | K125: 4324.2 | L125: 4170 | M125: 7.80736
A126: 117 | B126: INFY | C126: 1385.2 | D126: 1382.60 | E126: 1373.60 | F126: 1362.00 | G126: 1353.00 | H126: 1394.20 | I126: 1403.20 | J126: 1414.80 | K126: 1391.6 | L126: 1371 | M126: 56.75155
A127: 118 | B127: INDIGO | C127: 1616.6 | D127: 1619.33 | E127: 1598.67 | F127: 1580.73 | G127: 1560.07 | H127: 1637.27 | I127: 1657.93 | J127: 1675.87 | K127: 1640 | L127: 1601.4 | M127: 6.6312
A128: 119 | B128: IPCALAB | C128: 1882 | D128: 1889.37 | E128: 1863.73 | F128: 1845.47 | G128: 1819.83 | H128: 1907.63 | I128: 1933.27 | J128: 1951.53 | K128: 1915 | L128: 1871.1 | M128: 1.19222
A129: 120 | B129: JSWENERGY | C129: 90.7 | D129: 90.45 | E129: 88.10 | F129: 85.50 | G129: 83.15 | H129: 93.05 | I129: 95.40 | J129: 98.00 | K129: 92.8 | L129: 87.85 | M129: 128.35744
A130: 121 | B130: JSWSTEEL | C130: 508.75 | D130: 497.23 | E130: 481.52 | F130: 454.28 | G130: 438.57 | H130: 524.47 | I130: 540.18 | J130: 567.42 | K130: 512.95 | L130: 470 | M130: 357.3623
A131: 122 | B131: JINDALSTEL | C131: 370.9 | D131: 363.47 | E131: 353.43 | F131: 335.97 | G131: 325.93 | H131: 380.93 | I131: 390.97 | J131: 408.43 | K131: 373.5 | L131: 346 | M131: 141.47031
A132: 123 | B132: JUBLFOOD | C132: 2950.75 | D132: 2941.65 | E132: 2915.30 | F132: 2879.85 | G132: 2853.50 | H132: 2977.10 | I132: 3003.45 | J132: 3038.90 | K132: 2968 | L132: 2906.2 | M132: 4.65741
A133: 124 | B133: KOTAKBANK | C133: 1804.55 | D133: 1789.48 | E133: 1765.72 | F133: 1726.88 | G133: 1703.12 | H133: 1828.32 | I133: 1852.08 | J133: 1890.92 | K133: 1813.25 | L133: 1750.65 | M133: 38.02652
A134: 125 | B134: L&TFH | C134: 99.5 | D134: 98.50 | E134: 97.00 | F134: 94.50 | G134: 93.00 | H134: 101.00 | I134: 102.50 | J134: 105.00 | K134: 100 | L134: 96 | M134: 103.69618
A135: 126 | B135: LTTS | C135: 2720.6 | D135: 2719.07 | E135: 2680.53 | F135: 2640.47 | G135: 2601.93 | H135: 2759.13 | I135: 2797.67 | J135: 2837.73 | K135: 2757.6 | L135: 2679 | M135: 3.12036
A136: 127 | B136: LICHSGFIN | C136: 432.85 | D136: 430.25 | E136: 426.60 | F136: 420.35 | G136: 416.70 | H136: 436.50 | I136: 440.15 | J136: 446.40 | K136: 433.9 | L136: 424 | M136: 28.1566
A137: 128 | B137: LTI | C137: 4112.8 | D137: 4124.70 | E137: 4060.40 | F137: 4008.00 | G137: 3943.70 | H137: 4177.10 | I137: 4241.40 | J137: 4293.80 | K137: 4189 | L137: 4072.3 | M137: 2.13617
A138: 129 | B138: LT | C138: 1444.6 | D138: 1437.65 | E138: 1427.45 | F138: 1410.30 | G138: 1400.10 | H138: 1454.80 | I138: 1465.00 | J138: 1482.15 | K138: 1447.85 | L138: 1420.5 | M138: 13.80763
A139: 130 | B139: LUPIN | C139: 1027 | D139: 1027.02 | E139: 1019.08 | F139: 1011.17 | G139: 1003.23 | H139: 1034.93 | I139: 1042.87 | J139: 1050.78 | K139: 1034.95 | L139: 1019.1 | M139: 10.89119
A140: 131 | B140: MRF | C140: 83133.1 | D140: 82927.68 | E140: 82405.42 | F140: 81677.73 | G140: 81155.47 | H140: 83655.37 | I140: 84177.63 | J140: 84905.32 | K140: 83449.95 | L140: 82200 | M140: 0.19973
A141: 132 | B141: MGL | C141: 1181.5 | D141: 1177.50 | E141: 1161.10 | F141: 1140.70 | G141: 1124.30 | H141: 1197.90 | I141: 1214.30 | J141: 1234.70 | K141: 1193.9 | L141: 1157.1 | M141: 4.54224
A142: 133 | B142: M&MFIN | C142: 204.3 | D142: 202.70 | E142: 200.10 | F142: 195.90 | G142: 193.30 | H142: 206.90 | I142: 209.50 | J142: 213.70 | K142: 205.3 | L142: 198.5 | M142: 43.13549
A143: 134 | B143: M&M | C143: 807.6 | D143: 799.05 | E143: 788.30 | F143: 769.00 | G143: 758.25 | H143: 818.35 | I143: 829.10 | J143: 848.40 | K143: 809.8 | L143: 779.75 | M143: 56.78798
A144: 135 | B144: MANAPPURAM | C144: 157.3 | D144: 155.18 | E144: 151.62 | F144: 145.93 | G144: 142.37 | H144: 160.87 | I144: 164.43 | J144: 170.12 | K144: 158.75 | L144: 149.5 | M144: 65.47778
A145: 136 | B145: MARICO | C145: 407.25 | D145: 408.35 | E145: 405.10 | F145: 402.95 | G145: 399.70 | H145: 410.50 | I145: 413.75 | J145: 415.90 | K145: 411.6 | L145: 406.2 | M145: 6.45008
A146: 137 | B146: MARUTI | C146: 6923.9 | D146: 6923.47 | E146: 6855.43 | F146: 6786.97 | G146: 6718.93 | H146: 6991.93 | I146: 7059.97 | J146: 7128.43 | K146: 6991.5 | L146: 6855 | M146: 6.60759
A147: 138 | B147: MFSL | C147: 880.3 | D147: 875.13 | E147: 866.37 | F147: 852.43 | G147: 843.67 | H147: 889.07 | I147: 897.83 | J147: 911.77 | K147: 883.9 | L147: 861.2 | M147: 3.68923
A148: 139 | B148: MINDTREE | C148: 2075.95 | D148: 2080.67 | E148: 2049.73 | F148: 2023.52 | G148: 1992.58 | H148: 2106.88 | I148: 2137.82 | J148: 2164.03 | K148: 2111.6 | L148: 2054.45 | M148: 11.11247
A149: 140 | B149: MOTHERSUMI | C149: 210.45 | D149: 208.45 | E149: 204.50 | F149: 198.55 | G149: 194.60 | H149: 214.40 | I149: 218.35 | J149: 224.30 | K149: 212.4 | L149: 202.5 | M149: 134.38282
A150: 141 | B150: MPHASIS | C150: 1747.8 | D150: 1764.93 | E150: 1720.87 | F150: 1693.93 | G150: 1649.87 | H150: 1791.87 | I150: 1835.93 | J150: 1862.87 | K150: 1809 | L150: 1738 | M150: 4.23748
A151: 142 | B151: MUTHOOTFIN | C151: 1214.35 | D151: 1212.03 | E151: 1202.07 | F151: 1189.78 | G151: 1179.82 | H151: 1224.32 | I151: 1234.28 | J151: 1246.57 | K151: 1222 | L151: 1199.75 | M151: 6.4918
A152: 143 | B152: NATCOPHARM | C152: 842.1 | D152: 842.02 | E152: 829.13 | F152: 816.17 | G152: 803.28 | H152: 854.98 | I152: 867.87 | J152: 880.83 | K152: 854.9 | L152: 829.05 | M152: 3.22915
A153: 144 | B153: NMDC | C153: 138.45 | D153: 137.80 | E153: 136.40 | F153: 134.35 | G153: 132.95 | H153: 139.85 | I153: 141.25 | J153: 143.30 | K153: 139.2 | L153: 135.75 | M153: 96.26748
A154: 145 | B154: NTPC | C154: 107.9 | D154: 107.87 | E154: 106.98 | F154: 106.07 | G154: 105.18 | H154: 108.78 | I154: 109.67 | J154: 110.58 | K154: 108.75 | L154: 106.95 | M154: 137.53303
A155: 146 | B155: NATIONALUM | C155: 58.75 | D155: 57.48 | E155: 55.77 | F155: 52.78 | G155: 51.07 | H155: 60.47 | I155: 62.18 | J155: 65.17 | K155: 59.2 | L155: 54.5 | M155: 411.65892
A156: 147 | B156: NAVINFLUOR | C156: 2777 | D156: 2783.98 | E156: 2748.12 | F156: 2719.23 | G156: 2683.37 | H156: 2812.87 | I156: 2848.73 | J156: 2877.62 | K156: 2819.85 | L156: 2755.1 | M156: 2.01075
A157: 148 | B157: NESTLEIND | C157: 17083.15 | D157: 17079.77 | E157: 16970.98 | F157: 16858.82 | G157: 16750.03 | H157: 17191.93 | I157: 17300.72 | J157: 17412.88 | K157: 17188.55 | L157: 16967.6 | M157: 0.83176
A158: 149 | B158: NAM-INDIA | C158: 344.4 | D158: 342.42 | E158: 337.98 | F158: 331.57 | G158: 327.13 | H158: 348.83 | I158: 353.27 | J158: 359.68 | K158: 346.85 | L158: 336 | M158: 7.77441
A159: 150 | B159: OBEROIRLTY | C159: 578.85 | D159: 581.28 | E159: 566.57 | F159: 554.28 | G159: 539.57 | H159: 593.57 | I159: 608.28 | J159: 620.57 | K159: 596 | L159: 569 | M159: 4.45532
A160: 151 | B160: ONGC | C160: 104.35 | D160: 103.58 | E160: 101.92 | F160: 99.48 | G160: 97.82 | H160: 106.02 | I160: 107.68 | J160: 110.12 | K160: 105.25 | L160: 101.15 | M160: 222.99747
A161: 152 | B161: OIL | C161: 124 | D161: 123.77 | E161: 122.73 | F161: 121.47 | G161: 120.43 | H161: 125.03 | I161: 126.07 | J161: 127.33 | K161: 124.8 | L161: 122.5 | M161: 5.79175
A162: 153 | B162: OFSS | C162: 3209.1 | D162: 3221.37 | E162: 3172.73 | F162: 3136.37 | G162: 3087.73 | H162: 3257.73 | I162: 3306.37 | J162: 3342.73 | K162: 3270 | L162: 3185 | M162: 1.10273
A163: 154 | B163: PIIND | C163: 2249.8 | D163: 2262.48 | E163: 2220.97 | F163: 2192.13 | G163: 2150.62 | H163: 2291.32 | I163: 2332.83 | J163: 2361.67 | K163: 2304 | L163: 2233.65 | M163: 1.79555
A164: 155 | B164: PAGEIND | C164: 30197.6 | D164: 30312.40 | E164: 29875.20 | F164: 29552.80 | G164: 29115.60 | H164: 30634.80 | I164: 31072.00 | J164: 31394.40 | K164: 30749.6 | L164: 29990 | M164: 0.33538
A165: 156 | B165: PETRONET | C165: 227.75 | D165: 227.35 | E165: 225.95 | F165: 224.15 | G165: 222.75 | H165: 229.15 | I165: 230.55 | J165: 232.35 | K165: 228.75 | L165: 225.55 | M165: 16.17459
A166: 157 | B166: PFIZER | C166: 4551.5 | D166: 4550.17 | E166: 4511.33 | F166: 4471.17 | G166: 4432.33 | H166: 4590.33 | I166: 4629.17 | J166: 4669.33 | K166: 4589 | L166: 4510 | M166: 0.80485
A167: 158 | B167: PIDILITIND | C167: 1823.15 | D167: 1821.75 | E167: 1810.50 | F167: 1797.85 | G167: 1786.60 | H167: 1834.40 | I167: 1845.65 | J167: 1858.30 | K167: 1833 | L167: 1809.1 | M167: 4.62214
A168: 159 | B168: PEL | C168: 1779.8 | D168: 1787.05 | E168: 1754.55 | F168: 1729.30 | G168: 1696.80 | H168: 1812.30 | I168: 1844.80 | J168: 1870.05 | K168: 1819.55 | L168: 1761.8 | M168: 16.22529
A169: 160 | B169: POLYCAB | C169: 1396.25 | D169: 1391.67 | E169: 1381.33 | F169: 1366.42 | G169: 1356.08 | H169: 1406.58 | I169: 1416.92 | J169: 1431.83 | K169: 1402 | L169: 1376.75 | M169: 1.54908
A170: 161 | B170: PFC | C170: 114.4 | D170: 114.22 | E170: 113.63 | F170: 112.87 | G170: 112.28 | H170: 114.98 | I170: 115.57 | J170: 116.33 | K170: 114.8 | L170: 113.45 | M170: 43.94808
A171: 162 | B171: POWERGRID | C171: 218.7 | D171: 217.60 | E171: 215.85 | F171: 213.00 | G171: 211.25 | H171: 220.45 | I171: 222.20 | J171: 225.05 | K171: 219.35 | L171: 214.75 | M171: 63.16508
A172: 163 | B172: PRESTIGE | C172: 308.85 | D172: 306.37 | E172: 302.73 | F172: 296.62 | G172: 292.98 | H172: 312.48 | I172: 316.12 | J172: 322.23 | K172: 310 | L172: 300.25 | M172: 4.27152
A173: 164 | B173: PGHH | C173: 12567.55 | D173: 12596.20 | E173: 12396.35 | F173: 12225.15 | G173: 12025.30 | H173: 12767.40 | I173: 12967.25 | J173: 13138.45 | K173: 12796.05 | L173: 12425 | M173: 0.07404
A174: 165 | B174: PNB | C174: 38.2 | D174: 37.83 | E174: 37.17 | F174: 36.13 | G174: 35.47 | H174: 38.87 | I174: 39.53 | J174: 40.57 | K174: 38.5 | L174: 36.8 | M174: 1000.0743
A175: 166 | B175: RBLBANK | C175: 216.2 | D175: 213.85 | E175: 210.70 | F175: 205.20 | G175: 202.05 | H175: 219.35 | I175: 222.50 | J175: 228.00 | K175: 217 | L175: 208.35 | M175: 110.26676
A176: 167 | B176: RECLTD | C176: 132.75 | D176: 132.32 | E176: 131.53 | F176: 130.32 | G176: 129.53 | H176: 133.53 | I176: 134.32 | J176: 135.53 | K176: 133.1 | L176: 131.1 | M176: 35.82988
A177: 168 | B177: RAJESHEXPO | C177: 492.35 | D177: 489.33 | E177: 483.02 | F177: 473.68 | G177: 467.37 | H177: 498.67 | I177: 504.98 | J177: 514.32 | K177: 495.65 | L177: 480 | M177: 1.82224
A178: 169 | B178: RELIANCE | C178: 2021.85 | D178: 2018.33 | E178: 2006.67 | F178: 1991.48 | G178: 1979.82 | H178: 2033.52 | I178: 2045.18 | J178: 2060.37 | K178: 2030 | L178: 2003.15 | M178: 54.10307
A179: 170 | B179: SBICARD | C179: 974.3 | D179: 964.77 | E179: 944.53 | F179: 914.77 | G179: 894.53 | H179: 994.53 | I179: 1014.77 | J179: 1044.53 | K179: 985 | L179: 935 | M179: 20.82857
A180: 171 | B180: SBILIFE | C180: 883.45 | D180: 883.33 | E180: 876.62 | F180: 869.78 | G180: 863.07 | H180: 890.17 | I180: 896.88 | J180: 903.72 | K180: 890.05 | L180: 876.5 | M180: 11.93426
A181: 172 | B181: SRF | C181: 5741.35 | D181: 5650.72 | E181: 5526.68 | F181: 5312.02 | G181: 5187.98 | H181: 5865.38 | I181: 5989.42 | J181: 6204.08 | K181: 5774.75 | L181: 5436.05 | M181: 4.31901
A182: 173 | B182: SANOFI | C182: 7994.3 | D182: 7967.50 | E182: 7895.00 | F182: 7795.70 | G182: 7723.20 | H182: 8066.80 | I182: 8139.30 | J182: 8238.60 | K182: 8040 | L182: 7868.2 | M182: 0.32906
A183: 174 | B183: SHREECEM | C183: 29951.95 | D183: 29892.28 | E183: 29505.07 | F183: 29058.18 | G183: 28670.97 | H183: 30339.17 | I183: 30726.38 | J183: 31173.27 | K183: 30279.5 | L183: 29445.4 | M183: 0.52771
A184: 175 | B184: SRTRANSFIN | C184: 1472.7 | D184: 1459.07 | E184: 1439.13 | F184: 1405.57 | G184: 1385.63 | H184: 1492.63 | I184: 1512.57 | J184: 1546.13 | K184: 1479 | L184: 1425.5 | M184: 24.50892
A185: 176 | B185: SIEMENS | C185: 1858.25 | D185: 1853.33 | E185: 1839.92 | F185: 1821.58 | G185: 1808.17 | H185: 1871.67 | I185: 1885.08 | J185: 1903.42 | K185: 1866.75 | L185: 1835 | M185: 1.24369
A186: 177 | B186: SBIN | C186: 370.65 | D186: 368.55 | E186: 365.20 | F186: 359.75 | G186: 356.40 | H186: 374.00 | I186: 377.35 | J186: 382.80 | K186: 371.9 | L186: 363.1 | M186: 318.83453
A187: 178 | B187: SAIL | C187: 83.85 | D187: 82.60 | E187: 80.80 | F187: 77.75 | G187: 75.95 | H187: 85.65 | I187: 87.45 | J187: 90.50 | K187: 84.4 | L187: 79.55 | M187: 875.5668
A188: 179 | B188: SUNPHARMA | C188: 610.75 | D188: 606.93 | E188: 601.17 | F188: 591.58 | G188: 585.82 | H188: 616.52 | I188: 622.28 | J188: 631.87 | K188: 612.7 | L188: 597.35 | M188: 60.33653
A189: 180 | B189: SUNTV | C189: 478.35 | D189: 475.18 | E189: 470.37 | F189: 462.38 | G189: 457.57 | H189: 483.17 | I189: 487.98 | J189: 495.97 | K189: 480 | L189: 467.2 | M189: 12.6882
A190: 181 | B190: SYNGENE | C190: 557.95 | D190: 555.02 | E190: 550.23 | F190: 542.52 | G190: 537.73 | H190: 562.73 | I190: 567.52 | J190: 575.23 | K190: 559.8 | L190: 547.3 | M190: 4.89698
A191: 182 | B191: TVSMOTOR | C191: 589.2 | D191: 588.15 | E191: 583.30 | F191: 577.40 | G191: 572.55 | H191: 594.05 | I191: 598.90 | J191: 604.80 | K191: 593 | L191: 582.25 | M191: 12.84339
A192: 183 | B192: TATACHEM | C192: 779.1 | D192: 775.30 | E192: 758.90 | F192: 738.70 | G192: 722.30 | H192: 795.50 | I192: 811.90 | J192: 832.10 | K192: 791.7 | L192: 755.1 | M192: 72.9596
A193: 184 | B193: TCS | C193: 3165 | D193: 3175.00 | E193: 3135.00 | F193: 3105.00 | G193: 3065.00 | H193: 3205.00 | I193: 3245.00 | J193: 3275.00 | K193: 3215 | L193: 3145 | M193: 42.85076
A194: 185 | B194: TATACONSUM | C194: 650.15 | D194: 647.92 | E194: 642.88 | F194: 635.62 | G194: 630.58 | H194: 655.18 | I194: 660.22 | J194: 667.48 | K194: 652.95 | L194: 640.65 | M194: 38.44057
A195: 186 | B195: TATAMOTORS | C195: 307.75 | D195: 306.88 | E195: 303.92 | F195: 300.08 | G195: 297.12 | H195: 310.72 | I195: 313.68 | J195: 317.52 | K195: 309.85 | L195: 303.05 | M195: 440.88352
A196: 187 | B196: TATAPOWER | C196: 105.05 | D196: 104.70 | E196: 103.90 | F196: 102.75 | G196: 101.95 | H196: 105.85 | I196: 106.65 | J196: 107.80 | K196: 105.5 | L196: 103.55 | M196: 346.37782
A197: 188 | B197: TATASTEEL | C197: 863.05 | D197: 850.32 | E197: 831.73 | F197: 800.42 | G197: 781.83 | H197: 881.63 | I197: 900.22 | J197: 931.53 | K197: 868.9 | L197: 819 | M197: 368.42098
A198: 189 | B198: TECHM | C198: 992.15 | D198: 995.32 | E198: 982.83 | F198: 973.52 | G198: 961.03 | H198: 1004.63 | I198: 1017.12 | J198: 1026.43 | K198: 1007.8 | L198: 986 | M198: 35.55291
A199: 190 | B199: RAMCOCEM | C199: 1027.05 | D199: 1019.68 | E199: 1009.62 | F199: 992.18 | G199: 982.12 | H199: 1037.12 | I199: 1047.18 | J199: 1064.62 | K199: 1029.75 | L199: 1002.25 | M199: 3.48159
A200: 191 | B200: TITAN | C200: 1559.35 | D200: 1568.07 | E200: 1542.83 | F200: 1526.32 | G200: 1501.08 | H200: 1584.58 | I200: 1609.82 | J200: 1626.33 | K200: 1593.3 | L200: 1551.55 | M200: 13.43989
A201: 192 | B201: TORNTPHARM | C201: 2548.25 | D201: 2543.47 | E201: 2530.48 | F201: 2512.72 | G201: 2499.73 | H201: 2561.23 | I201: 2574.22 | J201: 2591.98 | K201: 2556.45 | L201: 2525.7 | M201: 1.23628
A202: 193 | B202: TORNTPOWER | C202: 427.55 | D202: 426.02 | E202: 423.48 | F202: 419.42 | G202: 416.88 | H202: 430.08 | I202: 432.62 | J202: 436.68 | K202: 428.55 | L202: 421.95 | M202: 6.90448
A203: 194 | B203: TRENT | C203: 750.85 | D203: 751.37 | E203: 738.53 | F203: 726.22 | G203: 713.38 | H203: 763.68 | I203: 776.52 | J203: 788.83 | K203: 764.2 | L203: 739.05 | M203: 8.10538
A204: 195 | B204: UPL | C204: 653.6 | D204: 648.50 | E204: 640.10 | F204: 626.60 | G204: 618.20 | H204: 662.00 | I204: 670.40 | J204: 683.90 | K204: 656.9 | L204: 635 | M204: 73.4875
A205: 196 | B205: ULTRACEMCO | C205: 6898.85 | D205: 6854.58 | E205: 6775.47 | F205: 6652.08 | G205: 6572.97 | H205: 6977.97 | I205: 7057.08 | J205: 7180.47 | K205: 6933.7 | L205: 6731.2 | M205: 5.31749
... 29 more rows

Sheet MidCap Intra
L5: Back To Main Page
A6: FOR INTRA DAY TRADING | K6: =Main!B10 -> 2021-04-05
A9: Sr.no | B9: Scrip | C9: CLOSE RATE | D9: Pivot Point | E9: Supports | H9: Resistances
C10: Point | E10: S1 | F10: S2 | G10: S3 | H10: R1 | I10: R2 | J10: R3 | K10: HIGH | L10: LOW | M10: Total Trade Quanity in Lakhs
A11: 1 | B11: 3MINDIA | C11: 29602.95 | D11: 30000.98 | E11: 29001.97 | F11: 28400.98 | G11: 27401.97 | H11: 30601.97 | I11: 31600.98 | J11: 32201.97 | K11: 31000 | L11: 29400 | M11: 0.08475
A12: 2 | B12: ABB | C12: 1397.5 | D12: 1404.43 | E12: 1384.17 | F12: 1370.83 | G12: 1350.57 | H12: 1417.77 | I12: 1438.03 | J12: 1451.37 | K12: 1424.7 | L12: 1391.1 | M12: 0.80643
A13: 3 | B13: POWERINDIA | C13: 1382.7 | D13: 1375.27 | E13: 1360.53 | F13: 1338.37 | G13: 1323.63 | H13: 1397.43 | I13: 1412.17 | J13: 1434.33 | K13: 1390 | L13: 1353.1 | M13: 0.09973
A14: 4 | B14: ACC | C14: 1913.35 | D14: 1906.77 | E14: 1893.53 | F14: 1873.72 | G14: 1860.48 | H14: 1926.58 | I14: 1939.82 | J14: 1959.63 | K14: 1920 | L14: 1886.95 | M14: 7.65296
A15: 5 | B15: AIAENG | C15: 2053.35 | D15: 2042.57 | E15: 2000.58 | F15: 1947.82 | G15: 1905.83 | H15: 2095.33 | I15: 2137.32 | J15: 2190.08 | K15: 2084.55 | L15: 1989.8 | M15: 1.1587
A16: 6 | B16: APLAPOLLO | C16: 1326.75 | D16: 1354.55 | E16: 1269.10 | F16: 1211.45 | G16: 1126.00 | H16: 1412.20 | I16: 1497.65 | J16: 1555.30 | K16: 1440 | L16: 1296.9 | M16: 2.91705
A17: 7 | B17: AUBANK | C17: 1267.9 | D17: 1253.63 | E17: 1229.27 | F17: 1190.63 | G17: 1166.27 | H17: 1292.27 | I17: 1316.63 | J17: 1355.27 | K17: 1278 | L17: 1215 | M17: 10.87053
A18: 8 | B18: AARTIDRUGS | C18: 718.65 | D18: 713.57 | E18: 701.13 | F18: 683.62 | G18: 671.18 | H18: 731.08 | I18: 743.52 | J18: 761.03 | K18: 726 | L18: 696.05 | M18: 7.86666
A19: 9 | B19: AARTIIND | C19: 1363.8 | D19: 1356.27 | E19: 1322.53 | F19: 1281.27 | G19: 1247.53 | H19: 1397.53 | I19: 1431.27 | J19: 1472.53 | K19: 1390 | L19: 1315 | M19: 6.13919
A20: 10 | B20: AAVAS | C20: 2418 | D20: 2434.17 | E20: 2349.33 | F20: 2280.67 | G20: 2195.83 | H20: 2502.83 | I20: 2587.67 | J20: 2656.33 | K20: 2519 | L20: 2365.5 | M20: 0.53783
A21: 11 | B21: ABBOTINDIA | C21: 14980.05 | D21: 15013.70 | E21: 14867.35 | F21: 14754.65 | G21: 14608.30 | H21: 15126.40 | I21: 15272.75 | J21: 15385.45 | K21: 15160.05 | L21: 14901 | M21: 0.21203
A22: 12 | B22: ADANIENT | C22: 1107.2 | D22: 1086.08 | E22: 1056.12 | F22: 1005.03 | G22: 975.07 | H22: 1137.17 | I22: 1167.13 | J22: 1218.22 | K22: 1116.05 | L22: 1035 | M22: 127.13083
A23: 13 | B23: ADANIGREEN | C23: 1160.05 | D23: 1141.67 | E23: 1123.28 | F23: 1086.52 | G23: 1068.13 | H23: 1178.43 | I23: 1196.82 | J23: 1233.58 | K23: 1160.05 | L23: 1104.9 | M23: 5.23216
A24: 14 | B24: ADANIPORTS | C24: 736.25 | D24: 727.75 | E24: 713.50 | F24: 690.75 | G24: 676.50 | H24: 750.50 | I24: 764.75 | J24: 787.50 | K24: 742 | L24: 705 | M24: 150.17049
A25: 15 | B25: ATGL | C25: 1060.65 | D25: 1037.65 | E25: 987.50 | F25: 914.35 | G25: 864.20 | H25: 1110.80 | I25: 1160.95 | J25: 1234.10 | K25: 1087.8 | L25: 964.5 | M25: 35.77352
A26: 16 | B26: ADANITRANS | C26: 999.2 | D26: 971.82 | E26: 944.43 | F26: 889.67 | G26: 862.28 | H26: 1026.58 | I26: 1053.97 | J26: 1108.73 | K26: 999.2 | L26: 917.05 | M26: 22.13099
A27: 17 | B27: ABCAPITAL | C27: 121.55 | D27: 121.53 | E27: 120.07 | F27: 118.58 | G27: 117.12 | H27: 123.02 | I27: 124.48 | J27: 125.97 | K27: 123 | L27: 120.05 | M27: 24.29443
A28: 18 | B28: ABFRL | C28: 198.95 | D28: 201.17 | E28: 195.33 | F28: 191.72 | G28: 185.88 | H28: 204.78 | I28: 210.62 | J28: 214.23 | K28: 207 | L28: 197.55 | M28: 24.52891
A29: 19 | B29: ADVENZYMES | C29: 353.1 | D29: 353.78 | E29: 347.12 | F29: 341.13 | G29: 334.47 | H29: 359.77 | I29: 366.43 | J29: 372.42 | K29: 360.45 | L29: 347.8 | M29: 1.56303
A30: 20 | B30: AEGISCHEM | C30: 301.25 | D30: 300.48 | E30: 292.07 | F30: 282.88 | G30: 274.47 | H30: 309.67 | I30: 318.08 | J30: 327.27 | K30: 308.9 | L30: 291.3 | M30: 2.99812
A31: 21 | B31: AFFLE | C31: 5602.3 | D31: 5593.97 | E31: 5473.33 | F31: 5344.37 | G31: 5223.73 | H31: 5722.93 | I31: 5843.57 | J31: 5972.53 | K31: 5714.6 | L31: 5465 | M31: 0.89364
A32: 22 | B32: AJANTPHARM | C32: 1748.45 | D32: 1760.57 | E32: 1712.88 | F32: 1677.32 | G32: 1629.63 | H32: 1796.13 | I32: 1843.82 | J32: 1879.38 | K32: 1808.25 | L32: 1725 | M32: 2.1801
A33: 23 | B33: AKZOINDIA | C33: 2371.05 | D33: 2348.75 | E33: 2319.50 | F33: 2267.95 | G33: 2238.70 | H33: 2400.30 | I33: 2429.55 | J33: 2481.10 | K33: 2378 | L33: 2297.2 | M33: 0.17016
A34: 24 | B34: ALEMBICLTD | C34: 105.3 | D34: 105.37 | E34: 103.13 | F34: 100.97 | G34: 98.73 | H34: 107.53 | I34: 109.77 | J34: 111.93 | K34: 107.6 | L34: 103.2 | M34: 6.78641
A35: 25 | B35: APLLTD | C35: 987.15 | D35: 979.07 | E35: 968.13 | F35: 949.12 | G35: 938.18 | H35: 998.08 | I35: 1009.02 | J35: 1028.03 | K35: 990 | L35: 960.05 | M35: 3.97081
A36: 26 | B36: ALKEM | C36: 2775.45 | D36: 2768.23 | E36: 2742.47 | F36: 2709.48 | G36: 2683.72 | H36: 2801.22 | I36: 2826.98 | J36: 2859.97 | K36: 2794 | L36: 2735.25 | M36: 0.79864
A37: 27 | B37: ALKYLAMINE | C37: 5758.65 | D37: 5768.88 | E37: 5699.77 | F37: 5640.88 | G37: 5571.77 | H37: 5827.77 | I37: 5896.88 | J37: 5955.77 | K37: 5838 | L37: 5710 | M37: 0.3274
A38: 28 | B38: ALOKINDS | C38: 20.85 | D38: 20.78 | E38: 20.32 | F38: 19.78 | G38: 19.32 | H38: 21.32 | I38: 21.78 | J38: 22.32 | K38: 21.25 | L38: 20.25 | M38: 92.36598
A39: 29 | B39: AMARAJABAT | C39: 860.5 | D39: 860.52 | E39: 855.08 | F39: 849.67 | G39: 844.23 | H39: 865.93 | I39: 871.37 | J39: 876.78 | K39: 865.95 | L39: 855.1 | M39: 4.00848
A40: 30 | B40: AMBER | C40: 3247.55 | D40: 3287.98 | E40: 3186.57 | F40: 3125.58 | G40: 3024.17 | H40: 3348.97 | I40: 3450.38 | J40: 3511.37 | K40: 3389.4 | L40: 3227 | M40: 0.95334
A41: 31 | B41: AMBUJACEM | C41: 311 | D41: 310.57 | E41: 307.68 | F41: 304.37 | G41: 301.48 | H41: 313.88 | I41: 316.77 | J41: 320.08 | K41: 313.45 | L41: 307.25 | M41: 46.89185
A42: 32 | B42: APOLLOHOSP | C42: 2894.05 | D42: 2883.80 | E42: 2853.65 | F42: 2813.25 | G42: 2783.10 | H42: 2924.20 | I42: 2954.35 | J42: 2994.75 | K42: 2913.95 | L42: 2843.4 | M42: 8.42489
A43: 33 | B43: APOLLOTYRE | C43: 236.05 | D43: 232.33 | E43: 227.77 | F43: 219.48 | G43: 214.92 | H43: 240.62 | I43: 245.18 | J43: 253.47 | K43: 236.9 | L43: 224.05 | M43: 60.79701
A44: 34 | B44: ASHOKLEY | C44: 118.15 | D44: 116.80 | E44: 114.85 | F44: 111.55 | G44: 109.60 | H44: 120.10 | I44: 122.05 | J44: 125.35 | K44: 118.75 | L44: 113.5 | M44: 219.38734
A45: 35 | B45: ASHOKA | C45: 100.6 | D45: 101.52 | E45: 99.08 | F45: 97.57 | G45: 95.13 | H45: 103.03 | I45: 105.47 | J45: 106.98 | K45: 103.95 | L45: 100 | M45: 7.05285
A46: 36 | B46: ASIANPAINT | C46: 2551.75 | D46: 2549.43 | E46: 2534.32 | F46: 2516.88 | G46: 2501.77 | H46: 2566.87 | I46: 2581.98 | J46: 2599.42 | K46: 2564.55 | L46: 2532 | M46: 12.19588
A47: 37 | B47: ASTERDM | C47: 138.55 | D47: 138.12 | E47: 136.63 | F47: 134.72 | G47: 133.23 | H47: 140.03 | I47: 141.52 | J47: 143.43 | K47: 139.6 | L47: 136.2 | M47: 1.83317
A48: 38 | B48: ASTRAZEN | C48: 3429.85 | D48: 3335.97 | E48: 3123.93 | F48: 2818.02 | G48: 2605.98 | H48: 3641.88 | I48: 3853.92 | J48: 4159.83 | K48: 3548 | L48: 3030.05 | M48: 3.78308
A49: 39 | B49: ASTRAL | C49: 1685.35 | D49: 1671.78 | E49: 1648.62 | F49: 1611.88 | G49: 1588.72 | H49: 1708.52 | I49: 1731.68 | J49: 1768.42 | K49: 1694.95 | L49: 1635.05 | M49: 2.54543
A50: 40 | B50: ATUL | C50: 7415.35 | D50: 7309.55 | E50: 7161.65 | F50: 6907.95 | G50: 6760.05 | H50: 7563.25 | I50: 7711.15 | J50: 7964.85 | K50: 7457.45 | L50: 7055.85 | M50: 0.43531
A51: 41 | B51: AUROPHARMA | C51: 881.3 | D51: 878.20 | E51: 869.45 | F51: 857.60 | G51: 848.85 | H51: 890.05 | I51: 898.80 | J51: 910.65 | K51: 886.95 | L51: 866.35 | M51: 14.40078
A52: 42 | B52: AVANTIFEED | C52: 418.5 | D52: 422.23 | E52: 413.97 | F52: 409.43 | G52: 401.17 | H52: 426.77 | I52: 435.03 | J52: 439.57 | K52: 430.5 | L52: 417.7 | M52: 7.2322
A53: 43 | B53: DMART | C53: 2912.7 | D53: 2897.73 | E53: 2870.47 | F53: 2828.23 | G53: 2800.97 | H53: 2939.97 | I53: 2967.23 | J53: 3009.47 | K53: 2925 | L53: 2855.5 | M53: 4.16624
A54: 44 | B54: AXISBANK | C54: 713 | D54: 708.52 | E54: 700.03 | F54: 687.07 | G54: 678.58 | H54: 721.48 | I54: 729.97 | J54: 742.93 | K54: 717 | L54: 695.55 | M54: 130.90326
A55: 45 | B55: BASF | C55: 2136.9 | D55: 2122.30 | E55: 2084.60 | F55: 2032.30 | G55: 1994.60 | H55: 2174.60 | I55: 2212.30 | J55: 2264.60 | K55: 2160 | L55: 2070 | M55: 0.25528
A56: 46 | B56: BEML | C56: 1319.55 | D56: 1302.77 | E56: 1272.63 | F56: 1225.72 | G56: 1195.58 | H56: 1349.68 | I56: 1379.82 | J56: 1426.73 | K56: 1332.9 | L56: 1255.85 | M56: 5.63017
A57: 47 | B57: BSE | C57: 583.55 | D57: 579.83 | E57: 571.72 | F57: 559.88 | G57: 551.77 | H57: 591.67 | I57: 599.78 | J57: 611.62 | K57: 587.95 | L57: 568 | M57: 2.07585
A58: 48 | B58: BAJAJ-AUTO | C58: 3743.05 | D58: 3732.52 | E58: 3700.73 | F58: 3658.42 | G58: 3626.63 | H58: 3774.83 | I58: 3806.62 | J58: 3848.93 | K58: 3764.3 | L58: 3690.2 | M58: 8.61229
A59: 49 | B59: BAJAJCON | C59: 268.6 | D59: 270.68 | E59: 259.37 | F59: 250.13 | G59: 238.82 | H59: 279.92 | I59: 291.23 | J59: 300.47 | K59: 282 | L59: 261.45 | M59: 9.24294
A60: 50 | B60: BAJAJELEC | C60: 992.5 | D60: 989.35 | E60: 979.15 | F60: 965.80 | G60: 955.60 | H60: 1002.70 | I60: 1012.90 | J60: 1026.25 | K60: 999.55 | L60: 976 | M60: 0.49284
A61: 51 | B61: BAJFINANCE | C61: 5272.15 | D61: 5240.87 | E61: 5193.23 | F61: 5114.32 | G61: 5066.68 | H61: 5319.78 | I61: 5367.42 | J61: 5446.33 | K61: 5288.5 | L61: 5161.95 | M61: 21.48234
A62: 52 | B62: BAJAJFINSV | C62: 9789.5 | D62: 9761.00 | E62: 9696.00 | F62: 9602.50 | G62: 9537.50 | H62: 9854.50 | I62: 9919.50 | J62: 10013.00 | K62: 9826 | L62: 9667.5 | M62: 3.10065
A63: 53 | B63: BAJAJHLDNG | C63: 3338.7 | D63: 3332.02 | E63: 3284.03 | F63: 3229.37 | G63: 3181.38 | H63: 3386.68 | I63: 3434.67 | J63: 3489.33 | K63: 3380 | L63: 3277.35 | M63: 0.2452
A64: 54 | B64: BALKRISIND | C64: 1681.8 | D64: 1681.82 | E64: 1655.43 | F64: 1629.07 | G64: 1602.68 | H64: 1708.18 | I64: 1734.57 | J64: 1760.93 | K64: 1708.2 | L64: 1655.45 | M64: 3.93382
A65: 55 | B65: BALMLAWRIE | C65: 133.7 | D65: 132.52 | E65: 130.38 | F65: 127.07 | G65: 124.93 | H65: 135.83 | I65: 137.97 | J65: 141.28 | K65: 134.65 | L65: 129.2 | M65: 4.92289
A66: 56 | B66: BALRAMCHIN | C66: 214.1 | D66: 215.17 | E66: 211.43 | F66: 208.77 | G66: 205.03 | H66: 217.83 | I66: 221.57 | J66: 224.23 | K66: 218.9 | L66: 212.5 | M66: 16.81603
A67: 57 | B67: BANDHANBNK | C67: 350.9 | D67: 348.28 | E67: 341.62 | F67: 332.33 | G67: 325.67 | H67: 357.57 | I67: 364.23 | J67: 373.52 | K67: 354.95 | L67: 339 | M67: 50.01602
A68: 58 | B68: BANKBARODA | C68: 75.6 | D68: 75.03 | E68: 74.07 | F68: 72.53 | G68: 71.57 | H68: 76.57 | I68: 77.53 | J68: 79.07 | K68: 76 | L68: 73.5 | M68: 385.40206
A69: 59 | B69: BANKINDIA | C69: 69.9 | D69: 70.37 | E69: 68.43 | F69: 66.97 | G69: 65.03 | H69: 71.83 | I69: 73.77 | J69: 75.23 | K69: 72.3 | L69: 68.9 | M69: 105.93022
A70: 60 | B70: MAHABANK | C70: 21.45 | D70: 21.48 | E70: 21.02 | F70: 20.58 | G70: 20.12 | H70: 21.92 | I70: 22.38 | J70: 22.82 | K70: 21.95 | L70: 21.05 | M70: 75.31269
A71: 61 | B71: BATAINDIA | C71: 1425.05 | D71: 1424.45 | E71: 1411.15 | F71: 1397.25 | G71: 1383.95 | H71: 1438.35 | I71: 1451.65 | J71: 1465.55 | K71: 1437.75 | L71: 1410.55 | M71: 5.73721
A72: 62 | B72: BAYERCROP | C72: 5313.1 | D72: 5324.27 | E72: 5253.53 | F72: 5193.97 | G72: 5123.23 | H72: 5383.83 | I72: 5454.57 | J72: 5514.13 | K72: 5395 | L72: 5264.7 | M72: 0.10382
A73: 63 | B73: BERGEPAINT | C73: 764.35 | D73: 765.12 | E73: 760.23 | F73: 756.12 | G73: 751.23 | H73: 769.23 | I73: 774.12 | J73: 778.23 | K73: 770 | L73: 761 | M73: 7.20353
A74: 64 | B74: BDL | C74: 337.95 | D74: 336.77 | E74: 334.18 | F74: 330.42 | G74: 327.83 | H74: 340.53 | I74: 343.12 | J74: 346.88 | K74: 339.35 | L74: 333 | M74: 0.87702
A75: 65 | B75: BEL | C75: 126.1 | D75: 125.80 | E75: 124.60 | F75: 123.10 | G75: 121.90 | H75: 127.30 | I75: 128.50 | J75: 130.00 | K75: 127 | L75: 124.3 | M75: 100.06344
A76: 66 | B76: BHARATFORG | C76: 613.35 | D76: 608.53 | E76: 601.07 | F76: 588.78 | G76: 581.32 | H76: 620.82 | I76: 628.28 | J76: 640.57 | K76: 616 | L76: 596.25 | M76: 13.38081
A77: 67 | B77: BHEL | C77: 50.95 | D77: 50.37 | E77: 49.53 | F77: 48.12 | G77: 47.28 | H77: 51.78 | I77: 52.62 | J77: 54.03 | K77: 51.2 | L77: 48.95 | M77: 529.6511
A78: 68 | B78: BPCL | C78: 437.4 | D78: 435.13 | E78: 430.32 | F78: 423.23 | G78: 418.42 | H78: 442.22 | I78: 447.03 | J78: 454.12 | K78: 439.95 | L78: 428.05 | M78: 45.78197
A79: 69 | B79: BHARATRAS | C79: 9442.2 | D79: 9452.38 | E79: 9389.82 | F79: 9337.43 | G79: 9274.87 | H79: 9504.77 | I79: 9567.33 | J79: 9619.72 | K79: 9514.95 | L79: 9400 | M79: 0.01155
A80: 70 | B80: BHARTIARTL | C80: 520.8 | D80: 519.75 | E80: 515.60 | F80: 510.40 | G80: 506.25 | H80: 524.95 | I80: 529.10 | J80: 534.30 | K80: 523.9 | L80: 514.55 | M80: 69.80458
A81: 71 | B81: BIOCON | C81: 410.55 | D81: 410.85 | E81: 408.50 | F81: 406.45 | G81: 404.10 | H81: 412.90 | I81: 415.25 | J81: 417.30 | K81: 413.2 | L81: 408.8 | M81: 18.60699
A82: 72 | B82: BIRLACORPN | C82: 974.1 | D82: 971.37 | E82: 963.78 | F82: 953.47 | G82: 945.88 | H82: 981.68 | I82: 989.27 | J82: 999.58 | K82: 978.95 | L82: 961.05 | M82: 3.38114
A83: 73 | B83: BSOFT | C83: 262.15 | D83: 261.30 | E83: 254.10 | F83: 246.05 | G83: 238.85 | H83: 269.35 | I83: 276.55 | J83: 284.60 | K83: 268.5 | L83: 253.25 | M83: 37.76867
A84: 74 | B84: BLISSGVS | C84: 100.85 | D84: 100.88 | E84: 98.97 | F84: 97.08 | G84: 95.17 | H84: 102.77 | I84: 104.68 | J84: 106.57 | K84: 102.8 | L84: 99 | M84: 2.52159
A85: 75 | B85: BLUEDART | C85: 5591.2 | D85: 5594.48 | E85: 5516.72 | F85: 5442.23 | G85: 5364.47 | H85: 5668.97 | I85: 5746.73 | J85: 5821.22 | K85: 5672.25 | L85: 5520 | M85: 0.22489
A86: 76 | B86: BLUESTARCO | C86: 922.85 | D86: 932.95 | E86: 906.90 | F86: 890.95 | G86: 864.90 | H86: 948.90 | I86: 974.95 | J86: 990.90 | K86: 959 | L86: 917 | M86: 1.56932
A87: 77 | B87: BBTC | C87: 1145.45 | D87: 1136.68 | E87: 1124.97 | F87: 1104.48 | G87: 1092.77 | H87: 1157.17 | I87: 1168.88 | J87: 1189.37 | K87: 1148.4 | L87: 1116.2 | M87: 0.39852
A88: 78 | B88: BOMDYEING | C88: 73.35 | D88: 72.48 | E88: 71.47 | F88: 69.58 | G88: 68.57 | H88: 74.37 | I88: 75.38 | J88: 77.27 | K88: 73.5 | L88: 70.6 | M88: 24.08721
A89: 79 | B89: BOSCHLTD | C89: 14178.9 | D89: 14205.67 | E89: 14006.38 | F89: 13833.87 | G89: 13634.58 | H89: 14378.18 | I89: 14577.47 | J89: 14749.98 | K89: 14404.95 | L89: 14033.15 | M89: 0.56398
A90: 80 | B90: BRIGADE | C90: 267.35 | D90: 270.15 | E90: 259.30 | F90: 251.25 | G90: 240.40 | H90: 278.20 | I90: 289.05 | J90: 297.10 | K90: 281 | L90: 262.1 | M90: 5.61864
A91: 81 | B91: BRITANNIA | C91: 3618.5 | D91: 3632.92 | E91: 3595.83 | F91: 3573.17 | G91: 3536.08 | H91: 3655.58 | I91: 3692.67 | J91: 3715.33 | K91: 3670 | L91: 3610.25 | M91: 4.60658
A92: 82 | B92: CARERATING | C92: 430.6 | D92: 426.52 | E92: 420.53 | F92: 410.47 | G92: 404.48 | H92: 436.58 | I92: 442.57 | J92: 452.63 | K92: 432.5 | L92: 416.45 | M92: 1.76906
A93: 83 | B93: CCL | C93: 230.55 | D93: 232.88 | E93: 226.77 | F93: 222.98 | G93: 216.87 | H93: 236.67 | I93: 242.78 | J93: 246.57 | K93: 239 | L93: 229.1 | M93: 2.23811
A94: 84 | B94: CESC | C94: 605.55 | D94: 603.52 | E94: 597.03 | F94: 588.52 | G94: 582.03 | H94: 612.03 | I94: 618.52 | J94: 627.03 | K94: 610 | L94: 595 | M94: 1.4971
A95: 85 | B95: CRISIL | C95: 1788.95 | D95: 1813.37 | E95: 1756.88 | F95: 1724.82 | G95: 1668.33 | H95: 1845.43 | I95: 1901.92 | J95: 1933.98 | K95: 1869.85 | L95: 1781.3 | M95: 0.63031
A96: 86 | B96: CSBBANK | C96: 236.2 | D96: 238.03 | E96: 231.17 | F96: 226.13 | G96: 219.27 | H96: 243.07 | I96: 249.93 | J96: 254.97 | K96: 244.9 | L96: 233 | M96: 3.11232
A97: 87 | B97: CADILAHC | C97: 441.8 | D97: 443.13 | E97: 439.12 | F97: 436.43 | G97: 432.42 | H97: 445.82 | I97: 449.83 | J97: 452.52 | K97: 447.15 | L97: 440.45 | M97: 12.69615
A98: 88 | B98: CANFINHOME | C98: 611.45 | D98: 611.30 | E98: 602.70 | F98: 593.95 | G98: 585.35 | H98: 620.05 | I98: 628.65 | J98: 637.40 | K98: 619.9 | L98: 602.55 | M98: 3.30083
A99: 89 | B99: CANBK | C99: 156.35 | D99: 154.78 | E99: 152.17 | F99: 147.98 | G99: 145.37 | H99: 158.97 | I99: 161.58 | J99: 165.77 | K99: 157.4 | L99: 150.6 | M99: 186.68358
A100: 90 | B100: CAPLIPOINT | C100: 452.35 | D100: 441.23 | E100: 418.47 | F100: 384.58 | G100: 361.82 | H100: 475.12 | I100: 497.88 | J100: 531.77 | K100: 464 | L100: 407.35 | M100: 11.00784
A101: 91 | B101: CGCL | C101: 394.1 | D101: 390.17 | E101: 384.33 | F101: 374.57 | G101: 368.73 | H101: 399.93 | I101: 405.77 | J101: 415.53 | K101: 396 | L101: 380.4 | M101: 0.9245
A102: 92 | B102: CARBORUNIV | C102: 506.7 | D102: 509.93 | E102: 500.87 | F102: 495.03 | G102: 485.97 | H102: 515.77 | I102: 524.83 | J102: 530.67 | K102: 519 | L102: 504.1 | M102: 1.60647
A103: 93 | B103: CASTROLIND | C103: 124.8 | D103: 125.07 | E103: 123.73 | F103: 122.67 | G103: 121.33 | H103: 126.13 | I103: 127.47 | J103: 128.53 | K103: 126.4 | L103: 124 | M103: 8.89567
A104: 94 | B104: CEATLTD | C104: 1595.8 | D104: 1585.60 | E104: 1562.20 | F104: 1528.60 | G104: 1505.20 | H104: 1619.20 | I104: 1642.60 | J104: 1676.20 | K104: 1609 | L104: 1552 | M104: 2.59451
A105: 95 | B105: CENTRALBK | C105: 17.1 | D105: 16.93 | E105: 16.77 | F105: 16.43 | G105: 16.27 | H105: 17.27 | I105: 17.43 | J105: 17.77 | K105: 17.1 | L105: 16.6 | M105: 86.37139
A106: 96 | B106: CDSL | C106: 655.65 | D106: 659.82 | E106: 647.93 | F106: 640.22 | G106: 628.33 | H106: 667.53 | I106: 679.42 | J106: 687.13 | K106: 671.7 | L106: 652.1 | M106: 7.12734
A107: 97 | B107: CENTURYPLY | C107: 318.25 | D107: 318.92 | E107: 314.58 | F107: 310.92 | G107: 306.58 | H107: 322.58 | I107: 326.92 | J107: 330.58 | K107: 323.25 | L107: 315.25 | M107: 1.37016
A108: 98 | B108: CENTURYTEX | C108: 458.9 | D108: 461.78 | E108: 452.67 | F108: 446.43 | G108: 437.32 | H108: 468.02 | I108: 477.13 | J108: 483.37 | K108: 470.9 | L108: 455.55 | M108: 4.98618
A109: 99 | B109: CERA | C109: 3867.45 | D109: 3902.57 | E109: 3780.13 | F109: 3692.82 | G109: 3570.38 | H109: 3989.88 | I109: 4112.32 | J109: 4199.63 | K109: 4025 | L109: 3815.25 | M109: 0.05685
A110: 100 | B110: CHALET | C110: 152.7 | D110: 151.67 | E110: 148.33 | F110: 143.97 | G110: 140.63 | H110: 156.03 | I110: 159.37 | J110: 163.73 | K110: 155 | L110: 147.3 | M110: 1.75959
A111: 101 | B111: CHAMBLFERT | C111: 230.35 | D111: 230.08 | E111: 226.62 | F111: 222.88 | G111: 219.42 | H111: 233.82 | I111: 237.28 | J111: 241.02 | K111: 233.55 | L111: 226.35 | M111: 4.61695
A112: 102 | B112: CHENNPETRO | C112: 103.05 | D112: 101.98 | E112: 100.47 | F112: 97.88 | G112: 96.37 | H112: 104.57 | I112: 106.08 | J112: 108.67 | K112: 103.5 | L112: 99.4 | M112: 4.45355
A113: 103 | B113: CHOLAHLDNG | C113: 600.85 | D113: 599.00 | E113: 591.95 | F113: 583.05 | G113: 576.00 | H113: 607.90 | I113: 614.95 | J113: 623.85 | K113: 606.05 | L113: 590.1 | M113: 0.2442
A114: 104 | B114: CHOLAFIN | C114: 562.5 | D114: 560.33 | E114: 551.77 | F114: 541.03 | G114: 532.47 | H114: 571.07 | I114: 579.63 | J114: 590.37 | K114: 568.9 | L114: 549.6 | M114: 44.61159
A115: 105 | B115: CIPLA | C115: 818.3 | D115: 817.97 | E115: 811.93 | F115: 805.57 | G115: 799.53 | H115: 824.33 | I115: 830.37 | J115: 836.73 | K115: 824 | L115: 811.6 | M115: 19.10949
A116: 106 | B116: CUB | C116: 161.1 | D116: 159.83 | E116: 157.72 | F116: 154.33 | G116: 152.22 | H116: 163.22 | I116: 165.33 | J116: 168.72 | K116: 161.95 | L116: 156.45 | M116: 15.02566
A117: 107 | B117: COALINDIA | C117: 132.15 | D117: 131.72 | E117: 131.03 | F117: 129.92 | G117: 129.23 | H117: 132.83 | I117: 133.52 | J117: 134.63 | K117: 132.4 | L117: 130.6 | M117: 62.26087
A118: 108 | B118: COCHINSHIP | C118: 378.45 | D118: 377.48 | E118: 373.97 | F118: 369.48 | G118: 365.97 | H118: 381.97 | I118: 385.48 | J118: 389.97 | K118: 381 | L118: 373 | M118: 1.13211
A119: 109 | B119: COFORGE | C119: 2933.45 | D119: 2964.13 | E119: 2857.47 | F119: 2781.48 | G119: 2674.82 | H119: 3040.12 | I119: 3146.78 | J119: 3222.77 | K119: 3070.8 | L119: 2888.15 | M119: 8.32101
A120: 110 | B120: COLPAL | C120: 1562.95 | D120: 1565.43 | E120: 1552.87 | F120: 1542.78 | G120: 1530.22 | H120: 1575.52 | I120: 1588.08 | J120: 1598.17 | K120: 1578 | L120: 1555.35 | M120: 2.2843
A121: 111 | B121: CONCOR | C121: 598.6 | D121: 599.32 | E121: 592.63 | F121: 586.67 | G121: 579.98 | H121: 605.28 | I121: 611.97 | J121: 617.93 | K121: 606 | L121: 593.35 | M121: 23.50611
A122: 112 | B122: COROMANDEL | C122: 748.9 | D122: 756.68 | E122: 738.47 | F122: 728.03 | G122: 709.82 | H122: 767.12 | I122: 785.33 | J122: 795.77 | K122: 774.9 | L122: 746.25 | M122: 6.00863
A123: 113 | B123: CREDITACC | C123: 666.9 | D123: 668.48 | E123: 658.42 | F123: 649.93 | G123: 639.87 | H123: 676.97 | I123: 687.03 | J123: 695.52 | K123: 678.55 | L123: 660 | M123: 0.46538
A124: 114 | B124: CROMPTON | C124: 393.25 | D124: 391.90 | E124: 384.80 | F124: 376.35 | G124: 369.25 | H124: 400.35 | I124: 407.45 | J124: 415.90 | K124: 399 | L124: 383.45 | M124: 13.17098
A125: 115 | B125: CUMMINSIND | C125: 895.35 | D125: 905.93 | E125: 877.62 | F125: 859.88 | G125: 831.57 | H125: 923.67 | I125: 951.98 | J125: 969.72 | K125: 934.25 | L125: 888.2 | M125: 15.46599
A126: 116 | B126: CYIENT | C126: 665.65 | D126: 665.50 | E126: 652.20 | F126: 638.75 | G126: 625.45 | H126: 678.95 | I126: 692.25 | J126: 705.70 | K126: 678.8 | L126: 652.05 | M126: 4.96762
A127: 117 | B127: DBCORP | C127: 91.5 | D127: 91.25 | E127: 90.15 | F127: 88.80 | G127: 87.70 | H127: 92.60 | I127: 93.70 | J127: 95.05 | K127: 92.35 | L127: 89.9 | M127: 1.49266
A128: 118 | B128: DCBBANK | C128: 104.35 | D128: 104.18 | E128: 103.17 | F128: 101.98 | G128: 100.97 | H128: 105.37 | I128: 106.38 | J128: 107.57 | K128: 105.2 | L128: 103 | M128: 10.47396
A129: 119 | B129: DCMSHRIRAM | C129: 517.6 | D129: 515.00 | E129: 506.30 | F129: 495.00 | G129: 486.30 | H129: 526.30 | I129: 535.00 | J129: 546.30 | K129: 523.7 | L129: 503.7 | M129: 0.54432
A130: 120 | B130: DLF | C130: 291.8 | D130: 289.63 | E130: 285.67 | F130: 279.53 | G130: 275.57 | H130: 295.77 | I130: 299.73 | J130: 305.87 | K130: 293.6 | L130: 283.5 | M130: 73.7209
A131: 121 | B131: DABUR | C131: 538.65 | D131: 539.80 | E131: 535.65 | F131: 532.65 | G131: 528.50 | H131: 542.80 | I131: 546.95 | J131: 549.95 | K131: 543.95 | L131: 536.8 | M131: 8.23482
A132: 122 | B132: DALBHARAT | C132: 1560.35 | D132: 1570.08 | E132: 1540.27 | F132: 1520.18 | G132: 1490.37 | H132: 1590.17 | I132: 1619.98 | J132: 1640.07 | K132: 1599.9 | L132: 1550 | M132: 1.92213
A133: 123 | B133: DEEPAKNTR | C133: 1646.75 | D133: 1658.80 | E133: 1623.90 | F133: 1601.05 | G133: 1566.15 | H133: 1681.65 | I133: 1716.55 | J133: 1739.40 | K133: 1693.7 | L133: 1635.95 | M133: 10.07936
A134: 124 | B134: DELTACORP | C134: 169.05 | D134: 167.52 | E134: 164.53 | F134: 160.02 | G134: 157.03 | H134: 172.03 | I134: 175.02 | J134: 179.53 | K134: 170.5 | L134: 163 | M134: 31.06714
A135: 125 | B135: DHANI | C135: 172.35 | D135: 170.78 | E135: 156.67 | F135: 140.98 | G135: 126.87 | H135: 186.47 | I135: 200.58 | J135: 216.27 | K135: 184.9 | L135: 155.1 | M135: 108.7252
A136: 126 | B136: DHANUKA | C136: 717.15 | D136: 709.85 | E136: 697.30 | F136: 677.45 | G136: 664.90 | H136: 729.70 | I136: 742.25 | J136: 762.10 | K136: 722.4 | L136: 690 | M136: 0.9008
A137: 127 | B137: DBL | C137: 595 | D137: 592.98 | E137: 582.02 | F137: 569.03 | G137: 558.07 | H137: 605.97 | I137: 616.93 | J137: 629.92 | K137: 603.95 | L137: 580 | M137: 1.68401
A138: 128 | B138: DISHTV | C138: 10.3 | D138: 10.15 | E138: 9.40 | F138: 8.50 | G138: 7.75 | H138: 11.05 | I138: 11.80 | J138: 12.70 | K138: 10.9 | L138: 9.25 | M138: 275.26503
A139: 129 | B139: DCAL | C139: 113.45 | D139: 112.57 | E139: 110.13 | F139: 106.82 | G139: 104.38 | H139: 115.88 | I139: 118.32 | J139: 121.63 | K139: 115 | L139: 109.25 | M139: 4.2271
A140: 130 | B140: DIVISLAB | C140: 3616.1 | D140: 3619.37 | E140: 3599.73 | F140: 3583.37 | G140: 3563.73 | H140: 3635.73 | I140: 3655.37 | J140: 3671.73 | K140: 3639 | L140: 3603 | M140: 2.47
A141: 131 | B141: DIXON | C141: 3588.05 | D141: 3626.52 | E141: 3533.03 | F141: 3478.02 | G141: 3384.53 | H141: 3681.53 | I141: 3775.02 | J141: 3830.03 | K141: 3720 | L141: 3571.5 | M141: 3.74644
A142: 132 | B142: LALPATHLAB | C142: 2730.6 | D142: 2715.52 | E142: 2681.03 | F142: 2631.47 | G142: 2596.98 | H142: 2765.08 | I142: 2799.57 | J142: 2849.13 | K142: 2750 | L142: 2665.95 | M142: 2.89605
A143: 133 | B143: DRREDDY | C143: 4587.65 | D143: 4568.22 | E143: 4541.48 | F143: 4495.32 | G143: 4468.58 | H143: 4614.38 | I143: 4641.12 | J143: 4687.28 | K143: 4594.95 | L143: 4522.05 | M143: 6.4764
A144: 134 | B144: EIDPARRY | C144: 324.35 | D144: 323.48 | E144: 320.47 | F144: 316.58 | G144: 313.57 | H144: 327.37 | I144: 330.38 | J144: 334.27 | K144: 326.5 | L144: 319.6 | M144: 1.31061
A145: 135 | B145: EIHOTEL | C145: 95.5 | D145: 95.37 | E145: 93.33 | F145: 91.17 | G145: 89.13 | H145: 97.53 | I145: 99.57 | J145: 101.73 | K145: 97.4 | L145: 93.2 | M145: 4.565
A146: 136 | B146: EPL | C146: 235.15 | D146: 237.33 | E146: 230.82 | F146: 226.48 | G146: 219.97 | H146: 241.67 | I146: 248.18 | J146: 252.52 | K146: 243.85 | L146: 233 | M146: 21.16025
A147: 137 | B147: ESABINDIA | C147: 1830.8 | D147: 1822.83 | E147: 1806.67 | F147: 1782.53 | G147: 1766.37 | H147: 1846.97 | I147: 1863.13 | J147: 1887.27 | K147: 1839 | L147: 1798.7 | M147: 0.03619
A148: 138 | B148: EDELWEISS | C148: 66.45 | D148: 65.33 | E148: 64.22 | F148: 61.98 | G148: 60.87 | H148: 67.57 | I148: 68.68 | J148: 70.92 | K148: 66.45 | L148: 63.1 | M148: 40.24006
A149: 139 | B149: EICHERMOT | C149: 2631.15 | D149: 2623.00 | E149: 2597.00 | F149: 2562.85 | G149: 2536.85 | H149: 2657.15 | I149: 2683.15 | J149: 2717.30 | K149: 2649 | L149: 2588.85 | M149: 7.44423
A150: 140 | B150: ELGIEQUIP | C150: 197.2 | D150: 195.10 | E150: 191.45 | F150: 185.70 | G150: 182.05 | H150: 200.85 | I150: 204.50 | J150: 210.25 | K150: 198.75 | L150: 189.35 | M150: 1.06111
A151: 141 | B151: EMAMILTD | C151: 488.05 | D151: 487.43 | E151: 481.07 | F151: 474.08 | G151: 467.72 | H151: 494.42 | I151: 500.78 | J151: 507.77 | K151: 493.8 | L151: 480.45 | M151: 8.28339
A152: 142 | B152: ENDURANCE | C152: 1440.75 | D152: 1443.72 | E152: 1422.33 | F152: 1403.92 | G152: 1382.53 | H152: 1462.13 | I152: 1483.52 | J152: 1501.93 | K152: 1465.1 | L152: 1425.3 | M152: 0.68246
A153: 143 | B153: ENGINERSIN | C153: 78.4 | D153: 78.17 | E153: 77.33 | F153: 76.27 | G153: 75.43 | H153: 79.23 | I153: 80.07 | J153: 81.13 | K153: 79 | L153: 77.1 | M153: 16.33313
A154: 144 | B154: EQUITAS | C154: 87.8 | D154: 88.08 | E154: 86.92 | F154: 86.03 | G154: 84.87 | H154: 88.97 | I154: 90.13 | J154: 91.02 | K154: 89.25 | L154: 87.2 | M154: 8.99852
A155: 145 | B155: ERIS | C155: 604.3 | D155: 612.77 | E155: 591.53 | F155: 578.77 | G155: 557.53 | H155: 625.53 | I155: 646.77 | J155: 659.53 | K155: 634 | L155: 600 | M155: 2.67662
A156: 146 | B156: ESCORTS | C156: 1274.05 | D156: 1284.75 | E156: 1252.60 | F156: 1231.15 | G156: 1199.00 | H156: 1306.20 | I156: 1338.35 | J156: 1359.80 | K156: 1316.9 | L156: 1263.3 | M156: 15.97734
A157: 147 | B157: EXIDEIND | C157: 185.8 | D157: 185.40 | E157: 184.50 | F157: 183.20 | G157: 182.30 | H157: 186.70 | I157: 187.60 | J157: 188.90 | K157: 186.3 | L157: 184.1 | M157: 20.10308
A158: 148 | B158: FDC | C158: 287.8 | D158: 288.62 | E158: 285.28 | F158: 282.77 | G158: 279.43 | H158: 291.13 | I158: 294.47 | J158: 296.98 | K158: 291.95 | L158: 286.1 | M158: 1.77323
A159: 149 | B159: FEDERALBNK | C159: 78.85 | D159: 78.22 | E159: 76.93 | F159: 75.02 | G159: 73.73 | H159: 80.13 | I159: 81.42 | J159: 83.33 | K159: 79.5 | L159: 76.3 | M159: 179.48568
A160: 150 | B160: FINEORG | C160: 2290.25 | D160: 2289.47 | E160: 2272.83 | F160: 2255.42 | G160: 2238.78 | H160: 2306.88 | I160: 2323.52 | J160: 2340.93 | K160: 2306.1 | L160: 2272.05 | M160: 0.25554
A161: 151 | B161: FINCABLES | C161: 388.75 | D161: 387.40 | E161: 382.85 | F161: 376.95 | G161: 372.40 | H161: 393.30 | I161: 397.85 | J161: 403.75 | K161: 391.95 | L161: 381.5 | M161: 0.65348
A162: 152 | B162: FINPIPE | C162: 654.7 | D162: 653.90 | E162: 648.80 | F162: 642.90 | G162: 637.80 | H162: 659.80 | I162: 664.90 | J162: 670.80 | K162: 659 | L162: 648 | M162: 2.74459
A163: 153 | B163: FSL | C163: 118.1 | D163: 117.77 | E163: 114.63 | F163: 111.17 | G163: 108.03 | H163: 121.23 | I163: 124.37 | J163: 127.83 | K163: 120.9 | L163: 114.3 | M163: 84.6762
A164: 154 | B164: FORTIS | C164: 202.25 | D164: 201.40 | E164: 199.00 | F164: 195.75 | G164: 193.35 | H164: 204.65 | I164: 207.05 | J164: 210.30 | K164: 203.8 | L164: 198.15 | M164: 16.50936
A165: 155 | B165: FCONSUMER | C165: 6.6 | D165: 6.43 | E165: 6.27 | F165: 5.93 | G165: 5.77 | H165: 6.77 | I165: 6.93 | J165: 7.27 | K165: 6.6 | L165: 6.1 | M165: 49.63091
A166: 156 | B166: FRETAIL | C166: 44.75 | D166: 43.35 | E166: 41.95 | F166: 39.15 | G166: 37.75 | H166: 46.15 | I166: 47.55 | J166: 50.35 | K166: 44.75 | L166: 40.55 | M166: 44.58582
A167: 157 | B167: GAIL | C167: 140.15 | D167: 138.77 | E167: 136.58 | F167: 133.02 | G167: 130.83 | H167: 142.33 | I167: 144.52 | J167: 148.08 | K167: 140.95 | L167: 135.2 | M167: 188.28032
A168: 158 | B168: GEPIL | C168: 286.05 | D168: 286.88 | E168: 283.17 | F168: 280.28 | G168: 276.57 | H168: 289.77 | I168: 293.48 | J168: 296.37 | K168: 290.6 | L168: 284 | M168: 0.55821
A169: 159 | B169: GHCL | C169: 229.6 | D169: 229.90 | E169: 226.70 | F169: 223.80 | G169: 220.60 | H169: 232.80 | I169: 236.00 | J169: 238.90 | K169: 233.1 | L169: 227 | M169: 1.10993
A170: 160 | B170: GMMPFAUDLR | C170: 4437.9 | D170: 4422.97 | E170: 4309.93 | F170: 4181.97 | G170: 4068.93 | H170: 4550.93 | I170: 4663.97 | J170: 4791.93 | K170: 4536 | L170: 4295 | M170: 1.31914
A171: 161 | B171: GMRINFRA | C171: 25 | D171: 24.75 | E171: 24.35 | F171: 23.70 | G171: 23.30 | H171: 25.40 | I171: 25.80 | J171: 26.45 | K171: 25.15 | L171: 24.1 | M171: 192.23855
A172: 162 | B172: GALAXYSURF | C172: 2546.35 | D172: 2560.70 | E172: 2515.65 | F172: 2484.95 | G172: 2439.90 | H172: 2591.40 | I172: 2636.45 | J172: 2667.15 | K172: 2605.75 | L172: 2530 | M172: 0.23403
A173: 163 | B173: GRSE | C173: 190.55 | D173: 189.78 | E173: 186.57 | F173: 182.58 | G173: 179.37 | H173: 193.77 | I173: 196.98 | J173: 200.97 | K173: 193 | L173: 185.8 | M173: 1.21867
A174: 164 | B174: GARFIBRES | C174: 2616.2 | D174: 2609.25 | E174: 2591.00 | F174: 2565.80 | G174: 2547.55 | H174: 2634.45 | I174: 2652.70 | J174: 2677.90 | K174: 2627.5 | L174: 2584.05 | M174: 0.10493
A175: 165 | B175: GICRE | C175: 208.2 | D175: 205.07 | E175: 199.13 | F175: 190.07 | G175: 184.13 | H175: 214.13 | I175: 220.07 | J175: 229.13 | K175: 211 | L175: 196 | M175: 25.21612
A176: 166 | B176: GILLETTE | C176: 5689.75 | D176: 5691.62 | E176: 5488.23 | F176: 5286.72 | G176: 5083.33 | H176: 5893.13 | I176: 6096.52 | J176: 6298.03 | K176: 5895 | L176: 5490.1 | M176: 0.16491
A177: 167 | B177: GLAXO | C177: 1432.15 | D177: 1439.05 | E177: 1423.10 | F177: 1414.05 | G177: 1398.10 | H177: 1448.10 | I177: 1464.05 | J177: 1473.10 | K177: 1455 | L177: 1430 | M177: 0.30043
A178: 168 | B178: GLENMARK | C178: 483.25 | D178: 477.87 | E178: 467.73 | F178: 452.22 | G178: 442.08 | H178: 493.38 | I178: 503.52 | J178: 519.03 | K178: 488 | L178: 462.35 | M178: 21.83036
A179: 169 | B179: GODFRYPHLP | C179: 928 | D179: 926.33 | E179: 917.67 | F179: 907.33 | G179: 898.67 | H179: 936.67 | I179: 945.33 | J179: 955.67 | K179: 935 | L179: 916 | M179: 0.72171
A180: 170 | B180: GODREJAGRO | C180: 518 | D180: 521.05 | E180: 509.75 | F180: 501.50 | G180: 490.20 | H180: 529.30 | I180: 540.60 | J180: 548.85 | K180: 532.35 | L180: 512.8 | M180: 1.30637
A181: 171 | B181: GODREJCP | C181: 726.3 | D181: 728.63 | E181: 721.37 | F181: 716.43 | G181: 709.17 | H181: 733.57 | I181: 740.83 | J181: 745.77 | K181: 735.9 | L181: 723.7 | M181: 6.81593
A182: 172 | B182: GODREJIND | C182: 539.5 | D182: 540.40 | E182: 532.50 | F182: 525.50 | G182: 517.60 | H182: 547.40 | I182: 555.30 | J182: 562.30 | K182: 548.3 | L182: 533.4 | M182: 1.93533
A183: 173 | B183: GODREJPROP | C183: 1391.35 | D183: 1386.35 | E183: 1366.30 | F183: 1341.25 | G183: 1321.20 | H183: 1411.40 | I183: 1431.45 | J183: 1456.50 | K183: 1406.4 | L183: 1361.3 | M183: 10.24026
A184: 174 | B184: GRANULES | C184: 311.9 | D184: 309.53 | E184: 306.47 | F184: 301.03 | G184: 297.97 | H184: 314.97 | I184: 318.03 | J184: 323.47 | K184: 312.6 | L184: 304.1 | M184: 18.39186
A185: 175 | B185: GRAPHITE | C185: 557.4 | D185: 552.20 | E185: 523.45 | F185: 489.50 | G185: 460.75 | H185: 586.15 | I185: 614.90 | J185: 648.85 | K185: 580.95 | L185: 518.25 | M185: 56.00312
A186: 176 | B186: GRASIM | C186: 1454.5 | D186: 1452.82 | E186: 1438.63 | F186: 1422.77 | G186: 1408.58 | H186: 1468.68 | I186: 1482.87 | J186: 1498.73 | K186: 1467 | L186: 1436.95 | M186: 12.70201
A187: 177 | B187: GESHIP | C187: 315.1 | D187: 317.30 | E187: 307.85 | F187: 300.60 | G187: 291.15 | H187: 324.55 | I187: 334.00 | J187: 341.25 | K187: 326.75 | L187: 310.05 | M187: 2.65822
A188: 178 | B188: GREAVESCOT | C188: 134.25 | D188: 132.42 | E188: 129.83 | F188: 125.42 | G188: 122.83 | H188: 136.83 | I188: 139.42 | J188: 143.83 | K188: 135 | L188: 128 | M188: 10.99718
A189: 179 | B189: GRINDWELL | C189: 934.4 | D189: 941.22 | E189: 918.18 | F189: 901.97 | G189: 878.93 | H189: 957.43 | I189: 980.47 | J189: 996.68 | K189: 964.25 | L189: 925 | M189: 1.49416
A190: 180 | B190: GUJALKALI | C190: 353.25 | D190: 351.90 | E190: 345.80 | F190: 338.35 | G190: 332.25 | H190: 359.35 | I190: 365.45 | J190: 372.90 | K190: 358 | L190: 344.45 | M190: 1.07076
A191: 181 | B191: GAEL | C191: 135.2 | D191: 133.83 | E191: 129.77 | F191: 124.33 | G191: 120.27 | H191: 139.27 | I191: 143.33 | J191: 148.77 | K191: 137.9 | L191: 128.4 | M191: 4.07247
A192: 182 | B192: FLUOROCHEM | C192: 610.65 | D192: 600.55 | E192: 585.10 | F192: 559.55 | G192: 544.10 | H192: 626.10 | I192: 641.55 | J192: 667.10 | K192: 616 | L192: 575 | M192: 0.75478
A193: 183 | B193: GUJGASLTD | C193: 547.8 | D193: 551.93 | E193: 537.87 | F193: 527.93 | G193: 513.87 | H193: 561.87 | I193: 575.93 | J193: 585.87 | K193: 566 | L193: 542 | M193: 16.6537
A194: 184 | B194: GMDCLTD | C194: 58.95 | D194: 58.05 | E194: 56.35 | F194: 53.75 | G194: 52.05 | H194: 60.65 | I194: 62.35 | J194: 64.95 | K194: 59.75 | L194: 55.45 | M194: 24.23496
A195: 185 | B195: GNFC | C195: 311.95 | D195: 309.80 | E195: 305.85 | F195: 299.75 | G195: 295.80 | H195: 315.90 | I195: 319.85 | J195: 325.95 | K195: 313.75 | L195: 303.7 | M195: 10.88792
A196: 186 | B196: GPPL | C196: 99.95 | D196: 99.30 | E196: 97.90 | F196: 95.85 | G196: 94.45 | H196: 101.35 | I196: 102.75 | J196: 104.80 | K196: 100.7 | L196: 97.25 | M196: 1.93831
A197: 187 | B197: GSFC | C197: 87.15 | D197: 85.60 | E197: 83.30 | F197: 79.45 | G197: 77.15 | H197: 89.45 | I197: 91.75 | J197: 95.60 | K197: 87.9 | L197: 81.75 | M197: 26.6326
A198: 188 | B198: GSPL | C198: 276.3 | D198: 276.68 | E198: 272.97 | F198: 269.63 | G198: 265.92 | H198: 280.02 | I198: 283.73 | J198: 287.07 | K198: 280.4 | L198: 273.35 | M198: 9.64293
A199: 189 | B199: GULFOILLUB | C199: 742.2 | D199: 736.40 | E199: 727.80 | F199: 713.40 | G199: 704.80 | H199: 750.80 | I199: 759.40 | J199: 773.80 | K199: 745 | L199: 722 | M199: 0.11469
A200: 190 | B200: HEG | C200: 1580.9 | D200: 1554.63 | E200: 1504.27 | F200: 1427.63 | G200: 1377.27 | H200: 1631.27 | I200: 1681.63 | J200: 1758.27 | K200: 1605 | L200: 1478 | M200: 9.83669
A201: 191 | B201: HCLTECH | C201: 1002.6 | D201: 1002.23 | E201: 990.97 | F201: 979.33 | G201: 968.07 | H201: 1013.87 | I201: 1025.13 | J201: 1036.77 | K201: 1013.5 | L201: 990.6 | M201: 52.69079
A202: 192 | B202: HDFCAMC | C202: 2963.35 | D202: 2943.17 | E202: 2911.33 | F202: 2859.32 | G202: 2827.48 | H202: 2995.18 | I202: 3027.02 | J202: 3079.03 | K202: 2975 | L202: 2891.15 | M202: 1.21493
A203: 193 | B203: HDFCBANK | C203: 1486.75 | D203: 1483.72 | E203: 1468.03 | F203: 1449.32 | G203: 1433.63 | H203: 1502.43 | I203: 1518.12 | J203: 1536.83 | K203: 1499.4 | L203: 1465 | M203: 178.81881
A204: 194 | B204: HDFCLIFE | C204: 691 | D204: 692.55 | E204: 680.75 | F204: 670.50 | G204: 658.70 | H204: 702.80 | I204: 714.60 | J204: 724.85 | K204: 704.35 | L204: 682.3 | M204: 34.43437
A205: 195 | B205: HFCL | C205: 26.4 | D205: 26.00 | E205: 25.00 | F205: 23.60 | G205: 22.60 | H205: 27.40 | I205: 28.40 | J205: 29.80 | K205: 27 | L205: 24.6 | M205: 55.53498
A206: 196 | B206: HATHWAY | C206: 25.35 | D206: 25.55 | E206: 24.95 | F206: 24.55 | G206: 23.95 | H206: 25.95 | I206: 26.55 | J206: 26.95 | K206: 26.15 | L206: 25.15 | M206: 13.4215
... 321 more rows

Sheet Bulk Deals
E6: Back To Main Page
A7: Subject : | B7: BULK DEAL | D7: =Main!B10 -> 2021-04-05
A9: Date | B9: Scrip code | C9: Scrip Name | D9: Client Name | E9: Buy / Sell | F9: Quantity Traded | G9: Trade Price / Wt.Avg.trade price | H9: Exchange
A10: 2021-04-01 | B10: 539544 | C10: ABHIINFRA | D10: PRIYADARSINI DWARAMPUDI | E10: BUY | F10: 18,700 | G10: 4.62 | H10: BSE
A11: 2021-04-01 | B11: 539872 | C11: BAJAJHCARE | D11: ESCORP ASSET MANAGEMENT LIMITED | E11: SELL | F11: 195,000 | G11: 442.4 | H11: BSE
A12: 2021-04-01 | B12: 539872 | C12: BAJAJHCARE | D12: ALPHA LEON ENTERPRISES LLP | E12: BUY | F12: 102,298 | G12: 442.54 | H12: BSE
A13: 2021-04-01 | B13: 539872 | C13: BAJAJHCARE | D13: ALPHA LEON ENTERPRISES LLP | E13: SELL | F13: 93,898 | G13: 442.22 | H13: BSE
A14: 2021-04-01 | B14: 539872 | C14: BAJAJHCARE | D14: VINOD HARILAL JHAVERI | E14: SELL | F14: 100,000 | G14: 441.12 | H14: BSE
A15: 2021-04-01 | B15: 539872 | C15: BAJAJHCARE | D15: SHRI RAVINDRA MEDIA VENTURES PRIVATE LIMITED | E15: SELL | F15: 70,000 | G15: 441.7 | H15: BSE
A16: 2021-04-01 | B16: 539872 | C16: BAJAJHCARE | D16: SETU SECURITIES PVT LTD | E16: BUY | F16: 79,389 | G16: 442.11 | H16: BSE
A17: 2021-04-01 | B17: 539872 | C17: BAJAJHCARE | D17: SETU SECURITIES PVT LTD | E17: SELL | F17: 75,889 | G17: 441.44 | H17: BSE
A18: 2021-04-01 | B18: 500069 | C18: BNKCAP | D18: RAJASTHAN GLOBAL SECURITIES PRIVATE LIMITED | E18: BUY | F18: 89,863 | G18: 179.67 | H18: BSE
A19: 2021-04-01 | B19: 538765 | C19: JSHL | D19: VIVEK DWIVEDI | E19: BUY | F19: 80,000 | G19: 10.11 | H19: BSE
A20: 2021-04-01 | B20: 540360 | C20: LLFICL | D20: TOUCHLINE SECURITIES PRIVATE LIMITED | E20: BUY | F20: 67,464 | G20: 69.34 | H20: BSE
A21: 2021-04-01 | B21: 540360 | C21: LLFICL | D21: B M TRADERS | E21: SELL | F21: 63,156 | G21: 69.45 | H21: BSE
A22: 2021-04-01 | B22: 543282 | C22: NIKSTECH | D22: SHERWOOD SECURITIES PVT LTD | E22: BUY | F22: 5,400 | G22: 203.17 | H22: BSE
A23: 2021-04-01 | B23: 540198 | C23: OSIAJEE | D23: ASHOK KUMAR SETHI | E23: BUY | F23: 35,984 | G23: 20.35 | H23: BSE
A24: 2021-04-01 | B24: 540198 | C24: OSIAJEE | D24: ASHOK KUMAR SETHI | E24: SELL | F24: 25,238 | G24: 20.25 | H24: BSE
A25: 2021-04-01 | B25: 532486 | C25: POKARNA | D25: GIRISH V BHATT HUF | E25: BUY | F25: 177,093 | G25: 264 | H25: BSE
A26: 2021-04-01 | B26: 532486 | C26: POKARNA | D26: GIRISH V BHATT HUF | E26: SELL | F26: 176,593 | G26: 265.12 | H26: BSE
A27: 2021-04-01 | B27: 532486 | C27: POKARNA | D27: PSR KOTESWARA RAO | E27: BUY | F27: 323,500 | G27: 265.24 | H27: BSE
A28: 2021-04-01 | B28: 532486 | C28: POKARNA | D28: PSR KOTESWARA RAO | E28: SELL | F28: 323,500 | G28: 263.88 | H28: BSE
A29: 2021-04-01 | B29: 540404 | C29: PRIMEFRESH | D29: GURMEETSINGH BHAMRAH | E29: BUY | F29: 21,000 | G29: 150 | H29: BSE
A30: 2021-04-01 | B30: 540404 | C30: PRIMEFRESH | D30: MORLEY FABRICS PRIVATE LIMITED | E30: BUY | F30: 46,000 | G30: 150 | H30: BSE
A31: 2021-04-01 | B31: 540404 | C31: PRIMEFRESH | D31: KAJOL BHATIA | E31: SELL | F31: 21,000 | G31: 150 | H31: BSE
A32: 2021-04-01 | B32: 540404 | C32: PRIMEFRESH | D32: PLATINUMLINE INVESTMENT & TRADING CO LTD | E32: SELL | F32: 23,000 | G32: 150 | H32: BSE
A33: 2021-04-01 | B33: 539026 | C33: SSPNFIN | D33: CHANDA SONI | E33: BUY | F33: 40,000 | G33: 16.8 | H33: BSE
A34: 2021-04-01 | B34: 539026 | C34: SSPNFIN | D34: BHARAT BHUSHAN | E34: BUY | F34: 40,000 | G34: 16.98 | H34: BSE
A35: 2021-04-01 | B35: 539026 | C35: SSPNFIN | D35: SUMAN PARMANAND SINGH | E35: BUY | F35: 28,000 | G35: 17.2 | H35: BSE
A36: 2021-04-01 | B36: 539026 | C36: SSPNFIN | D36: SUBASH RAMASHISH MISHRA | E36: BUY | F36: 48,000 | G36: 17.16 | H36: BSE
A37: 2021-04-01 | B37: 539026 | C37: SSPNFIN | D37: SUBASH RAMASHISH MISHRA | E37: SELL | F37: 32,000 | G37: 17.06 | H37: BSE
A38: 2021-04-01 | B38: 539026 | C38: SSPNFIN | D38: ASHOK KUMAR SINGH | E38: SELL | F38: 36,000 | G38: 16.98 | H38: BSE
A39: 2021-04-01 | B39: 539026 | C39: SSPNFIN | D39: DHARMENDRASINH SHIVBHA JADEJA | E39: SELL | F39: 40,000 | G39: 16.8 | H39: BSE
A40: 2021-04-01 | B40: 539026 | C40: SSPNFIN | D40: SUMAN PARMANAND SINGH | E40: SELL | F40: 48,000 | G40: 17.21 | H40: BSE
A41: 2021-04-01 | B41: 539026 | C41: SSPNFIN | D41: ASHOK KUMAR SINGH | E41: BUY | F41: 76,000 | G41: 17.19 | H41: BSE
A42: 2021-04-01 | B42: 539026 | C42: SSPNFIN | D42: ESPS FINSERVE PRIVATE LIMITED | E42: SELL | F42: 76,000 | G42: 17.17 | H42: BSE
A43: 2021-04-01 | B43: 539041 | C43: SVPHOUSING | D43: MAHENDER KUMAR GUPTA HUF | E43: SELL | F43: 57,500 | G43: 7.92 | H43: BSE
A44: 2021-04-01 | B44: 539041 | C44: SVPHOUSING | D44: DEEPALI AGGARWAL | E44: SELL | F44: 82,500 | G44: 7.92 | H44: BSE
A45: 2021-04-01 | B45: 539041 | C45: SVPHOUSING | D45: NSMK INVESTMENTS PRIVATE LIMITED | E45: BUY | F45: 200,000 | G45: 7.92 | H45: BSE
A46: 2021-04-01 | B46: 590073 | C46: WHEELS | D46: STANDARD CHARTERED MUTUAL FUND | E46: SELL | F46: 251,582 | G46: 452.55 | H46: BSE
A47: 2021-04-01 | B47: APTECHT | C47: Aptech Limited | D47: ANKITA VISHAL SHAH | E47: BUY | F47: 553,397 | G47: 220.51 | H47: NSE
A48: 2021-04-01 | B48: EPL | C48: EPL Limited | D48: VANGUARD FUNDS PUBLIC LIMITED COMPANY VANGUARD FTSE ALL WORLD ETF | E48: BUY | F48: 1,643,796 | G48: 240 | H48: NSE
A49: 2021-04-01 | B49: FELIX | C49: Felix Industries Ltd. | D49: AYSHWARYA SYNDICATE | E49: BUY | F49: 28,000 | G49: 45.42 | H49: NSE
A50: 2021-04-01 | B50: HISARMETAL | C50: Hisar Metal Ind. Limited | D50: GRAVITON RESEARCH CAPITAL LLP | E50: BUY | F50: 30,995 | G50: 120.56 | H50: NSE
A51: 2021-04-01 | B51: HISARMETAL | C51: Hisar Metal Ind. Limited | D51: SATYANARAYAN J KABRA | E51: BUY | F51: 30,000 | G51: 123 | H51: NSE
A52: 2021-04-01 | B52: HISARMETAL | C52: Hisar Metal Ind. Limited | D52: B M TRADERS | E52: BUY | F52: 36,893 | G52: 119.49 | H52: NSE
A53: 2021-04-01 | B53: JAGSNPHARM | C53: Jagsonpal Pharma Ltd. | D53: ORION STOCKS LTD | E53: BUY | F53: 171,062 | G53: 81.98 | H53: NSE
A54: 2021-04-01 | B54: JUMPNET | C54: Jump Networks Limited | D54: DHWAJA SHARES & SECURITIES PVT LTD | E54: BUY | F54: 525,000 | G54: 9.5 | H54: NSE
A55: 2021-04-01 | B55: NAZARA | C55: Nazara Technologies Ltd | D55: GRAVITON RESEARCH CAPITAL LLP | E55: BUY | F55: 165,417 | G55: 1602.04 | H55: NSE
A56: 2021-04-01 | B56: SEAMECLTD | C56: SEAMEC Limited | D56: NOMURA SINGAPORE LIMITED | E56: BUY | F56: 250,000 | G56: 449.96 | H56: NSE
A57: 2021-04-01 | B57: VERTOZ | C57: Vertoz Advertising Ltd | D57: OLGA TRADING PRIVATE LIMITED | E57: BUY | F57: 63,689 | G57: 283.98 | H57: NSE
A58: 2021-04-01 | B58: APTECHT | C58: Aptech Limited | D58: ANKITA VISHAL SHAH | E58: SELL | F58: 423,397 | G58: 221.5 | H58: NSE
A59: 2021-04-01 | B59: ASIANTILES | C59: Asian Granito India Limit | D59: PAUL PETER P | E59: SELL | F59: 214,856 | G59: 157.76 | H59: NSE
A60: 2021-04-01 | B60: HISARMETAL | C60: Hisar Metal Ind. Limited | D60: B M TRADERS | E60: SELL | F60: 37,748 | G60: 117.94 | H60: NSE
A61: 2021-04-01 | B61: HISARMETAL | C61: Hisar Metal Ind. Limited | D61: GRAVITON RESEARCH CAPITAL LLP | E61: SELL | F61: 30,995 | G61: 120.59 | H61: NSE
A62: 2021-04-01 | B62: JAGSNPHARM | C62: Jagsonpal Pharma Ltd. | D62: ORION STOCKS LTD | E62: SELL | F62: 157,679 | G62: 81.2 | H62: NSE
A63: 2021-04-01 | B63: JUMPNET | C63: Jump Networks Limited | D63: ESAAR INDIA LIMITED | E63: SELL | F63: 930,000 | G63: 9.44 | H63: NSE
A64: 2021-04-01 | B64: NAZARA | C64: Nazara Technologies Ltd | D64: GRAVITON RESEARCH CAPITAL LLP | E64: SELL | F64: 165,417 | G64: 1603.45 | H64: NSE
A65: 2021-04-01 | B65: SAKAR | C65: Sakar Healthcare Limited | D65: AFFILADO EDUCATION SYSTEM LLP | E65: SELL | F65: 111,248 | G65: 117.33 | H65: NSE
A66: 2021-04-01 | B66: VERTOZ | C66: Vertoz Advertising Ltd | D66: OLGA TRADING PRIVATE LIMITED | E66: SELL | F66: 39,839 | G66: 277.48 | H66: NSE
A67: 2021-04-01 | B67: WHEELS | C67: Wheels India Ltd | D67: STANDARD CHARTERED MF A/C. STANDARD CHARTERED PREMIER EQUITY | E67: SELL | F67: 318,418 | G67: 452.7 | H67: NSE

Sheet Call Tracker (Equity & F&O)
M5: Back To Main Page
A6: Retail Research Technical Calls & Fundamental Performance Report for the month of April-2021
M7: =Main!B10 -> 2021-04-05
B8: Positional Call
A9: Sr.no | B9: Date | D9: Company | E9: Rec | F9: Rec Price | G9: Stop Loss*** | H9: Call Closed At | I9: Target | J9: Remark | K9: Profit / Loss per Share | L9: All charges | M9: Net Gain / Loss % | N9: Status | O9: Closed Date
A10: 1 | B10: 2021-02-26 | D10: IOC | E10: Buy<> | F10: 95.5 | G10: 88.5 | H10: 100 | I10: 107-112 | J10: Part Profit of Rs.4.50/- | K10: =H10-F10 -> 4.5 | L10: =(F10*-0.8)/100 -> -0.76 | M10: =(K10+L10)/F10 -> 3.91% | N10: Successful | O10: 2021-03-02 | R10: N
A11: 2 | B11: 2021-03-18 | D11: IRCTC | E11: Buy | F11: 1785 | G11: 1670 | H11: =(1872.5+1775)/2 -> 1,823.75 | I11: 2000 | J11: Profit of Rs.38.75/- | K11: =H11-F11 -> 38.75 | L11: =(F11*-0.8)/100 -> -14.28 | M11: 1.37% | N11: Successful | O11: 2021-04-01 | R11: H
A12: 3 | B12: 2021-03-19 | D12: HDFCAMC | E12: Buy | F12: 2840-2860 | G12: 2650 | I12: 3050-3250 | J12: Open | R12: N
A13: 4 | B13: 2021-03-19 | D13: SRF | E13: Buy | F13: 5275 | G13: 4950 | H13: 5,725.00 | I13: 5700-5800 | J13: Profit of Rs.450/- | K13: =H13-F13 -> 450 | L13: =(F13*-0.8)/100 -> -42.20 | M13: =(K13+L13)/F13 -> 7.73% | N13: Successful | O13: 2021-04-01 | R13: N
A14: 5 | B14: 2021-03-22 | D14: RELIANCE | E14: Buy | F14: 2040-2060 | G14: 1940 | I14: 2300-2400 | J14: Open | R14: H
A15: 6 | B15: 2021-03-22 | D15: IGL | E15: Buy | F15: 507 | G15: 478 | H15: 527.5 | I15: 545-564 | J15: Part Profit of Rs.20.50/- | K15: =H15-F15 -> 20.5 | L15: =(F15*-0.8)/100 -> -4.06 | M15: =(K15+L15)/F15 -> 3.24% | N15: Successful | O15: 2021-04-01 | R15: H
A16: 7 | B16: 2021-03-26 | D16: PIDILITIND | E16: Buy | F16: 1780-1790 | G16: 1675 | I16: 2000-2050 | J16: Open | R16: N
A17: 8 | B17: 2021-03-30 | D17: SUDARSCHEM | E17: Buy | F17: 513-519 | G17: 477 | I17: 560-580 | J17: Open | R17: H
A18: 9 | B18: 2021-04-01 | D18: ESCORTS | E18: Buy | F18: 1265-1275 | G18: 1195 | I18: 1400-1450 | J18: Open | R18: N
A24: CLBS = Closing Basis ***
A25: Dividend adjusted <> | F25: Reinitiated $
A26: Part book {} | F26: Revised stoploss #
B28: Momentum Call
A29: Sr.no | B29: Date | D29: Company | E29: Rec | F29: Rec Price | G29: Stop Loss | H29: Call Closed At | I29: Target | J29: Remark | K29: Profit / Loss per Share/Lot | L29: All charges | M29: Net Gain / Loss % | N29: Status | O29: Closed Date
A30: 1 | B30: 2021-03-22 | D30: HDFCLIFE | E30: Buy | F30: 687-690 | G30: 668 | I30: 715-725 | J30: Open | R30: H
A31: 2 | B31: 2021-03-30 | D31: DHANUKA | E31: Buy | F31: 681 | G31: 660 | H31: 702.5 | I31: 710-720 | J31: Profit of Rs.21.5/- | K31: =H31-F31 -> 21.5 | L31: =(F31*-0.7)/100 -> -4.77 | M31: =(K31+L31)/F31 -> 2.46% | N31: Successful | O31: 2021-04-01 | R31: H
A32: 3 | B32: 2021-03-31 | D32: DIVISLAB | E32: Buy | F32: 3575-3595 | G32: 3490 | I32: 3750-3800 | J32: Open | R32: H
A33: 4 | B33: 2021-03-31 | D33: CSBBANK | E33: Buy | F33: 234-235 | G33: 228 | I33: 245-250 | J33: Open | R33: H
A38: CLBS = Closing Basis *** | H38: *
A39: Dividend adjusted <> | F39: Reinitiated $
F40: Revised stoploss #
A42: Master Trade High Risk
A43: Sr.no | B43: Date | D43: Company | E43: Rec | F43: Rec Price | G43: Stop Loss | H43: Call Closed At | I43: Target | J43: Remark | K43: Profit / Loss per share | L43: All charges | M43: Gain / Loss per Lot | N43: Lot | O43: Status | P43: Closed Date
A44: 1 | B44: 2021-04-01 | D44: PIIND APRIL FUT | E44: Buy | F44: 2247-2253 | G44: 2198 | I44: 2350-2370 | J44: Open | R44: H
A45: 2 | B45: 2021-04-01 | D45: BHARTIARTL APRIL FUT | E45: Buy | F45: 523.5-525.5 | G45: 517 | I45: 535-540 | J45: Open | R45: H
A50: Master Trade Medium Risk
A51: Sr.no | B51: Date | D51: Company | E51: Rec | F51: Rec Price | G51: Stop Loss | H51: Call Closed At | I51: Target | J51: Remark | K51: Profit/ Loss per lot | L51: All charges | M51: Gain / Loss per Lot | N51: Lot | O51: Status | P51: Closed Date
A52: 1 | B52: 2021-04-01 | D52: NIFTY 14600 PE 08-APR | E52: Buy | F52: 94 | G52: 58 | H52: 58 | I52: 150-170 | J52: Loss of Rs.36/- | K52: =F52-H52 -> 36 | L52: 100 | M52: =(K52*N52)-L52 -> 2600.0 | N52: 75 | O52: Unsuccessful | P52: 2021-04-01 | R52: H
A53: 2 | B53: 2021-04-01 | D53: BANKNIFTY 32900 PE 08-APR | E53: Buy | F53: 290-300 | G53: 95 | I53: 600 | J53: Open | R53: H
A61: Techno -Funda (positional)
A62: Sr.no | B62: Date | D62: Company | E62: Rec | F62: Rec Price | G62: Stop Loss*** | H62: Call Closed At | I62: Target | J62: Remark | K62: Profit / Loss per Share/Lot | L62: All charges | M62: Net Gain / Loss % | N62: Status | O62: Closed Date
A63: 1 | B63: 2021-01-07 | D63: SIS | E63: Buy<> | F63: 422 | G63: 385 | H63: 455 | I63: 500-520 | J63: Part profit of Rs.33/- | K63: =H63-F63 -> 33 | L63: =(F63*-0.8)/100 -> -3.38 | M63: =(K63+L63)/F63 -> 7.02% | N63: Successful | O63: 2021-02-16 | R63: H
A64: 2 | B64: 2021-02-11 | D64: MCX | E64: Buy | F64: 1515 | G64: 1390 | H64: 1595 | I64: 1800-1850 | J64: Part profit of Rs.80/- | K64: =H64-F64 -> 80 | L64: =(F64*-0.8)/100 -> -12.12 | M64: =(K64+L64)/F64 -> 4.48% | N64: Successful | O64: 2021-03-16 | R64: H
A65: 3 | B65: 2021-03-19 | D65: GMMPFAUDLR | E65: Buy | F65: 4070 | G65: 3750 | H65: 4530 | I65: 4800 | J65: Profit of Rs.460/- | K65: =H65-F65 -> 460 | L65: =(F65*-0.8)/100 -> -32.56 | M65: =(K65+L65)/F65 -> 10.50% | N65: Successful | O65: 2021-04-01 | R65: H
A68: CLBS = Closing Basis *** | F68: Reinitiated $
A69: Dividend adjusted <> | F69: Revised stoploss #
B71: Intrday Call
A72: Sr.no | B72: Date | D72: Company | E72: Rec | F72: Rec Price | G72: Stop Loss | H72: Call Closed At | I72: Target | J72: Remark | K72: Profit / Loss per Share/Lot | L72: Gain / Loss per Lot | M72: Lot | N72: All charges | O72: Net Gain / Loss % | P72: Status | Q72: Closed Date
B85: Investment Idea
A86: Sr.no | B86: Date | D86: Company | E86: Rec | F86: Rec Price | G86: Point of Review | H86: Close Rate | I86: Target | J86: Remark | K86: Profit / Loss per Share | L86: Gain / Loss % | M86: Status | N86: Closed Date
A87: 1 | B87: 2013-11-01 | D87: L&T Finance Holding | E87: Accu | F87: 82.00 | G87: - | H87: 100 | I87: 100.00 | J87: Target Achieved | K87: =H87-F87 -> 18.00 | L87: =K87/F87 -> 21.95% | M87: Successful | N87: 2016-10-14
A88: 2 | B88: 2014-06-04 | D88: Finolex Inds | E88: Buy | F88: 257.00 | G88: - | H88: 300 | I88: 300.00 | J88: Target Achieved | K88: 43.00 | L88: 16.73% | M88: Successful | N88: 2014-07-02
A89: 3 | B89: 2014-07-08 | D89: JK Cement | E89: Buy | F89: 393.00 | G89: - | H89: 468 | I89: 468.00 | J89: Target Achieved | K89: 75.00 | L89: 19.08% | M89: Successful | N89: 2014-08-12
A90: 4 | B90: 2014-08-06 | D90: Finolex Cables | E90: Buy | F90: 205.00 | G90: - | H90: 275 | I90: 250.00 | J90: Target Achieved | K90: 70.00 | L90: 34.15% | M90: Successful | N90: 2014-11-19
A91: 5 | B91: 2014-09-04 | D91: Exide Inds | E91: Buy | F91: 162.00 | G91: - | H91: 190 | I91: 190.00 | J91: Target Achieved | K91: 28.00 | L91: 17.28% | M91: Successful | N91: 2015-01-02
A92: 6 | B92: 2014-09-04 | D92: Deepak Nitrite | E92: Buy | F92: 75.00 | G92: - | H92: 91.5 | I92: 95-100 | J92: Profit of Rs.16.50/- | K92: 16.50 | L92: 22.00% | M92: Successful | N92: 2014-11-11
A93: 7 | B93: 2014-10-01 | D93: Mercks | E93: Buy | F93: 850.00 | G93: - | H93: 982.5 | I93: 1050.00 | J93: Profit of Rs.132.50/- | K93: 132.50 | L93: 15.59% | M93: Successful | N93: 2015-02-04
A94: 8 | B94: 2014-10-01 | D94: Grindwell Norton | E94: Buy | F94: 475.00 | G94: - | H94: 515 | I94: 600.00 | J94: Profit of Rs.40/- | K94: 40.00 | L94: 8.42% | M94: Successful | N94: 2014-10-27
A95: 9 | B95: 2014-10-01 | D95: Snowman Logistics | E95: Buy | F95: 86.00 | G95: - | H95: 99 | I95: 140.00 | J95: Profit of Rs.13.00/- | K95: 13.00 | L95: 15.12% | M95: Successful | N95: 2014-10-27
A96: 10 | B96: 2014-10-14 | D96: Birla Corp | E96: Buy | F96: 496.60 | G96: - | H96: 621 | I96: 580.00 | J96: Target Achieved | K96: 124.40 | L96: 25.05% | M96: Successful | N96: 2016-08-23
A97: 11 | B97: 2014-10-14 | D97: Ultratech Cem | E97: Buy | F97: 2481.90 | G97: - | H97: 2840 | I97: 2870.00 | J97: Profit of Rs.358.10/- | K97: 358.10 | L97: 14.43% | M97: Successful | N97: 2015-01-13
A98: 12 | B98: 2014-10-16 | D98: Sintex Inds | E98: Buy | F98: 84.50 | G98: - | H98: 93 | I98: 110.00 | J98: Profit of Rs.8.50/- | K98: 8.50 | L98: 10.06% | M98: Successful | N98: 2014-10-27
A99: 13 | B99: 2014-10-16 | D99: HSIL | E99: Buy | F99: 401.00 | G99: - | H99: 428 | I99: 450.00 | J99: Profit of Rs.27.00/- | K99: 27.00 | L99: 6.73% | M99: Successful | N99: 2015-01-16
A100: 14 | B100: 2014-10-16 | D100: Eveready Inds | E100: Buy | F100: 101.00 | G100: - | H100: 112 | I100: 120.00 | J100: Profit of Rs.11.00/- | K100: 11.00 | L100: 10.89% | M100: Successful | N100: 2014-10-27
A101: 15 | B101: 2014-11-11 | D101: Pennar Inds | E101: Buy | F101: 59.00 | G101: - | H101: 76 | I101: 76.00 | J101: Target Achieved | K101: 17.00 | L101: 28.81% | M101: Successful | N101: 2017-10-24
A102: 16 | B102: 2014-11-11 | D102: Snowman Logistics | E102: Buy | F102: 99.00 | G102: - | H102: 120 | I102: 120.00 | J102: Profit of Rs.21/- | K102: 21.00 | L102: 21.21% | M102: Successful | N102: 2014-11-17
A103: 17 | B103: 2014-11-13 | D103: Dharamsi Morarji Chem | E103: Buy | F103: 22.00 | G103: - | H103: 33.55 | I103: 32.00 | J103: Profit of Rs 11.55/- | K103: 11.55 | L103: 52.50% | M103: Successful | N103: 2015-07-03
A104: 18 | B104: 2014-12-03 | D104: Tatachem | E104: Buy | F104: 440.00 | G104: - | H104: 520 | I104: 520.00 | J104: Profit of Rs 80.00/- | K104: 80.00 | L104: 18.18% | M104: Successful | N104: 2015-07-23
A105: 19 | B105: 2014-12-03 | D105: Advanta | E105: Buy | F105: 360.00 | G105: - | H105: 427 | I105: 425.00 | J105: Profit of Rs.67.00/- | K105: 67.00 | L105: 18.61% | M105: Successful | N105: 2015-02-23
A106: 20 | B106: 2015-01-08 | D106: GDL | E106: Buy | F106: 360.00 | G106: - | H106: 455 | I106: 420.00 | J106: Profit of Rs.95.00/- | K106: 95.00 | L106: 26.39% | M106: Successful | N106: 2015-01-20
A107: 21 | B107: 2015-01-08 | D107: NRB Bearing | E107: Buy | F107: 130.00 | H107: 175.5 | I107: 165.00 | J107: Profit of Rs 45.50/- | K107: 45.50 | L107: 35.00% | M107: Successful | N107: 2017-12-19
A108: 22 | B108: 2015-02-05 | D108: GSFC | E108: Accu | F108: 98.00 | H108: 120 | I108: 120.00 | J108: Target Achieved | K108: 22.00 | L108: 22.45% | M108: Successful | N108: 2017-01-18
A109: 23 | B109: 2015-02-05 | D109: Sundrmfast | E109: Accu | F109: 196.00 | H109: 262 | I109: 255.00 | J109: Target Achieved | K109: 66.00 | L109: 33.67% | M109: Successful | N109: 2016-08-17
A110: 24 | B110: 2015-03-04 | D110: GPPL | E110: Accu | F110: 235 | H110: 77.00 | I110: 280-285 | J110: Loss of Rs.158/- | K110: -158.00 | L110: -67.23% | M110: Unsuccessful | N110: 2019-02-26
A111: 25 | B111: 2015-03-04 | D111: ORIENTCEM | E111: Accu | F111: 185.00 | H111: 224 | I111: 220-225 | J111: Target Achieved | K111: 39.00 | L111: 21.08% | M111: Successful | N111: 2016-10-04
A112: 26 | B112: 2015-03-27 | D112: PFS | E112: Accu | F112: 49.5 | H112: 15.85 | I112: 67.00 | J112: Loss of Rs.33.65/- | K112: -33.65 | L112: -68% | M112: Unsuccessful | N112: 2019-06-11
A113: 27 | B113: 2015-03-30 | D113: Walchandnagar Ind Ltd | E113: Accu | F113: 183.50 | H113: 219 | I113: 218.00 | J113: Profit of Rs.35.50/- | K113: 35.50 | L113: 19.35% | M113: Successful | N113: 2015-04-09
A114: 28 | B114: 2015-04-20 | D114: Kalpataru Power Transmission Ltd | E114: Accu | F114: =(227+237)/2 -> 232.00 | H114: 298 | I114: 298.00 | J114: Target Achieved | K114: 66.00 | L114: 28.45% | M114: Successful | N114: 2017-03-29
A115: 29 | B115: 2015-05-04 | D115: Mastek Ltd | E115: Buy | F115: 385.00 | H115: =212.5+331 -> 543.5 | I115: 510.00 | J115: Profit of Rs 158.50/- | K115: 158.50 | L115: 41.17% | M115: Successful | N115: 2015-08-19
A116: 30 | B116: 2015-05-04 | D116: Suprajit Eng | E116: Buy | F116: 115.50 | H116: 146 | I116: 142.00 | J116: Profit of Rs 30.50/- | K116: 30.50 | L116: 26.41% | M116: Successful | N116: 2015-07-17
A117: 31 | B117: 2015-05-27 | D117: TCI | E117: Buy | F117: 237.50 | H117: 279.5 | I117: 278.00 | J117: Target Achieved | K117: 42.00 | L117: 17.68% | M117: Successful | N117: 2015-08-06
A118: 32 | B118: 2015-06-19 | D118: HSIL | E118: Accu | F118: 340.00 | H118: 448 | I118: 448.00 | J118: Target Achieved | K118: 108.00 | L118: 31.76% | M118: Successful | N118: 2017-10-10
A119: 33 | B119: 2015-07-06 | D119: Capital First | E119: Accu | F119: 390.00 | H119: 460 | I119: 460.00 | J119: Target Achieved | K119: =H119-F119 -> 70.00 | L119: =K119/F119 -> 17.95% | M119: Successful | N119: 2016-04-18
A120: 34 | B120: 2015-07-10 | D120: Dolphin OffShore | E120: Accu | F120: 122.5 | H120: 61.00 | I120: 172.00 | J120: Loss of Rs.61.50/- | K120: -61.50 | L120: -50.20% | M120: Unsuccessful | N120: 2018-08-21
A121: 35 | B121: 2015-08-03 | D121: Allcargo logistics | E121: Accu | F121: 297.50 | H121: 350 | I121: 360.00 | J121: Profit of Rs 52.50/- | K121: 52.50 | L121: 17.65% | M121: Successful | N121: 2015-08-16
A122: 36 | B122: 2015-08-03 | D122: Camline Fine | E122: Accu | F122: 115.50 | H122: 149 | I122: 140.00 | J122: Profit of Rs 33.50/- | K122: 33.50 | L122: 29.00% | M122: Successful | N122: 2017-01-05
A123: 37 | B123: 2015-09-04 | D123: TCI | E123: Accu | F123: 226.00 | H123: 292 | I123: 292.00 | J123: Target Achieved | K123: 66.00 | L123: 29.20% | M123: Successful | N123: 2015-10-09
A124: 38 | B124: 2015-09-07 | D124: Kalpataru Power Transmission Ltd | E124: Accu | F124: 232.50 | H124: 312.5 | I124: 310.00 | J124: Target Achieved | K124: 80.00 | L124: 34.41% | M124: Successful | N124: 2017-03-29
A125: 39 | B125: 2015-09-21 | D125: LLOYD ELECTRIC & ENG LTD | E125: Accu | F125: 196.50 | H125: 238 | I125: 238.00 | J125: Target Achieved | K125: 41.50 | L125: 21.12% | M125: Successful | N125: 2015-10-14
A126: 40 | B126: 2015-09-24 | D126: L&T Finance Holding | E126: Accu | F126: 65.00 | H126: 82 | I126: 82.00 | J126: Target Achieved | K126: 17.00 | L126: 26.15% | M126: Successful | N126: 2016-07-27
A127: 41 | B127: 2015-10-14 | D127: KEC International ltd | E127: Accu | F127: 144.00 | H127: 182.5 | I127: 181.00 | J127: Target Achieved | K127: 38.50 | L127: 26.74% | M127: Successful | N127: 2017-03-23
A128: 42 | B128: 2015-10-14 | D128: Gruh Finance | E128: Accu | F128: 264.00 | H128: 311 | I128: 311.00 | J128: Target Achieved | K128: 47.00 | L128: 17.80% | M128: Successful | N128: 2016-08-22
A129: 43 | B129: 2015-11-10 | D129: Pidilitind | E129: Buy | F129: 549.50 | H129: 630 | I129: 630.00 | J129: Target Achieved | K129: 80.50 | L129: 14.65% | M129: Successful | N129: 2016-02-19
A130: 44 | B130: 2015-12-04 | D130: Zensar Technology | E130: Accu | F130: 1027.50 | H130: 1315 | I130: 1250.00 | J130: Target Achieved | K130: 287.50 | L130: 27.98% | M130: Successful | N130: 2018-05-24
A131: 45 | B131: 2015-12-29 | D131: Vinati Organics Ltd | E131: Accu | F131: 465.00 | H131: 540 | I131: 540.00 | J131: Target Achieved | K131: 75.00 | L131: 16.13% | M131: Successful | N131: 2016-06-09
A132: 46 | B132: 2016-01-11 | D132: GSFC | E132: Buy | F132: 81.00 | H132: 110 | I132: 110.00 | J132: Target Achieved | K132: 29.00 | L132: 35.80% | M132: Successful | N132: 2017-01-10
A133: 47 | B133: 2016-01-13 | D133: SSWL | E133: Buy | F133: 417.50 | H133: 547 | I133: 535.00 | J133: Target Achieved | K133: 129.50 | L133: 31.02% | M133: Successful | N133: 2016-07-27
A134: 48 | B134: 2016-02-08 | D134: Persistent System Ltd | E134: Accu | F134: 650.00 | H134: 800 | I134: 800.00 | J134: Target Achieved | K134: 150.00 | L134: 23.08% | M134: Successful | N134: 2018-02-23
A135: 49 | B135: 2016-03-04 | D135: UPL | E135: Accu | F135: 437.50 | H135: 504.5 | I135: 522.00 | J135: Profit of Rs.67/- | K135: 67.00 | L135: 15.31% | M135: Successful | N135: 2016-04-20
A136: 50 | B136: 2016-03-09 | D136: Ashoka Buildcon Ltd | E136: Accu | F136: 189.50 | H136: 218 | I136: 218.00 | J136: Target Achieved | K136: 28.50 | L136: 15.04% | M136: Successful | N136: 2017-10-26
A137: 51 | B137: 2016-04-11 | D137: PTC INDIA FIN SERV LTD | E137: Accu | F137: 36.5 | H137: 15.85 | I137: 60.00 | J137: Loss of Rs.20.65/- | K137: -20.65 | L137: -56.58% | M137: Unsuccessful | N137: 2019-06-11
A138: 52 | B138: 2016-04-12 | D138: CAMLINFINE $ | E138: Accu | F138: 93.00 | H138: 149 | I138: 140.00 | J138: Profit of Rs 56/- | K138: 56.00 | L138: 60.22% | M138: Successful | N138: 2017-01-05
A139: 53 | B139: 2016-04-12 | D139: Greaves Cotton Ltd. | E139: Accu | F139: 130.00 | H139: 150 | I139: 150-155 | J139: Target Achieved | K139: 20.00 | L139: 15.38% | M139: Successful | N139: 2016-07-13
A140: 54 | B140: 2016-04-13 | D140: DHFL | E140: Accu | F140: 196.00 | H140: 299 | I140: 299.00 | J140: Target Achieved | K140: 103.00 | L140: 52.55% | M140: Successful | N140: 2016-09-07
A141: 55 | B141: 2016-04-13 | D141: Magma | E141: Accu | F141: 88.00 | H141: 103 | I141: 103.00 | J141: Target Achieved | K141: 15.00 | L141: 17.05% | M141: Successful | N141: 2016-06-09
A142: 56 | B142: 2016-05-02 | D142: KEC International ltd $ | E142: Accu | F142: 127.50 | H142: 148 | I142: 148-150 | J142: Target Achieved | K142: =H142-F142 -> 20.50 | L142: =K142/F142 -> 16.08% | M142: Successful | N142: 2016-07-13
A143: 57 | B143: 2016-05-03 | D143: Mindtree | E143: Accu | F143: 675.00 | H143: 815 | I143: 790-800 | J143: Target Achieved | K143: =H143-F143 -> 140.00 | L143: =K143/F143 -> 20.74% | M143: Successful | N143: 2018-02-23
A144: 58 | B144: 2016-06-01 | D144: Atulauto | E144: Accu | F144: 500 | H144: 232.50 | I144: 565-570 | J144: Loss of Rs.267.50 /- | K144: =H144-F144 -> -267.50 | L144: =K144/F144 -> -53.50% | M144: Unsuccessful | N144: 2019-09-27
A145: 59 | B145: 2016-06-06 | D145: TRITURBINE | E145: Accu | F145: 110.00 | H145: 126.5 | I145: 125.00 | J145: Profit of Rs.16.50/- | K145: =H145-F145 -> 16.50 | L145: =K145/F145 -> 15.00% | M145: Successful | N145: 2016-07-01
A146: 60 | B146: 2016-06-17 | D146: Pennar Industries Ltd | E146: Accu | F146: 44.00 | H146: 69.5 | I146: 69.50 | J146: Profit of Rs.25.50/- | K146: =H146-F146 -> 25.50 | L146: =K146/F146 -> 57.95% | M146: Successful | N146: 2017-08-30
A147: 61 | B147: 2016-06-28 | D147: EVEREADY | E147: Accu | F147: 262.50 | H147: 340 | I147: 333.00 | J147: Profit of Rs.77.50/- | K147: 77.50 | L147: 29.52% | M147: Successful | N147: 2017-10-09
A148: 62 | B148: 2016-06-28 | D148: FIEMIND | E148: Accu | F148: 840.00 | H148: 1230 | I148: 1230.00 | J148: Target Achieved | K148: 390.00 | L148: 46.43% | M148: Successful | N148: 2016-10-06
A149: 63 | B149: 2016-07-05 | D149: Bajaj Corp Ltd | E149: Accu | F149: 395 | H149: =(468.5+342.5)/2 -> 405.50 | I149: 510.00 | J149: Profit of Rs.10.50/- | K149: =H149-F149 -> 10.50 | L149: =K149/F149 -> 3% | M149: Neutral | N149: 2019-05-21
A150: 64 | B150: 2016-08-02 | D150: GPPL $ | E150: Buy | F150: =169.5-12.8 -> 156.7 | H150: 77.00 | I150: 198-200 | J150: Loss of Rs.79.7/- | K150: -79.70 | L150: -50.86% | M150: Unsuccessful | N150: 2019-02-26
A151: 65 | B151: 2016-08-04 | D151: WONDERLA HOLIDAYS LTD | E151: Accu | F151: 400 | H151: 305.00 | I151: 475.00 | J151: Loss of Rs.95/- | K151: -95.00 | L151: -23.75% | M151: Unsuccessful | N151: 2019-05-21
A152: 66 | B152: 2016-08-11 | D152: CAMLINFINE | E152: Accu | F152: 86.50 | H152: 130 | I152: 130.00 | J152: Profit of Rs.43.50/- | K152: 43.50 | L152: 50.29% | M152: Successful | N152: 2017-12-22
A153: 67 | B153: 2016-08-18 | D153: GRANULES | E153: Accu | F153: 133.5 | H153: 126.50 | I153: 178.00 | J153: Exit | K153: -7.00 | L153: -5.24% | M153: Unsuccessful | N153: 2016-09-02
A154: 68 | B154: 2016-08-31 | D154: VA TECH WABAG | E154: Accu | F154: 560.00 | H154: 725 | I154: 725.00 | J154: Target Achieved | K154: 165.00 | L154: 29.46% | M154: Successful | N154: 2016-03-27
A155: 69 | B155: 2016-09-01 | D155: SKIPPER LIMITED | E155: Accu | F155: 160.50 | H155: 210 | I155: 210.00 | J155: Target Achieved | K155: 49.50 | L155: 30.84% | M155: Successful | N155: 2017-05-16
A156: 70 | B156: 2016-10-03 | D156: IFBIND | E156: Accu | F156: 430.00 | H156: 596 | I156: 575.00 | J156: Profit of Rs.166/- | K156: 166.00 | L156: 38.60% | M156: Successful | N156: 2017-02-03
A157: 71 | B157: 2016-10-14 | D157: ASIANTILES | E157: Accu | F157: 280.00 | H157: 345 | I157: 345.00 | J157: Target Achieved | K157: =H157-F157 -> 65.00 | L157: =K157/F157 -> 23.21% | M157: Successful | N157: 2017-03-20
A158: 72 | B158: 2016-10-14 | D158: DEEPIND | E158: Accu | F158: 245.00 | H158: 325.5 | I158: 330.00 | J158: Profit of Rs.80.5/- | K158: 80.50 | L158: =K158/F158 -> 32.86% | M158: Successful | N158: 2017-02-03
A159: 73 | B159: 2016-10-17 | D159: DCBBANK | E159: Accu | F159: 125.00 | H159: 160 | I159: 160.00 | J159: Target Achieved | K159: 35.00 | L159: 28.00% | M159: Successful | N159: 2017-03-09
A160: 74 | B160: 2016-10-17 | D160: ORIENTREF | E160: Accu | F160: 114.00 | H160: 145 | I160: 145.00 | J160: Target Achieved | K160: 31.00 | L160: =K160/F160 -> 27.19% | M160: Successful | N160: 2017-05-04
A161: 75 | B161: 2016-10-17 | D161: GANECOS | E161: Accu | F161: 212.00 | H161: 280 | I161: 276.00 | J161: Profit of Rs.68/- | K161: 68.00 | L161: =K161/F161 -> 32.08% | M161: Successful | N161: 2017-05-03
A162: 76 | B162: 2016-11-04 | D162: NBCC | E162: Accu | F162: 155.00 | H162: 210 | I162: 210.00 | J162: Profit of Rs.55/- | K162: 55.00 | L162: =K162/F162 -> 35.48% | M162: Successful | N162: 2017-07-28
A163: 77 | B163: 2016-12-06 | D163: PRECAM | E163: Accu | F163: 150.5 | H163: 72.50 | I163: 174.00 | J163: Loss of Rs.78/- | K163: -78.00 | L163: -51.83% | M163: Unsuccessful | N163: 2018-08-21
A164: 78 | B164: 2016-12-08 | D164: INFRATEL | E164: Accu | F164: 380.00 | H164: 478 | I164: 468.00 | J164: Target Achieved | K164: =H164-F164 -> 98.00 | L164: =K164/F164 -> 25.79% | M164: Successful | N164: 2017-10-17
A165: 79 | B165: 2016-12-30 | D165: GODREJPROP | E165: Accu | F165: 305.00 | H165: 375 | I165: 375.00 | J165: Target Achieved | K165: =H165-F165 -> 70.00 | L165: =K165/F165 -> 22.95% | M165: Successful | N165: 2017-02-02
A166: 80 | B166: 2017-01-04 | D166: DEEPAKNTR | E166: Accu | F166: 99.50 | H166: 158 | I166: 158.00 | J166: Target Achieved | K166: =H166-F166 -> 58.50 | L166: =K166/F166 -> 58.79% | M166: Successful | N166: 2017-06-12
A167: 81 | B167: 2017-01-04 | D167: DEEPAKNTR | E167: Accu | F167: 99.50 | H167: 158 | I167: 158.00 | J167: Target Achieved | K167: 58.50 | L167: 58.79% | M167: Successful | N167: 2017-06-12
A168: 82 | B168: 2017-02-20 | D168: RECLTD | E168: Accu | F168: 140.50 | H168: 220 | I168: 220.00 | J168: Target Achieved | K168: =H168-F168 -> 79.50 | L168: =K168/F168 -> 56.58% | M168: Successful | N168: 2017-05-09
A169: 83 | B169: 2017-02-20 | D169: SUBROS | E169: Accu | F169: 202.50 | H169: 234 | I169: 234.00 | J169: Target Achieved | K169: 31.50 | L169: 15.56% | M169: Successful | N169: 2017-04-11
A170: 84 | B170: 2017-03-24 | D170: VRLLOG | E170: Accu | F170: 300.50 | H170: 417.5 | I170: 420.00 | J170: Profit of Rs.117/- | K170: =H170-F170 -> 117.00 | L170: =K170/F170 -> 38.94% | M170: Successful | N170: 2017-12-01
A171: 85 | B171: 2017-03-24 | D171: FIEMIND | E171: Accu | F171: 850.00 | H171: 1042.5 | I171: 1023.00 | J171: Profit of Rs 192.50/- | K171: 192.50 | L171: 22.65% | M171: Successful | N171: 2017-04-05
A172: 86 | B172: 2017-04-05 | D172: RATNAMANI | E172: Accu | F172: 785.00 | H172: 930 | I172: 920.00 | J172: Profit of Rs.145/- | K172: =H172-F172 -> 145.00 | L172: =K172/F172 -> 18.47% | M172: Successful | N172: 2017-08-29
A173: 87 | B173: 2017-04-06 | D173: ZEEMEDIA | E173: Accu | F173: 40 | H173: 13.10 | I173: 60.00 | J173: Loss of Rs.26.9/- | K173: -26.90 | L173: -67.25% | M173: Unsuccessful | N173: 2018-02-07
A174: 88 | B174: 2017-04-12 | D174: DABUR | E174: Accu | F174: 289.50 | H174: 354 | I174: 360.00 | J174: Profit of Rs.64.5/- | K174: =H174-F174 -> 64.50 | L174: =K174/F174 -> 22.28% | M174: Successful | N174: 2017-11-01
A175: 89 | B175: 2017-04-20 | D175: KPRMILL | E175: Accu | F175: 700.00 | H175: 840 | I175: 840.00 | J175: Profit of Rs.140/- | K175: 140.00 | L175: 20.00% | M175: Successful | N175: 2017-06-07
A176: 90 | B176: 2017-06-01 | D176: ESSELPACK | E176: Accu | F176: 130.00 | H176: 144.25 | I176: 170.00 | J176: Profit of Rs.14.25/- | K176: 14.25 | L176: 10.96% | M176: Successful | N176: 2019-07-29
A177: 91 | B177: 2017-06-15 | D177: KEI | E177: Accu | F177: 214.50 | H177: 262 | I177: 262.00 | J177: Profit of Rs.47.5/- | K177: 47.50 | L177: 22.14% | M177: Successful | N177: 2017-08-30
A178: 92 | B178: 2017-07-17 | D178: MAYURUNIQ | E178: Accu | F178: 370.00 | H178: 447.5 | I178: 450.00 | J178: Target Achieved | K178: 77.50 | L178: 20.95% | M178: Successful | N178: 2017-10-27
A179: 93 | B179: 2017-07-27 | D179: RAMCOCEM | E179: Accu | F179: 657.50 | H179: 825 | I179: 820.00 | J179: Target Achieved | K179: 167.50 | L179: 25.48% | M179: Successful | N179: 2017-12-21
A180: 94 | B180: 2017-08-17 | D180: FINPIPE | E180: Accu | F180: 605.00 | H180: 750 | I180: 750.00 | J180: Profit of Rs.145/- | K180: 145.00 | L180: 23.97% | M180: Successful | N180: 2017-10-19
A181: 95 | B181: 2017-09-01 | D181: SHK | E181: Accu | F181: 255 | H181: 217.25 | I181: 320.00 | J181: Loss of Rs.37.75/- | K181: -37.75 | L181: -15% | M181: Unsuccessful | N181: 2019-07-15
A182: 96 | B182: 2017-09-19 | D182: SKIPPER | E182: Accu | F182: 215.00 | H182: 258 | I182: 258.00 | J182: Target Achieved | K182: 43.00 | L182: 20.00% | M182: Successful | N182: 2017-11-01
A183: 97 | B183: 2017-09-19 | D183: SKIPPER | E183: Accu | F183: 215.00 | H183: 258 | I183: 258.00 | J183: Target Achieved | K183: 43.00 | L183: 20.00% | M183: Successful | N183: 2017-11-01
A184: 98 | B184: 2017-09-20 | D184: CAMLINFINE$ | E184: Accu | F184: 75.00 | H184: 90 | I184: 90.00 | J184: Profit of Rs.15.00/- | K184: =H184-F184 -> 15.00 | L184: =K184/F184 -> 20.00% | M184: Successful | N184: 2017-10-11
A185: 99 | B185: 2017-10-03 | D185: GNA | E185: Accu | F185: 315.00 | H185: 392 | I185: 384.00 | J185: Profit of Rs.77/- | K185: 77.00 | L185: 24.44% | M185: Successful | N185: 2017-10-09
A186: 100 | B186: 2017-10-05 | D186: NOCIL | E186: Accu | F186: 145.00 | H186: 179 | I186: 180.00 | J186: Profit of Rs.34/- | K186: 34.00 | L186: 23.45% | M186: Successful | N186: 2017-10-17
A187: 101 | B187: 2017-10-06 | D187: CENTURYPLY | E187: Accu | F187: 256.00 | H187: 323 | I187: 320.00 | J187: Target Achieved | K187: 67.00 | L187: 26.17% | M187: Successful | N187: 2017-11-28
A188: 102 | B188: 2017-10-09 | D188: EIHOTEL | E188: Accu | F188: 137.50 | H188: 184 | I188: 183.00 | J188: Profit of Rs.46.5/- | K188: 46.50 | L188: 33.82% | M188: Successful | N188: 2018-01-08
A189: 103 | B189: 2017-10-10 | D189: NRBBEARING | E189: Accu | F189: 125.50 | H189: 158 | I189: 155.00 | J189: Profit of Rs.32.5/- | K189: 32.50 | L189: 25.90% | M189: Successful | N189: 2017-11-28
A190: 104 | B190: 2017-10-10 | D190: BOROSIL | E190: Accu | F190: 895.00 | H190: 1122.5 | I190: 1078.00 | J190: Profit of Rs.227.5/- | K190: 227.50 | L190: 25.42% | M190: Successful | N190: 2018-01-17
A191: 105 | B191: 2017-10-12 | D191: CYIENT | E191: Accu | F191: 525.00 | H191: 629 | I191: 629.00 | J191: Target Achieved | K191: 104.00 | L191: 19.81% | M191: Successful | N191: 2018-01-19
A192: 106 | B192: 2017-11-07 | D192: HATSUN | E192: Accu | F192: 740.00 | H192: 892.5 | I192: 900.00 | J192: Profit of Rs.152.5/- | K192: =H192-F192 -> 152.50 | L192: =K192/F192 -> 20.61% | M192: Successful | N192: 2017-11-13
A193: 107 | B193: 2017-12-04 | D193: SANGHIIND | E193: Accu | F193: 118.50 | H193: 143.5 | I193: 145.00 | J193: Profit of Rs.25/- | K193: =H193-F193 -> 25.00 | L193: =K193/F193 -> 21.10% | M193: Successful | N193: 2017-12-28
A194: 108 | B194: 2017-12-21 | D194: KAJARIACER | E194: Accu | F194: 715 | H194: 500.00 | I194: 872.00 | J194: Loss of Rs.215/- | K194: =H194-F194 -> -215.00 | L194: =K194/F194 -> -30.07% | M194: Unsuccessful | N194: 2019-07-24
A195: 109 | B195: 2017-12-29 | D195: GNA | E195: Accu | F195: 435.00 | H195: 542.5 | I195: 539.00 | J195: Target Achieved | K195: 107.50 | L195: 24.71% | M195: Successful | N195: 2018-04-16
A196: 110 | B196: 2017-12-29 | D196: ZENSARTECH | E196: Accu | F196: 885.00 | H196: 1090 | I196: 1084.00 | J196: Target Achieved | K196: 205.00 | L196: 23.16% | M196: Successful | N196: 2018-04-23
A197: 111 | B197: 2018-04-02 | D197: EVERESTIND | E197: Accu | F197: 478.50 | H197: 442 | I197: 613.00 | J197: Loss of Rs.36.50 /- | K197: =H197-F197 -> -36.50 | L197: =K197/F197 -> -7.63% | M197: Unsuccessful | N197: 2019-10-24
A198: 112 | B198: 2018-04-04 | D198: GPPL$ | E198: Accu | F198: =141.5-7.3 -> 134.2 | H198: 77.00 | I198: 180.00 | J198: Loss of Rs.57.2/- | K198: =H198-F198 -> -57.20 | L198: =K198/F198 -> -42.62% | M198: Unsuccessful | N198: 2019-02-26
A199: 113 | B199: 2018-04-19 | D199: MANPASAND | E199: Accu | F199: 430 | H199: 220.00 | I199: 537.00 | J199: Loss of Rs.210/- | K199: =H199-F199 -> -210.00 | L199: =K199/F199 -> -48.84% | M199: Unsuccessful | N199: 2018-06-01
A200: 114 | B200: 2018-04-30 | D200: HEIDELBERG | E200: Accu | F200: 153.50 | H200: 196.00 | I200: 196.00 | J200: Profit of Rs.42.50/- | K200: =H200-F200 -> 42.50 | L200: =K200/F200 -> 28% | M200: Successful | N200: 2019-05-20
A201: 115 | B201: 2018-07-25 | D201: ZEEMEDIA | E201: Accu | F201: 27.5 | H201: 13.10 | I201: 60.00 | J201: Loss of Rs.14.40/- | K201: -14.40 | L201: -52.36% | M201: Unsuccessful | N201: 2018-02-07
A202: 116 | B202: 2018-08-06 | D202: GABRIEL | E202: Accu | F202: 148.5 | H202: 102 | I202: 182.00 | J202: Loss of Rs.46.50/- | K202: =H202-F202 -> -46.50 | L202: =K202/F202 -> -31.31% | M202: Unsuccessful | N202: 2019-07-15
A203: 117 | B203: 2018-08-23 | D203: INDIANHUME | E203: Accu | F203: 285 | H203: 355 | I203: 364.00 | J203: Profit of Rs.70/- | K203: 70.00 | L203: 24.56% | M203: Successful | N203: 2018-12-21
A204: 118 | B204: 2018-08-29 | D204: GRINDWELL | E204: Accu | F204: 525 | H204: 585 | I204: 635.00 | J204: Profit of Rs.60- | K204: =H204-F204 -> 60.00 | L204: =K204/F204 -> 11.43% | M204: Successful | N204: 2019-07-16
A205: 119 | B205: 2018-10-22 | D205: FINPIPE | E205: Accu | F205: 475 | H205: 574 | I205: 570.00 | J205: Target Achieved | K205: 99.00 | L205: 20.84% | M205: Successful | N205: 2018-10-30
A206: 120 | B206: 2018-10-24 | D206: GULFOILLUB | E206: Accu | F206: 707.5 | H206: 872 | I206: 872.00 | J206: Target Achieved | K206: 164.50 | L206: 23.25% | M206: Successful | N206: 2019-01-17
A207: 121 | B207: 2018-10-25 | D207: DBCORP | E207: Accu | F207: 162 | H207: 204 | I207: 209.00 | J207: Profit of Rs.42/- | K207: 42.00 | L207: 25.93% | M207: Successful | N207: 2019-03-15
A208: 122 | B208: 2018-10-26 | D208: RITES | E208: Accu | F208: 240 | H208: 297 | I208: 297.00 | J208: Target Achieved | K208: 57.00 | L208: 23.75% | M208: Successful | N208: 2018-11-13
A209: 123 | B209: 2018-12-05 | D209: BRIGADE | E209: Accu | F209: 202.5 | H209: 255 | I209: 252.00 | J209: Target Achieved | K209: 52.50 | L209: 25.93% | M209: Successful | N209: 2019-03-18 | R209: V
A210: 124 | B210: 2018-12-31 | D210: JKCEMENT | E210: Accu | F210: 710 | H210: 866 | I210: 866.00 | J210: Target Achieved | K210: 156.00 | L210: 21.97% | M210: Successful | N210: 2019-03-29 | R210: V
A211: 125 | B211: 2019-02-26 | D211: MARICO | E211: Accu | F211: 337.25 | H211: 398.5 | I211: 411.00 | J211: Profit of Rs.61.25/- | K211: 61.25 | L211: 18.16% | M211: Successful | N211: 2019-10-22 | R211: V
A212: 126 | B212: 2019-04-04 | D212: ITDCEM | E212: Accu | F212: 130 | H212: 65 | I212: 158.00 | J212: Loss of Rs.65 /- | K212: -65.00 | L212: -50.00% | M212: Unsuccessful | N212: 2019-09-18 | R212: K
A213: 127 | B213: 2017-10-09 | D213: RECLTD | E213: Accu | F213: 141.5 | H213: 183.50 | I213: 210.00 | J213: Part Profit of Rs.42/- | K213: 42.00 | L213: 30% | M213: Successful | N213: 2017-11-03 | R213: K
A214: 128 | B214: 2017-12-05 | D214: ALLCARGO | E214: Accu | F214: 172.00 | H214: 155.25 | I214: 230.00 | J214: Loss of Rs.16.75/- | K214: =H214-F214 -> -16.75 | L214: =K214/F214 -> -9.74% | M214: Unsuccessful | N214: 2019-11-18 | R214: K
A215: 129 | B215: 2018-10-25 | D215: GODREJCP | E215: Accu | F215: 698.50 | H215: 850.00 | I215: 890.00 | J215: Part Profit of Rs.151.50/- | K215: 151.50 | L215: 22% | M215: Successful | N215: 2018-12-19 | R215: V
A216: 130 | B216: 2017-05-22 | D216: GREAVESCOT | E216: Accu | F216: 127.6 | H216: 138.00 | I216: 190.00 | J216: Profit of Rs.10.40 | K216: 10.40 | L216: 8% | M216: Successful | N216: 2019-11-05 | R216: K
A217: 131 | B217: 2018-02-27 | D217: MOLDTKPAC | E217: Accu | F217: 317 | H217: 382.50 | I217: 398.00 | J217: Profit of Rs.65.5 | K217: =H217-F217 -> 65.50 | L217: =K217/F217 -> 21% | M217: Successful | N217: 2021-02-11 | R217: K
A218: 132 | B218: 2018-03-05 | D218: LICHSGFIN | E218: Accu | F218: =510-14.4 -> 495.60 | H218: 350 | I218: 672.00 | J218: Loss of Rs.145.60/- | K218: =H218-F218 -> -145.60 | L218: =K218/F218 -> -29.38% | M218: Unsuccessful | N218: 2020-02-26 | R218: V
A219: 133 | B219: 2018-05-17 | D219: PHILIPCARB | E219: Accu | F219: 230.30 | H219: 102.5 | I219: 348.00 | J219: Loss of Rs.127.80/- | K219: =H219-F219 -> -127.80 | L219: =K219/F219 -> -55.49% | M219: Unsuccessful | N219: 2020-03-06 | R219: V
A220: 134 | B220: 2018-06-07 | D220: KEC | E220: Accu | F220: =342.5-5.1 -> 337.4 | H220: 412.50 | I220: 439.00 | J220: Profit of Rs.75.10 | K220: 75.10 | L220: 22% | M220: Successful | N220: 2021-02-03 | R220: K
A221: 135 | B221: 2018-07-04 | D221: ASHOKLEY | E221: Accu | F221: =127.5-5.53 -> 121.97 | I221: 170.00 | J221: Open | M221: Open | R221: V
A222: 136 | B222: 2018-07-13 | D222: FCONSUMER | E222: Accu | F222: 46.50 | H222: 17 | I222: 59.00 | J222: Loss of Rs.29.50/- | K222: =H222-F222 -> -29.50 | L222: =K222/F222 -> -63.44% | M222: Unsuccessful | N222: 2020-02-26 | R222: V
A223: 137 | B223: 2018-10-23 | D223: JKPAPER | E223: Accu | F223: 156.50 | I223: 191.00 | J223: Open | M223: Open | R223: V
A224: 138 | B224: 2018-12-05 | D224: CCL | E224: Accu | F224: 259.50 | I224: 321.00 | J224: Open | M224: Open | R224: V
A225: 139 | B225: 2018-12-05 | D225: VARROC | E225: Accu | F225: 715 | H225: 445 | I225: 840.00 | J225: Loss of Rs.270/- | K225: =H225-F225 -> -270.00 | L225: =K225/F225 -> -37.76% | M225: Unsuccessful | N225: 2019-12-01 | R225: V
A226: 140 | B226: 2019-01-04 | D226: MGL | E226: Accu | F226: 875 | H226: 1165 | I226: 1185.00 | J226: Profit of Rs.290/- | K226: 290.00 | L226: 33.14% | M226: Successful | N226: 2020-01-17 | R226: V
A227: 141 | B227: 2019-04-04 | D227: COCHINSHIP | E227: Accu | F227: =387-14.63 -> 372.37 | H227: 490 | I227: 490.00 | J227: Target Achieved | K227: 117.63 | L227: 31.59% | M227: Successful | N227: 2020-01-20 | R227: V
A228: 142 | B228: 2019-04-23 | D228: MAHINDCIE | E228: Buy | F228: 220 | H228: 127.5 | I228: 284.00 | J228: Loss of Rs.92.50/- | K228: -92.50 | L228: -42.05% | M228: Unsuccessful | N228: 2020-03-06 | R228: V
A229: 143 | B229: 2019-06-06 | D229: RADICO | E229: Buy | F229: 332.8 | H229: 405 | I229: 419.00 | J229: Profit of Rs.72.20/- | K229: =H229-F229 -> 72.20 | L229: =K229/F229 -> 21.69% | M229: Successful | N229: 2020-01-30 | R229: K
A230: 144 | B230: 2019-06-25 | D230: M&MFIN | E230: Accu | F230: 386 | H230: 395.00 | I230: 452.00 | J230: Profit of Rs.9/- | K230: =H230-F230 -> 9.00 | L230: =K230/F230 -> 2% | M230: Neutral | N230: 2020-02-07 | R230: K
A231: 145 | B231: 2019-08-30 | D231: INDHOTEL | E231: Accu | F231: 135-140 | I231: 190.00 | J231: Open | M231: Open | R231: V
A232: 146 | B232: 2019-09-23 | D232: KNRCON | E232: Accu | F232: 235 | H232: 295 | I232: 296.00 | J232: Profit of Rs.60/- | K232: =H232-F232 -> 60.00 | L232: =K232/F232 -> 25.53% | M232: Successful | N232: 2020-01-14 | R232: K
A233: 147 | B233: 2019-10-14 | D233: KEC$ | E233: Accu | F233: 277.5 | H233: 333 | I233: 333.00 | J233: Profit of Rs.55.50/- | K233: =H233-F233 -> 55.50 | L233: =K233/F233 -> 20.00% | M233: Successful | N233: 2020-01-16 | R233: V
A234: 148 | B234: 2019-10-14 | D234: MGL$ | E234: Accu | F234: 930 | H234: 1165 | I234: 1200.00 | J234: Profit of Rs.235/- | K234: =H234-F234 -> 235.00 | L234: =K234/F234 -> 25.27% | M234: Successful | N234: 2020-01-17 | R234: K
A235: 149 | B235: 2019-10-15 | D235: JKPAPER$ | E235: Accu | F235: 111.00 | I235: 141.00 | J235: Open | M235: Open | R235: K
A236: 150 | B236: 2019-10-15 | D236: RADICO$ | E236: Accu | F236: 296.00 | H236: 370 | I236: 370.00 | J236: Target Achieved | K236: =H236-F236 -> 74.00 | L236: =K236/F236 -> 25.00% | M236: Successful | N236: 2020-01-23 | R236: K
A237: 151 | B237: 2019-10-16 | D237: MOLDTKPAC$ | E237: Accu | F237: 300.00 | H237: 382.5 | I237: 344.00 | J237: Profit of Rs.82.5 | K237: 82.50 | L237: 27.50% | M237: Successful | N237: 2021-02-11 | R237: K
A238: 152 | B238: 2020-01-02 | D238: PSPPROJECT | E238: Accu | F238: 490-500 | I238: 590.00 | J238: Open | M238: Open | R238: K
A239: 153 | B239: 2020-05-15 | D239: BEL | E239: Accu | F239: 67.50 | H239: 86 | I239: 86.00 | J239: Profit of Rs.18.50/- | K239: =H239-F239 -> 18.50 | L239: =K239/F239 -> 27.41% | M239: Successful | N239: 2020-06-26 | R239: K
A240: 154 | B240: 2020-07-23 | D240: RITES | E240: Accu | F240: 244-249 | I240: 296.00 | J240: Open | R240: K
A241: 155 | B241: 2020-09-18 | D241: IEX | E241: Accu | F241: 206 | H241: 248 | I241: 248.00 | J241: Target Achieved | K241: =H241-F241 -> 42.00 | L241: =K241/F241 -> 20.39% | M241: Successful | N241: 2021-01-18 | R241: K
... 9 more rows
